Organisation Name,Organisation Code,Effective Date,Directorate,Service Category,Service Category URI,Supplier Name,Payment Date,Transaction Number,Net Amount,Purpose_of_the_expenditure,Merchant Category
Wyre Council,http://opendatacommunities.org/doc/district-council/wyre,30/08/2023,Finance,Corporate and Democratic Core,131A,NATWEST BANK,02/08/2023,WPST00114484,786.83,31/07/23 30JUN GRP 99795000,Bank Charges
Wyre Council,http://opendatacommunities.org/doc/district-council/wyre,30/08/2023,Finance,Cultural and Related Services,132A,,11/08/2023,WPST00115507,4487.50,Its Showtime 20 to 22/07/23 ticket sales,Refund of Ticket Sales to Ext Promoters
Wyre Council,http://opendatacommunities.org/doc/district-council/wyre,30/08/2023,Finance,Corporate and Democratic Core,131A,NATWEST BANK,23/08/2023,WPST00116543,1543.06,21/08/23 Worldpay 267308308,Bank Charges
Wyre Council,http://opendatacommunities.org/doc/district-council/wyre,30/08/2023,Finance,Corporate and Democratic Core,131A,NATWEST BANK,23/08/2023,WPST00116545,1233.58,21/08/23 Worldpay 267263627,Bank Charges
Wyre Council,http://opendatacommunities.org/doc/district-council/wyre,30/08/2023,Finance,Central Services to the Public,131C,SANTANDER,08/08/2023,WPST00115089,748.00,04/08/2023SAN UK ACC RECEIVE,Plastic Cards Processing Fees
Wyre Council,http://opendatacommunities.org/doc/district-council/wyre,30/08/2023,Finance,Support Services,135B,,14/08/2023,WPST00115586,3747.84,Alchemer Invoice,Software Maintenance
Wyre Council,http://opendatacommunities.org/doc/district-council/wyre,30/08/2023,People and Places,Cultural and Related Services,132A,Arranpaul Audio LTD,30/08/2023,PE152513,20.00,2 x tech pro headset hire,Hire of Tools or Equipment
Wyre Council,http://opendatacommunities.org/doc/district-council/wyre,30/08/2023,People and Places,Cultural and Related Services,132A,Arranpaul Audio LTD,24/08/2023,PE152392,1000.00,Technician - 5 days,Agency Staff
Wyre Council,http://opendatacommunities.org/doc/district-council/wyre,30/08/2023,People and Places,Planning and Development Servs,132C,Blackpool Council,22/08/2023,PE152317,19000.00,WSP Bridge Study/Survey - First Payment,Regeneration Team
Wyre Council,http://opendatacommunities.org/doc/district-council/wyre,30/08/2023,People and Places,Planning and Development Servs,132C,Blackpool Council,07/08/2023,PE151811,400.00,Air show brochure,Promotions - General
Wyre Council,http://opendatacommunities.org/doc/district-council/wyre,30/08/2023,People and Places,Environmental Services,132B,Blackpool Council,10/08/2023,PE151851,919.41,Speed Dome installations in Garstang as per Invoice 31005657,Community Development Initiatives
Wyre Council,http://opendatacommunities.org/doc/district-council/wyre,30/08/2023,Resources,Housing General Fund,134A,Blackpool Council,16/08/2023,RS152119,4647.80,REDACT,Choice Based Letting Scheme
Wyre Council,http://opendatacommunities.org/doc/district-council/wyre,30/08/2023,People and Places,Planning and Development Servs,132C,Blackpool Council,31/08/2023,PE152540,26334.00,Payment for Cassidy & Ashton Topo Study,Regeneration Team
Wyre Council,http://opendatacommunities.org/doc/district-council/wyre,30/08/2023,People and Places,Planning and Development Servs,132C,National World Publishing Ltd,16/08/2023,PE152132,323.61,Garstang Courier and Blackpool Gazette Press Notice 19.07.23,Advertising - Statutory Notices
Wyre Council,http://opendatacommunities.org/doc/district-council/wyre,30/08/2023,People and Places,Environmental Services,132B,National World Publishing Ltd,16/08/2023,PE152131,500.85,Advert ref no NMC6254365 - Taxi Tariff Advert,Advertising - Statutory Notices
Wyre Council,http://opendatacommunities.org/doc/district-council/wyre,30/08/2023,People and Places,Planning and Development Servs,132C,National World Publishing Ltd,08/08/2023,PE151866,190.08,Press notice for Fleetwood 21.06.23,Advertising - Statutory Notices
Wyre Council,http://opendatacommunities.org/doc/district-council/wyre,30/08/2023,People and Places,Planning and Development Servs,132C,National World Publishing Ltd,08/08/2023,PE151870,462.30,Press notice for Garstang and Blackpool 07.06.23,Advertising - Statutory Notices
Wyre Council,http://opendatacommunities.org/doc/district-council/wyre,30/08/2023,People and Places,Planning and Development Servs,132C,National World Publishing Ltd,08/08/2023,PE151869,166.32,Press notice for Fleetwood Weekly News 07.06.23,Advertising - Statutory Notices
Wyre Council,http://opendatacommunities.org/doc/district-council/wyre,30/08/2023,People and Places,Planning and Development Servs,132C,National World Publishing Ltd,08/08/2023,PE151867,647.22,Press notice for Garstang and Blackpool 21.06.23,Advertising - Statutory Notices
Wyre Council,http://opendatacommunities.org/doc/district-council/wyre,30/08/2023,People and Places,Planning and Development Servs,132C,National World Publishing Ltd,30/08/2023,PE152133,416.07,Garstang Courier and Blackpool Gazette Press Notice 2nd August 2023,Advertising - Statutory Notices
Wyre Council,http://opendatacommunities.org/doc/district-council/wyre,30/08/2023,People and Places,Planning and Development Servs,132C,Kings Chambers,16/08/2023,PE152067,1125.00,"Legal advice The Cube, Breck Road enforcement 22/00071/NOCOMP - Philip Robson",Legal Fees
Wyre Council,http://opendatacommunities.org/doc/district-council/wyre,30/08/2023,People and Places,Planning and Development Servs,132C,Kings Chambers,16/08/2023,PE152066,225.00,Legal advice Helmsdeep enforcement23/00050/COU - Phil Robson,Legal Fees
Wyre Council,http://opendatacommunities.org/doc/district-council/wyre,30/08/2023,Resources,Housing General Fund,134A,St Gobain Building Distribution LTD,10/08/2023,RS151950,294.32,Payment of invoice 0963 / 00123036,Materials and Consumables
Wyre Council,http://opendatacommunities.org/doc/district-council/wyre,30/08/2023,Resources,Housing General Fund,134A,St Gobain Building Distribution LTD,10/08/2023,RS151946,258.38,Payment of invoice - 0963/00126317,Materials and Consumables
Wyre Council,http://opendatacommunities.org/doc/district-council/wyre,30/08/2023,Resources,Housing General Fund,134A,St Gobain Building Distribution LTD,11/08/2023,RS151948,8.45,Payment of invoice 0963/00123038,Materials and Consumables
Wyre Council,http://opendatacommunities.org/doc/district-council/wyre,30/08/2023,People and Places,Housing General Fund,134A,St Gobain Building Distribution LTD,24/08/2023,PE152276,17.20,Payment of invoice 3104/00162986,Purchase of Tools or Equipment
Wyre Council,http://opendatacommunities.org/doc/district-council/wyre,30/08/2023,Resources,Corporate and Democratic Core,131A,PR Chauffeuring Services,10/08/2023,RS151964,1419.00,Monthly chauffeuring fee - July 2023,Attendant Chauffeur Service
Wyre Council,http://opendatacommunities.org/doc/district-council/wyre,30/08/2023,People and Places,Environmental Services,132B,The Columbaria Company,11/08/2023,PE151965,60.00,REDACT,Plaque Inscriptions and Furniture
Wyre Council,http://opendatacommunities.org/doc/district-council/wyre,30/08/2023,People and Places,Environmental Services,132B,The Columbaria Company,11/08/2023,PE151661,60.00,REDACT,Plaque Inscriptions and Furniture
Wyre Council,http://opendatacommunities.org/doc/district-council/wyre,30/08/2023,People and Places,Environmental Services,132B,The Columbaria Company,11/08/2023,PE151965,540.00,REDACT,Plaque Inscriptions and Furniture
Wyre Council,http://opendatacommunities.org/doc/district-council/wyre,30/08/2023,People and Places,Support Services,135B,DLF Seeds LTD,17/08/2023,PE152073,205.20,"Supply and deliver   2 x 20kg PM90 @ 5.13/kg delivered.    Delivery to Wyre Council, Copse Road Depot, Copse Road, Fleetwood, FY7 6RP",Materials and Consumables
Wyre Council,http://opendatacommunities.org/doc/district-council/wyre,30/08/2023,People and Places,Support Services,135B,DLF Seeds LTD,17/08/2023,PE151908,208.40,Supply   2 x 20 kg  of PM25 @ 5.21 per kilo,Materials and Consumables
Wyre Council,http://opendatacommunities.org/doc/district-council/wyre,30/08/2023,People and Places,Support Services,135B,DLF Seeds LTD,17/08/2023,PE151908,262.20,"3 x 20kg PM80 @ 4.37 per kilo   Delivery to Wyre Council, Copse Road Depot, Copse Road, Fleetwood, FY7 6RP.",Materials and Consumables
Wyre Council,http://opendatacommunities.org/doc/district-council/wyre,30/08/2023,People and Places,Support Services,135B,DLF Seeds LTD,24/08/2023,PE152377,416.80,Supply and deliver4 bags of PM25 Grass seed @ 5.21 per kilo Delivery to: Wyre CouncilCopse Road DepotCopse Road FleetwoodFY7 6RP,Materials and Consumables
Wyre Council,http://opendatacommunities.org/doc/district-council/wyre,30/08/2023,People and Places,Planning and Development Servs,132C,EAS Electrical Mechanical,24/08/2023,PE152407,48.00,Fleetwood Market: Isolate power to automatic doors but unable to rehang as runners bent,Responsive Building Maintenance
Wyre Council,http://opendatacommunities.org/doc/district-council/wyre,30/08/2023,People and Places,Planning and Development Servs,132C,EAS Electrical Mechanical,30/08/2023,PE152441,62.03,"Fleetwood Market: investigate damaged light box and burnt out double socket. Isolate power, replace back box and socker front",Responsive Building Maintenance
Wyre Council,http://opendatacommunities.org/doc/district-council/wyre,30/08/2023,People and Places,Support Services,135B,EAS Electrical Mechanical,01/08/2023,PE151757,189.49,"Drain system, remove radiators and refill at Civic Centre",Responsive Building Maintenance
Wyre Council,http://opendatacommunities.org/doc/district-council/wyre,30/08/2023,People and Places,Support Services,135B,EAS Electrical Mechanical,01/08/2023,PE151747,150.10,Investigate leak on toilet at civic centre,Responsive Building Maintenance
Wyre Council,http://opendatacommunities.org/doc/district-council/wyre,30/08/2023,People and Places,Planning and Development Servs,132C,EAS Electrical Mechanical,07/08/2023,PE151821,2730.00,Copse Rd Depot: EICR,Planned Building Maintenance
Wyre Council,http://opendatacommunities.org/doc/district-council/wyre,30/08/2023,People and Places,Support Services,135B,EAS Electrical Mechanical,07/08/2023,PE151820,174.91,Civic Centre: remove exisiting wc and set aside for re-use to allow for flooring works,Responsive Building Maintenance
Wyre Council,http://opendatacommunities.org/doc/district-council/wyre,30/08/2023,People and Places,Planning and Development Servs,132C,EAS Electrical Mechanical,31/08/2023,PE152526,72.00,Fleetwood Market 36 Adelaide Street Fleetwood Lancashire England FY7 6AB,Responsive Building Maintenance
Wyre Council,http://opendatacommunities.org/doc/district-council/wyre,30/08/2023,People and Places,Cultural and Related Services,132A,EAS Electrical Mechanical,31/08/2023,PE152525,1663.30,Publick clock (Victoria Road West/Nutter Road) Victoria Road West Adjacent Nutter Road Thornton Cleveleys Lancashire FY5 1 DB,Responsive Building Maintenance
Wyre Council,http://opendatacommunities.org/doc/district-council/wyre,30/08/2023,People and Places,Support Services,135B,EK Motors Factors LTD,22/08/2023,PE152289,13.84,Parts,Materials and Consumables
Wyre Council,http://opendatacommunities.org/doc/district-council/wyre,30/08/2023,People and Places,Support Services,135B,EK Motors Factors LTD,22/08/2023,PE152302,5.80,Parts,Materials and Consumables
Wyre Council,http://opendatacommunities.org/doc/district-council/wyre,30/08/2023,People and Places,Support Services,135B,EK Motors Factors LTD,22/08/2023,PE152294,8.00,Parts,Materials and Consumables
Wyre Council,http://opendatacommunities.org/doc/district-council/wyre,30/08/2023,People and Places,Support Services,135B,EK Motors Factors LTD,22/08/2023,PE152295,12.00,Parts,Materials and Consumables
Wyre Council,http://opendatacommunities.org/doc/district-council/wyre,30/08/2023,People and Places,Environmental Services,132B,EK Motors Factors LTD,22/08/2023,PE152304,79.35,Parts,Daywork Materials (Excl.Tyres)
Wyre Council,http://opendatacommunities.org/doc/district-council/wyre,30/08/2023,People and Places,Environmental Services,132B,EK Motors Factors LTD,22/08/2023,PE152311,64.02,Parts,Daywork Materials (Excl.Tyres)
Wyre Council,http://opendatacommunities.org/doc/district-council/wyre,30/08/2023,People and Places,Support Services,135B,EK Motors Factors LTD,22/08/2023,PE152284,72.07,Parts,Fuel
Wyre Council,http://opendatacommunities.org/doc/district-council/wyre,30/08/2023,People and Places,Support Services,135B,EK Motors Factors LTD,22/08/2023,PE152302,16.00,Parts,Daywork Materials (Excl.Tyres)
Wyre Council,http://opendatacommunities.org/doc/district-council/wyre,30/08/2023,People and Places,Support Services,135B,EK Motors Factors LTD,22/08/2023,PE152287,5.59,Parts,Daywork Materials (Excl.Tyres)
Wyre Council,http://opendatacommunities.org/doc/district-council/wyre,30/08/2023,People and Places,Support Services,135B,EK Motors Factors LTD,22/08/2023,PE152286,5.59,Parts,Daywork Materials (Excl.Tyres)
Wyre Council,http://opendatacommunities.org/doc/district-council/wyre,30/08/2023,People and Places,Environmental Services,132B,EK Motors Factors LTD,22/08/2023,PE152305,9.66,Parts,Daywork Materials (Excl.Tyres)
Wyre Council,http://opendatacommunities.org/doc/district-council/wyre,30/08/2023,People and Places,Cultural and Related Services,132A,EK Motors Factors LTD,22/08/2023,PE152300,6.55,Parts,Daywork Materials (Excl.Tyres)
Wyre Council,http://opendatacommunities.org/doc/district-council/wyre,30/08/2023,People and Places,Cultural and Related Services,132A,EK Motors Factors LTD,22/08/2023,PE152299,13.38,Parts,Daywork Materials (Excl.Tyres)
Wyre Council,http://opendatacommunities.org/doc/district-council/wyre,30/08/2023,People and Places,Support Services,135B,EK Motors Factors LTD,22/08/2023,PE152296,103.50,Parts,Materials and Consumables
Wyre Council,http://opendatacommunities.org/doc/district-council/wyre,30/08/2023,People and Places,Environmental Services,132B,EK Motors Factors LTD,22/08/2023,PE152310,37.36,Parts,Daywork Materials (Excl.Tyres)
Wyre Council,http://opendatacommunities.org/doc/district-council/wyre,30/08/2023,People and Places,Environmental Services,132B,EK Motors Factors LTD,22/08/2023,PE152310,37.36,Parts,Daywork Materials (Excl.Tyres)
Wyre Council,http://opendatacommunities.org/doc/district-council/wyre,30/08/2023,People and Places,Environmental Services,132B,EK Motors Factors LTD,22/08/2023,PE152309,256.32,Parts,Daywork Materials (Excl.Tyres)
Wyre Council,http://opendatacommunities.org/doc/district-council/wyre,30/08/2023,People and Places,Environmental Services,132B,EK Motors Factors LTD,22/08/2023,PE152306,95.45,Parts,Daywork Materials (Excl.Tyres)
Wyre Council,http://opendatacommunities.org/doc/district-council/wyre,30/08/2023,People and Places,Support Services,135B,EK Motors Factors LTD,22/08/2023,PE152297,2.80,Parts,Daywork Materials (Excl.Tyres)
Wyre Council,http://opendatacommunities.org/doc/district-council/wyre,30/08/2023,People and Places,Support Services,135B,EK Motors Factors LTD,22/08/2023,PE152277,111.66,Parts,Fuel
Wyre Council,http://opendatacommunities.org/doc/district-council/wyre,30/08/2023,People and Places,Support Services,135B,EK Motors Factors LTD,22/08/2023,PE152301,72.07,Parts,Fuel
Wyre Council,http://opendatacommunities.org/doc/district-council/wyre,30/08/2023,People and Places,Environmental Services,132B,EK Motors Factors LTD,22/08/2023,PE152308,34.00,Parts,Daywork Materials (Excl.Tyres)
Wyre Council,http://opendatacommunities.org/doc/district-council/wyre,30/08/2023,People and Places,Environmental Services,132B,EK Motors Factors LTD,22/08/2023,PE152307,18.00,Parts,Daywork Materials (Excl.Tyres)
Wyre Council,http://opendatacommunities.org/doc/district-council/wyre,30/08/2023,People and Places,Cultural and Related Services,132A,EK Motors Factors LTD,22/08/2023,PE152303,148.29,Parts,Daywork Materials (Excl.Tyres)
Wyre Council,http://opendatacommunities.org/doc/district-council/wyre,30/08/2023,People and Places,Support Services,135B,FR Sharrock LTD,17/08/2023,PE151873,248.61,Parts,Daywork Materials (Excl.Tyres)
Wyre Council,http://opendatacommunities.org/doc/district-council/wyre,30/08/2023,People and Places,Support Services,135B,FR Sharrock LTD,17/08/2023,PE151872,610.73,Various Parts,Daywork Materials (Excl.Tyres)
Wyre Council,http://opendatacommunities.org/doc/district-council/wyre,30/08/2023,People and Places,Support Services,135B,FR Sharrock LTD,07/08/2023,PE151733,1091.48,Various parts,Daywork Materials (Excl.Tyres)
Wyre Council,http://opendatacommunities.org/doc/district-council/wyre,30/08/2023,People and Places,Support Services,135B,FR Sharrock LTD,07/08/2023,PE151734,281.38,Various parts,Daywork Materials (Excl.Tyres)
Wyre Council,http://opendatacommunities.org/doc/district-council/wyre,30/08/2023,People and Places,Support Services,135B,FR Sharrock LTD,07/08/2023,PE151733,440.61,Various parts,Daywork Materials (Excl.Tyres)
Wyre Council,http://opendatacommunities.org/doc/district-council/wyre,30/08/2023,People and Places,Support Services,135B,FR Sharrock LTD,07/08/2023,PE151735,592.65,Various parts,Daywork Materials (Excl.Tyres)
Wyre Council,http://opendatacommunities.org/doc/district-council/wyre,30/08/2023,People and Places,Highways,133B,Glasdon UK LTD,21/08/2023,PE152241,535.38,"Supply one black phoenix memorial bench with plaque.Plaque inscription to read In Memory of Ann Bardsleyfrom May 1959 to May 2023May Our Spirits will walk here alwaysPlease deliver bench to Copse Road Depot, Copse Road, Fleetwood.  Please",Seats and Shelters (Non BM)
Wyre Council,http://opendatacommunities.org/doc/district-council/wyre,30/08/2023,People and Places,"Cultural, Environ and Planning",137B,Halcrow Group LTD,22/08/2023,PE152270,1411.91,Current approved order based on agreed additional work. Authorised by Carl Green,Consultants Fees (New CCR)
Wyre Council,http://opendatacommunities.org/doc/district-council/wyre,30/08/2023,People and Places,Planning and Development Servs,132C,Hermolle Associates LTD,08/08/2023,PE151858,620.00,"Industrial Units, Butts Close: Proposed recladding roof to buildings and investigation of previous repair to fire damaged roof. Report, drawing and calculations submitted for client consideration",Responsive Building Maintenance
Wyre Council,http://opendatacommunities.org/doc/district-council/wyre,30/08/2023,People and Places,Support Services,135B,Hermolle Associates LTD,08/08/2023,PE151862,795.00,Civic Centre: Structural Engineer`s report of timber framed annexe building,Responsive Building Maintenance
Wyre Council,http://opendatacommunities.org/doc/district-council/wyre,30/08/2023,People and Places,Non Service Related Exp,137F,Hermolle Associates LTD,08/08/2023,PE151859,440.00,Copse Rd Ind Est:investigation of corrosion to columns to front elevation roller shutter doors of industrial units. Advice on damage and scheme of repair. Drawing indicating temp works and repair proposal,Contract (New CCR)
Wyre Council,http://opendatacommunities.org/doc/district-council/wyre,30/08/2023,Resources,Corporate and Democratic Core,131A,CIPFA Business LTD,24/08/2023,RS152060,885.00,"CIPFA audit training Cllrs Minto, Stirzaker and Rendell",Training - Non HR Controlled
Wyre Council,http://opendatacommunities.org/doc/district-council/wyre,30/08/2023,Resources,Support Services,135B,JGP Resourcing LTD,10/08/2023,RS151919,2677.44,JGP Fees appointment of Neil Turvey - Stage 3,Advertising - Recruitment
Wyre Council,http://opendatacommunities.org/doc/district-council/wyre,30/08/2023,Resources,Support Services,135B,Key Engineering & Hygiene Supplies LTD,30/08/2023,RS151491,16.48,ENSURE ALCOHOL BASED SANITISER 5 LITRE,Cleaning Materials
Wyre Council,http://opendatacommunities.org/doc/district-council/wyre,30/08/2023,Resources,Support Services,135B,Key Engineering & Hygiene Supplies LTD,30/08/2023,RS151491,14.34,LIQUID SPRAY POLISH 750ML TRIGGER SPRAY,Cleaning Materials
Wyre Council,http://opendatacommunities.org/doc/district-council/wyre,30/08/2023,Resources,Support Services,135B,Key Engineering & Hygiene Supplies LTD,30/08/2023,RS151491,171.85,BLUE INTERFOLD HAND TOWELS 3600 SHEETS,Cleaning Materials
Wyre Council,http://opendatacommunities.org/doc/district-council/wyre,30/08/2023,Resources,Support Services,135B,Key Engineering & Hygiene Supplies LTD,30/08/2023,RS151491,12.80,SAFE ZONE PLUS  5 LITRE,Cleaning Materials
Wyre Council,http://opendatacommunities.org/doc/district-council/wyre,30/08/2023,Resources,Support Services,135B,Key Engineering & Hygiene Supplies LTD,30/08/2023,RS151491,16.32,EVANS CYCLONE EXTRA THICK BLEACH 750ML,Cleaning Materials
Wyre Council,http://opendatacommunities.org/doc/district-council/wyre,30/08/2023,Resources,Support Services,135B,Key Engineering & Hygiene Supplies LTD,30/08/2023,RS151491,18.36,EAU-FRESH NON ACIDIC POT POURRI TOILET CLEANER/ 1 litre,Cleaning Materials
Wyre Council,http://opendatacommunities.org/doc/district-council/wyre,30/08/2023,Resources,Support Services,135B,Key Engineering & Hygiene Supplies LTD,30/08/2023,RS151491,12.36,VERSATILE HARD SURFACE CLEANER 5 LITRE,Cleaning Materials
Wyre Council,http://opendatacommunities.org/doc/district-council/wyre,30/08/2023,Resources,Support Services,135B,Key Engineering & Hygiene Supplies LTD,30/08/2023,RS151491,38.64,HERON MEDIUM BLACK REFUSE SACK 18X29X33 100G (200),Cleaning Materials
Wyre Council,http://opendatacommunities.org/doc/district-council/wyre,30/08/2023,Resources,Support Services,135B,Key Engineering & Hygiene Supplies LTD,30/08/2023,RS151491,3.80,20 x 15 Bleached Dishcloths,Cleaning Materials
Wyre Council,http://opendatacommunities.org/doc/district-council/wyre,30/08/2023,Resources,Support Services,135B,Key Engineering & Hygiene Supplies LTD,30/08/2023,RS151491,3.08,BLUE NITRILE POWDER FREE GLOVES LARGE,Cleaning Materials
Wyre Council,http://opendatacommunities.org/doc/district-council/wyre,30/08/2023,Resources,Support Services,135B,Key Engineering & Hygiene Supplies LTD,30/08/2023,RS151491,31.84,WHITE BIN LINERS,Cleaning Materials
Wyre Council,http://opendatacommunities.org/doc/district-council/wyre,30/08/2023,Resources,Support Services,135B,Key Engineering & Hygiene Supplies LTD,30/08/2023,RS151491,6.16,BLUE NITRILE GLOVES EXTRA LARGE,Cleaning Materials
Wyre Council,http://opendatacommunities.org/doc/district-council/wyre,30/08/2023,Resources,Support Services,135B,Key Engineering & Hygiene Supplies LTD,30/08/2023,RS151491,2.80,RED STRIPE DISH CLOTH EA,Cleaning Materials
Wyre Council,http://opendatacommunities.org/doc/district-council/wyre,30/08/2023,Resources,Support Services,135B,Key Engineering & Hygiene Supplies LTD,30/08/2023,RS151491,27.72,POT POURRI AIR FRESHENER,Cleaning Materials
Wyre Council,http://opendatacommunities.org/doc/district-council/wyre,30/08/2023,Resources,Support Services,135B,Key Engineering & Hygiene Supplies LTD,30/08/2023,RS151491,6.38,KEYPINE GENERAL DISINFECTANT 5LTR,Cleaning Materials
Wyre Council,http://opendatacommunities.org/doc/district-council/wyre,30/08/2023,Resources,Support Services,135B,Key Engineering & Hygiene Supplies LTD,30/08/2023,RS151491,12.30,CLEAR WINDOW CLEANER 750ML,Cleaning Materials
Wyre Council,http://opendatacommunities.org/doc/district-council/wyre,30/08/2023,Resources,Support Services,135B,Key Engineering & Hygiene Supplies LTD,30/08/2023,RS151491,7.52,EVANS FOAMING LEMON SOAP 5L,Cleaning Materials
Wyre Council,http://opendatacommunities.org/doc/district-council/wyre,30/08/2023,Resources,Support Services,135B,Key Engineering & Hygiene Supplies LTD,30/08/2023,RS151491,31.08,SOFTLUX 3 PLY TOILET ROLL(10 X 4),Cleaning Materials
Wyre Council,http://opendatacommunities.org/doc/district-council/wyre,30/08/2023,Resources,Support Services,135B,Key Engineering & Hygiene Supplies LTD,30/08/2023,RS151491,12.29,852438 BLUE 2 PLY BLUE CENTRE FEED ROLLS 150M X 175MM (6 ROLL PACK),Cleaning Materials
Wyre Council,http://opendatacommunities.org/doc/district-council/wyre,30/08/2023,Resources,Support Services,135B,Key Engineering & Hygiene Supplies LTD,30/08/2023,RS151823,103.60,SOFTLUX 3 PLY TOILET ROLL(10 X 4),Cleaning Materials
Wyre Council,http://opendatacommunities.org/doc/district-council/wyre,30/08/2023,People and Places,Planning and Development Servs,132C,Key Engineering & Hygiene Supplies LTD,30/08/2023,PE152243,16.16,xxl - black polo shirt with Wyre Council logo,Uniforms
Wyre Council,http://opendatacommunities.org/doc/district-council/wyre,30/08/2023,People and Places,Planning and Development Servs,132C,Key Engineering & Hygiene Supplies LTD,30/08/2023,PE150938,3.19,KEYPINE GENERAL DISINFECTANT 5LTR,Cleaning Materials
Wyre Council,http://opendatacommunities.org/doc/district-council/wyre,30/08/2023,People and Places,Planning and Development Servs,132C,Key Engineering & Hygiene Supplies LTD,30/08/2023,PE152122,30.02,SEALTEX  JACKET NAVY  SIZE XL,Uniforms
Wyre Council,http://opendatacommunities.org/doc/district-council/wyre,30/08/2023,People and Places,Support Services,135B,Key Engineering & Hygiene Supplies LTD,10/08/2023,PE151933,40.26,Supply and deliver clothing as per quotation 19618,Protective Clothing
Wyre Council,http://opendatacommunities.org/doc/district-council/wyre,30/08/2023,People and Places,Planning and Development Servs,132C,Key Engineering & Hygiene Supplies LTD,18/08/2023,PE152116,37.60,Leather Brogues with steel toecap Size 9,Purchase of Tools or Equipment
Wyre Council,http://opendatacommunities.org/doc/district-council/wyre,30/08/2023,People and Places,Cultural and Related Services,132A,Key Engineering & Hygiene Supplies LTD,22/08/2023,PE152167,21.52,ENSURE ALCOHOL SANITISER 750ML,Cleaning Materials
Wyre Council,http://opendatacommunities.org/doc/district-council/wyre,30/08/2023,People and Places,Cultural and Related Services,132A,Key Engineering & Hygiene Supplies LTD,22/08/2023,PE152167,211.70,EXTRA STRONG BLACK REFUSE SACK 18X29X39 180G 90LTR (PER 200),Cleaning Materials
Wyre Council,http://opendatacommunities.org/doc/district-council/wyre,30/08/2023,People and Places,Cultural and Related Services,132A,Key Engineering & Hygiene Supplies LTD,22/08/2023,PE152167,18.60,SANTEEM RTU ODOURLESS CLEANER + SANITISER 750ML,Cleaning Materials
Wyre Council,http://opendatacommunities.org/doc/district-council/wyre,30/08/2023,People and Places,Cultural and Related Services,132A,Key Engineering & Hygiene Supplies LTD,22/08/2023,PE152167,3.57,Thickened Bleach 5 ltr,Cleaning Materials
Wyre Council,http://opendatacommunities.org/doc/district-council/wyre,30/08/2023,People and Places,Planning and Development Servs,132C,Key Engineering & Hygiene Supplies LTD,18/08/2023,PE152168,18.25,BLUE VINYL DISPOSB GLOVES POWDERED XL PER100 BLUE,Cleaning Materials
Wyre Council,http://opendatacommunities.org/doc/district-council/wyre,30/08/2023,People and Places,Planning and Development Servs,132C,Key Engineering & Hygiene Supplies LTD,18/08/2023,PE152168,7.08,BLUE MARIGOLD GLOVES LARGE EA,Cleaning Materials
Wyre Council,http://opendatacommunities.org/doc/district-council/wyre,30/08/2023,People and Places,Planning and Development Servs,132C,Key Engineering & Hygiene Supplies LTD,18/08/2023,PE152169,24.72,Versatile floor Cleaner 5 Litre,Cleaning Materials
Wyre Council,http://opendatacommunities.org/doc/district-council/wyre,30/08/2023,People and Places,Planning and Development Servs,132C,Key Engineering & Hygiene Supplies LTD,18/08/2023,PE152123,30.02,SEALTEX  JACKET NAVY  SIZE XL,Uniforms
Wyre Council,http://opendatacommunities.org/doc/district-council/wyre,30/08/2023,Resources,Cultural and Related Services,132A,Key Engineering & Hygiene Supplies LTD,24/08/2023,RS152410,62.18,Discover Wyre hoodies and t-shirts,Advertising - General
Wyre Council,http://opendatacommunities.org/doc/district-council/wyre,30/08/2023,People and Places,Environmental Services,132B,Key Engineering & Hygiene Supplies LTD,10/08/2023,PE151960,883.00,delivery of 50 boxes blue bag,"Provision of Bins, Boxes and Sacks"
Wyre Council,http://opendatacommunities.org/doc/district-council/wyre,30/08/2023,People and Places,Planning and Development Servs,132C,Key Engineering & Hygiene Supplies LTD,15/08/2023,PE152002,8.16,THICKENED BLEACH 750ML,Cleaning Materials
Wyre Council,http://opendatacommunities.org/doc/district-council/wyre,30/08/2023,People and Places,Planning and Development Servs,132C,Key Engineering & Hygiene Supplies LTD,15/08/2023,PE152002,6.38,KEYPINE GENERAL DISINFECTANT 5LTR,Cleaning Materials
Wyre Council,http://opendatacommunities.org/doc/district-council/wyre,30/08/2023,People and Places,Planning and Development Servs,132C,Key Engineering & Hygiene Supplies LTD,15/08/2023,PE152002,5.56,FLASH LIQUID 500ML,Cleaning Materials
Wyre Council,http://opendatacommunities.org/doc/district-council/wyre,30/08/2023,People and Places,Planning and Development Servs,132C,Key Engineering & Hygiene Supplies LTD,15/08/2023,PE152002,12.36,FRESH AIR + FABRIC AEROSOL 400ML,Cleaning Materials
Wyre Council,http://opendatacommunities.org/doc/district-council/wyre,30/08/2023,People and Places,Planning and Development Servs,132C,Key Engineering & Hygiene Supplies LTD,15/08/2023,PE152002,10.36,WHITE 2PLY LUXURY TOILET ROLL 320 40 PER PACK,Cleaning Materials
Wyre Council,http://opendatacommunities.org/doc/district-council/wyre,30/08/2023,People and Places,Planning and Development Servs,132C,Key Engineering & Hygiene Supplies LTD,15/08/2023,PE152002,17.76,SUPERIOR WASHING UP LIQUID 5 LTR,Cleaning Materials
Wyre Council,http://opendatacommunities.org/doc/district-council/wyre,30/08/2023,People and Places,Planning and Development Servs,132C,Key Engineering & Hygiene Supplies LTD,15/08/2023,PE152002,10.11,2PLY WHITE TOILET ROLLS 320SHEETS 36PER CASE,Cleaning Materials
Wyre Council,http://opendatacommunities.org/doc/district-council/wyre,30/08/2023,People and Places,Planning and Development Servs,132C,Key Engineering & Hygiene Supplies LTD,15/08/2023,PE152002,17.22,STRONG BLACK REFUSE SACK 18X29X34 160G (PER 200),Cleaning Materials
Wyre Council,http://opendatacommunities.org/doc/district-council/wyre,30/08/2023,People and Places,Planning and Development Servs,132C,Key Engineering & Hygiene Supplies LTD,24/08/2023,PE151662,73.74,"Supply and deliver as per quotation 19905  Delivery to Wyre Council, Copse Road Depot, Copse Road, Fleetwood, FY7 6RP.",Cleaning Materials
Wyre Council,http://opendatacommunities.org/doc/district-council/wyre,30/08/2023,People and Places,Environmental Services,132B,Key Engineering & Hygiene Supplies LTD,16/08/2023,PE152114,147.28,Supply and deliver as per quotation 20168,Cleaning Materials
Wyre Council,http://opendatacommunities.org/doc/district-council/wyre,30/08/2023,People and Places,Support Services,135B,Key Engineering & Hygiene Supplies LTD,16/08/2023,PE152114,40.04,Supply and deliver as per quotation 20168,Materials and Consumables
Wyre Council,http://opendatacommunities.org/doc/district-council/wyre,30/08/2023,People and Places,Support Services,135B,Key Engineering & Hygiene Supplies LTD,24/08/2023,PE151662,142.70,"Supply and deliver as per quotation 19905  Delivery to Wyre Council, Copse Road Depot, Copse Road, Fleetwood, FY7 6RP.",Materials and Consumables
Wyre Council,http://opendatacommunities.org/doc/district-council/wyre,30/08/2023,People and Places,Environmental Services,132B,Key Engineering & Hygiene Supplies LTD,17/08/2023,PE151981,39.24,"Supply Clothing as per quotation 19951  Delivery to Wyre Council, Copse Road Depot, Copse Road, Fleetwood, FY7 6RP.",Protective Clothing
Wyre Council,http://opendatacommunities.org/doc/district-council/wyre,30/08/2023,People and Places,Environmental Services,132B,Key Engineering & Hygiene Supplies LTD,17/08/2023,PE151931,400.05,"Supply Clothing as per quotation 19951  Delivery to Wyre Council, Copse Road Depot, Copse Road, Fleetwood, FY7 6RP.",Protective Clothing
Wyre Council,http://opendatacommunities.org/doc/district-council/wyre,30/08/2023,People and Places,Environmental Services,132B,Key Engineering & Hygiene Supplies LTD,17/08/2023,PE151931,384.13,"Supply Clothing as per quotation 19951  Delivery to Wyre Council, Copse Road Depot, Copse Road, Fleetwood, FY7 6RP.",Protective Clothing
Wyre Council,http://opendatacommunities.org/doc/district-council/wyre,30/08/2023,People and Places,Environmental Services,132B,Key Engineering & Hygiene Supplies LTD,14/08/2023,PE151980,203.56,"Supply Clothing as per quotation 19951  Delivery to Wyre Council, Copse Road Depot, Copse Road, Fleetwood, FY7 6RP.",Protective Clothing
Wyre Council,http://opendatacommunities.org/doc/district-council/wyre,30/08/2023,Resources,Support Services,135B,Konica Minolta Business Solutions UK LTD,31/08/2023,RS152462,740.93,bizhub PRO 110/A799021001634 01.06.2023-31.08.2023 @ wyre council civic centre bizhun C458/A79M021038576 01.06.2023- 31.08.2023 @ Civic centre,Hire of Tools or Equipment
Wyre Council,http://opendatacommunities.org/doc/district-council/wyre,30/08/2023,Resources,Support Services,135B,Konica Minolta Business Solutions UK LTD,31/08/2023,RS152450,1510.65,Bizhub C300i - Equipment numbers 182,Hire of Tools or Equipment
Wyre Council,http://opendatacommunities.org/doc/district-council/wyre,30/08/2023,People and Places,Environmental Services,132B,Lancashire DAF,23/08/2023,PE152159,498.61,Wiper Mech,Daywork Materials (Excl.Tyres)
Wyre Council,http://opendatacommunities.org/doc/district-council/wyre,30/08/2023,People and Places,Environmental Services,132B,Lancashire DAF,01/08/2023,PE151483,1232.86,various goods already received on 1767977,Daywork Materials (Excl.Tyres)
Wyre Council,http://opendatacommunities.org/doc/district-council/wyre,30/08/2023,Resources,Support Services,135B,Lancashire County Council,08/08/2023,RS151855,200.00,Approved Premises License Fee - Wyre Civic Centre - Poulton,Wedding Licence Fee
Wyre Council,http://opendatacommunities.org/doc/district-council/wyre,30/08/2023,People and Places,Cultural and Related Services,132A,Lancashire County Council,10/08/2023,PE151961,200.00,Approved Premises Annual Fee - Mount Pavilion,Licences
Wyre Council,http://opendatacommunities.org/doc/district-council/wyre,30/08/2023,Resources,Support Services,135B,Lancashire County Council,01/08/2023,RS151697,9261.00,LCC GIS Services Contract 01/04/23 - 31/03/24,Software Maintenance
Wyre Council,http://opendatacommunities.org/doc/district-council/wyre,30/08/2023,Resources,Central Services to the Public,131C,Lancashire County Council,21/08/2023,RS152260,561.00,Wyre Council Con29 Searches for June 2023 - 33 @ 17.00 each,L.C.C. Search Fees
Wyre Council,http://opendatacommunities.org/doc/district-council/wyre,30/08/2023,Resources,Central Services to the Public,131C,Lancashire County Council,21/08/2023,RS152259,612.00,Wyre Council Con29 Searches for May 2023 - 36 @ 17.00 each,L.C.C. Search Fees
Wyre Council,http://opendatacommunities.org/doc/district-council/wyre,30/08/2023,People and Places,Support Services,135B,Lyreco UK LTD,10/08/2023,PE151968,142.92,Adhesive backed laminating pouches Biro`s,Stationery
Wyre Council,http://opendatacommunities.org/doc/district-council/wyre,30/08/2023,People and Places,Support Services,135B,Lyreco UK LTD,02/08/2023,PE151778,972.00,A4 Copier Paper,Stationery
Wyre Council,http://opendatacommunities.org/doc/district-council/wyre,30/08/2023,People and Places,Support Services,135B,Malcolm McCulloch & Sons LTD,25/08/2023,PE152416,542.78,Materials  Transport,Materials and Consumables
Wyre Council,http://opendatacommunities.org/doc/district-council/wyre,30/08/2023,People and Places,Support Services,135B,Malcolm McCulloch & Sons LTD,25/08/2023,PE152417,129.75,Materials,Materials and Consumables
Wyre Council,http://opendatacommunities.org/doc/district-council/wyre,30/08/2023,People and Places,Environmental Services,132B,Malcolm McCulloch & Sons LTD,25/08/2023,PE152416,111.60,8 packs of toilet rolls,Cleaning Materials
Wyre Council,http://opendatacommunities.org/doc/district-council/wyre,30/08/2023,People and Places,Support Services,135B,Malcolm McCulloch & Sons LTD,25/08/2023,PE152416,1021.88,Materials  Transport,Materials and Consumables
Wyre Council,http://opendatacommunities.org/doc/district-council/wyre,30/08/2023,People and Places,Support Services,135B,Malcolm McCulloch & Sons LTD,25/08/2023,PE152417,1390.22,Materials,Materials and Consumables
Wyre Council,http://opendatacommunities.org/doc/district-council/wyre,30/08/2023,People and Places,Planning and Development Servs,132C,Malcolm McCulloch & Sons LTD,25/08/2023,PE152416,96.00,8 packs of centre feed rolls,Cleaning Materials
Wyre Council,http://opendatacommunities.org/doc/district-council/wyre,30/08/2023,People and Places,Planning and Development Servs,132C,Suez Recycling And Recovery UK LTD,03/08/2023,PE151770,1184.23,waste removal market suez,Refuse Collection
Wyre Council,http://opendatacommunities.org/doc/district-council/wyre,30/08/2023,Resources,Support Services,135B,NEC Software Solutions UK Limited,30/08/2023,RS152439,15000.00,"Contract reference number:CAT: 4373Supplier reference number: CRM: 113774NEC Document Management software to be hosted in the Supplier cloudYear One ChargesNEC Document ManagementSoftware                    21,250 on Contract Signature",Software Maintenance
Wyre Council,http://opendatacommunities.org/doc/district-council/wyre,30/08/2023,People and Places,Support Services,135B, Travis Perkins Trading CO LTD,24/08/2023,PE152201,950.60,Postcrete,Materials and Consumables
Wyre Council,http://opendatacommunities.org/doc/district-council/wyre,30/08/2023,People and Places,Support Services,135B,Wicksteed Leisure LTD,30/08/2023,PE152471,3.31,2611-035 Plastic Cap For Speedway,Playground Equipment
Wyre Council,http://opendatacommunities.org/doc/district-council/wyre,30/08/2023,People and Places,Support Services,135B,Wicksteed Leisure LTD,30/08/2023,PE152471,8.58,2691-004 1/4`` Grease Nipple,Playground Equipment
Wyre Council,http://opendatacommunities.org/doc/district-council/wyre,30/08/2023,People and Places,Support Services,135B,Wicksteed Leisure LTD,30/08/2023,PE152471,281.60,BS45 Swing Hanger c/w Oilite Bush and Shackle,Playground Equipment
Wyre Council,http://opendatacommunities.org/doc/district-council/wyre,30/08/2023,People and Places,Support Services,135B,Wicksteed Leisure LTD,30/08/2023,PE152471,41.14,BS45 Swing Hanger c/w Olite Bush and Shackle,Playground Equipment
Wyre Council,http://opendatacommunities.org/doc/district-council/wyre,30/08/2023,People and Places,Support Services,135B,Wicksteed Leisure LTD,30/08/2023,PE152471,66.55,Parts as per Quotation WLLQ8098-03  2546-009 Bearing (33206),Playground Equipment
Wyre Council,http://opendatacommunities.org/doc/district-council/wyre,30/08/2023,People and Places,Support Services,135B,Wicksteed Leisure LTD,30/08/2023,PE152471,101.64,2546-010 Bearing (33012),Playground Equipment
Wyre Council,http://opendatacommunities.org/doc/district-council/wyre,30/08/2023,People and Places,Support Services,135B,Wicksteed Leisure LTD,30/08/2023,PE152471,7.26,3032-038 Tea Cup Twister Spacer,Playground Equipment
Wyre Council,http://opendatacommunities.org/doc/district-council/wyre,30/08/2023,People and Places,Support Services,135B,Wicksteed Leisure LTD,30/08/2023,PE152471,14.52,2193-057 M24 Castle Nut,Playground Equipment
Wyre Council,http://opendatacommunities.org/doc/district-council/wyre,30/08/2023,People and Places,Support Services,135B,Wicksteed Leisure LTD,30/08/2023,PE152471,0.55,2221-008 3/16`` x 2`` Split Pin,Playground Equipment
Wyre Council,http://opendatacommunities.org/doc/district-council/wyre,30/08/2023,Resources,Current Assets,130B,Whistl Uk Limited,30/08/2023,RS152500,624.68,Postal charges 01/04/2023-31/03/2024,Stores Purchases
Wyre Council,http://opendatacommunities.org/doc/district-council/wyre,30/08/2023,Resources,Current Assets,130B,Whistl Uk Limited,09/08/2023,RS151889,721.19,Postal charges 01/04/2023-31/03/2024,Stores Purchases
Wyre Council,http://opendatacommunities.org/doc/district-council/wyre,30/08/2023,Resources,Current Assets,130B,Whistl Uk Limited,01/08/2023,RS151749,303.72,Postal charges 01/04/2023-31/03/2024,Stores Purchases
Wyre Council,http://opendatacommunities.org/doc/district-council/wyre,30/08/2023,Resources,Current Assets,130B,Whistl Uk Limited,16/08/2023,RS152063,682.35,Postal charges 01/04/2023-31/03/2024,Stores Purchases
Wyre Council,http://opendatacommunities.org/doc/district-council/wyre,30/08/2023,Resources,Current Assets,130B,Whistl Uk Limited,16/08/2023,RS152063,1.60,Postal charges 01/04/2023-31/03/2024,Stores Purchases
Wyre Council,http://opendatacommunities.org/doc/district-council/wyre,30/08/2023,People and Places,Support Services,135B,Ryder Partnership Limited,23/08/2023,PE152354,915.00,"Confirmation order as attached Training Booking Form IOSH Working Safely Training Tuesday 20th June 20238.00am - 16:00pmLocation: Fleetwood Depot, Copse Road, Fleetwood, FY7 6RPTraining fee: 49512 delegates to attend @ 35.00 per delegae = 4",Post Entry/Professional Training
Wyre Council,http://opendatacommunities.org/doc/district-council/wyre,30/08/2023,People and Places,Public Transport,133G,Wyre Marine Services,14/08/2023,PE151983,9518.34,Fleetwood - Knott End Ferry ServiceSchedule of payments April - Sep 202312 Apr 2023 - 11 May 2023 = 9518.3312 May 2023 - 11 Jun 2023 = 9518.3312 Jun 2023 - 11 Jul 2023 = 9518.3312 Jul 2023 - 11 Aug  2023 = 9518.3312 Aug 2023 - 11 Sep 202,Private Contractors
Wyre Council,http://opendatacommunities.org/doc/district-council/wyre,30/08/2023,People and Places,Cultural and Related Services,132A,Food For Thought,21/08/2023,PE152222,672.00,Food - TDCI VIPs,Catering
Wyre Council,http://opendatacommunities.org/doc/district-council/wyre,30/08/2023,People and Places,Cultural and Related Services,132A,Food For Thought,22/08/2023,PE152313,150.00,Catering for wedding 26/8/23,Catering
Wyre Council,http://opendatacommunities.org/doc/district-council/wyre,30/08/2023,People and Places,Cultural and Related Services,132A,M J Wilkinson,18/08/2023,PE152187,1250.00,Hire of long reach excavator including transport and driver.  Banksman and rubber tyres to allow the machine to be unloaded and tracked ont he tarmac on 24/7/23Timesheet no: 9598/11091,Hire of Tools or Equipment
Wyre Council,http://opendatacommunities.org/doc/district-council/wyre,30/08/2023,People and Places,Cultural and Related Services,132A,M J Wilkinson,18/08/2023,PE152190,3495.00,Delivery of Clay and Top soil to King Georges Playing Fields See tickets for various dates,Barrier Security
Wyre Council,http://opendatacommunities.org/doc/district-council/wyre,30/08/2023,People and Places,Cultural and Related Services,132A,M J Wilkinson,18/08/2023,PE152189,937.95,Hitachi ZX85 Excavator 10/7/23 - 14/7/23Time sheet 11089,Barrier Security
Wyre Council,http://opendatacommunities.org/doc/district-council/wyre,30/08/2023,People and Places,Cultural and Related Services,132A,M J Wilkinson,18/08/2023,PE152189,250.00,Tilting Bucket to fit 8T Excavator 10/7/23 - 14/7/23Time sheet 9596,Barrier Security
Wyre Council,http://opendatacommunities.org/doc/district-council/wyre,30/08/2023,People and Places,Cultural and Related Services,132A,M J Wilkinson,18/08/2023,PE152189,200.00,Compactor Plate for 8T10/7/23 - 14/7/23Time sheet 9596,Barrier Security
Wyre Council,http://opendatacommunities.org/doc/district-council/wyre,30/08/2023,People and Places,Cultural and Related Services,132A,M J Wilkinson,18/08/2023,PE152189,781.07,Thwaites 3T Dumper 10/7/23 - 14/7/23Time sheet 9596,Barrier Security
Wyre Council,http://opendatacommunities.org/doc/district-council/wyre,30/08/2023,People and Places,Cultural and Related Services,132A,M J Wilkinson,18/08/2023,PE152189,264.05,Hitachi ZX27 Excavator 10/7/23 - 14/7/23King Georges Playing Field,Barrier Security
Wyre Council,http://opendatacommunities.org/doc/district-council/wyre,30/08/2023,People and Places,Cultural and Related Services,132A,M J Wilkinson,18/08/2023,PE152188,811.20,Hitachi ZX85 Excavator 17/7/23 - 21/7/23Time sheet 11090,Barrier Security
Wyre Council,http://opendatacommunities.org/doc/district-council/wyre,30/08/2023,People and Places,Cultural and Related Services,132A,M J Wilkinson,18/08/2023,PE152188,200.00,Tilting bucket to fit 8T excavator 17/7/23 - 20/7/23Ticket no 9597,Barrier Security
Wyre Council,http://opendatacommunities.org/doc/district-council/wyre,30/08/2023,People and Places,Cultural and Related Services,132A,M J Wilkinson,18/08/2023,PE152188,160.00,Compactor Plate for 8T 17/7/23 - 20/7/23 Time sheet 9597,Barrier Security
Wyre Council,http://opendatacommunities.org/doc/district-council/wyre,30/08/2023,People and Places,Cultural and Related Services,132A,M J Wilkinson,18/08/2023,PE152188,168.88,Thwaites 3T Dumper 17/7/23 - 17/7/23Time sheet 9597,Barrier Security
Wyre Council,http://opendatacommunities.org/doc/district-council/wyre,30/08/2023,People and Places,Cultural and Related Services,132A,M J Wilkinson,18/08/2023,PE152188,52.81,Hitachi ZX27 Excavator 17/7/23 - 17/7/23,Barrier Security
Wyre Council,http://opendatacommunities.org/doc/district-council/wyre,30/08/2023,People and Places,Cultural and Related Services,132A,M J Wilkinson,18/08/2023,PE152188,66.00,Labour 21/7/23 - 21/7/23,Barrier Security
Wyre Council,http://opendatacommunities.org/doc/district-council/wyre,30/08/2023,People and Places,Cultural and Related Services,132A,M J Wilkinson,18/08/2023,PE152188,26.41,Collection charge,Barrier Security
Wyre Council,http://opendatacommunities.org/doc/district-council/wyre,30/08/2023,People and Places,Cultural and Related Services,132A,M J Wilkinson,18/08/2023,PE152188,26.41,Collection charge 3T MachineKing Georges playing Fields,Barrier Security
Wyre Council,http://opendatacommunities.org/doc/district-council/wyre,30/08/2023,People and Places,Cultural and Related Services,132A,M J Wilkinson,18/08/2023,PE152184,120.00,Compactor Plate for 8T 26/7/23 - 28/7/23King Georges Playing Fields,Barrier Security
Wyre Council,http://opendatacommunities.org/doc/district-council/wyre,30/08/2023,People and Places,Cultural and Related Services,132A,M J Wilkinson,18/08/2023,PE152182,781.07,Thwaites 3T Dumper26/6/23 - 30/6/23Time sheet 11086,Barrier Security
Wyre Council,http://opendatacommunities.org/doc/district-council/wyre,30/08/2023,People and Places,Cultural and Related Services,132A,M J Wilkinson,18/08/2023,PE152182,264.05,Hitachi ZX27 Excavator 26/6/23 - 30/6/23Time sheet 11086,Barrier Security
Wyre Council,http://opendatacommunities.org/doc/district-council/wyre,30/08/2023,People and Places,Cultural and Related Services,132A,M J Wilkinson,18/08/2023,PE152182,937.95,Hitach ZX85 Excavator26/6/23 - 30/6/23Time sheet 11085,Barrier Security
Wyre Council,http://opendatacommunities.org/doc/district-council/wyre,30/08/2023,People and Places,Cultural and Related Services,132A,M J Wilkinson,18/08/2023,PE152182,250.00,Tilting bucket to fit 8T Excavator 26/6/23 - 30/6/23,Barrier Security
Wyre Council,http://opendatacommunities.org/doc/district-council/wyre,30/08/2023,People and Places,Cultural and Related Services,132A,M J Wilkinson,18/08/2023,PE152182,200.00,Compactor Plate for 8T 26/6/23 - 30/06/23Kind Georges Playing fields,Barrier Security
Wyre Council,http://opendatacommunities.org/doc/district-council/wyre,30/08/2023,People and Places,Cultural and Related Services,132A,M J Wilkinson,18/08/2023,PE152183,330.00,Labour 19/6/23 - 21/6/23Time sheet 11083,Barrier Security
Wyre Council,http://opendatacommunities.org/doc/district-council/wyre,30/08/2023,People and Places,Cultural and Related Services,132A,M J Wilkinson,18/08/2023,PE152183,329.55,Hitachi ZX85 Excavator 22/6/23 - 23/6/23Tme sheet 11083,Barrier Security
Wyre Council,http://opendatacommunities.org/doc/district-council/wyre,30/08/2023,People and Places,Cultural and Related Services,132A,M J Wilkinson,18/08/2023,PE152183,274.43,Thwaites 3T Dumper 22/6/23 - 23/6/23Time sheet 11084,Barrier Security
Wyre Council,http://opendatacommunities.org/doc/district-council/wyre,30/08/2023,People and Places,Cultural and Related Services,132A,M J Wilkinson,18/08/2023,PE152183,105.62,Hitachi ZX27 Excavator22/6/23 - 23/6/23,Barrier Security
Wyre Council,http://opendatacommunities.org/doc/district-council/wyre,30/08/2023,People and Places,Cultural and Related Services,132A,M J Wilkinson,18/08/2023,PE152183,200.00,Compactor Plate for 8T19/6/23 - 23/6/23,Barrier Security
Wyre Council,http://opendatacommunities.org/doc/district-council/wyre,30/08/2023,People and Places,Cultural and Related Services,132A,M J Wilkinson,18/08/2023,PE152183,250.00,Tilting bucket to fit 8T Excavator 19/6/23 - 23/6/23,Barrier Security
Wyre Council,http://opendatacommunities.org/doc/district-council/wyre,30/08/2023,People and Places,Cultural and Related Services,132A,M J Wilkinson,18/08/2023,PE152183,68.65,"Delivery chargefor 8T Machine, tilting bucket and Compactor Plate",Barrier Security
Wyre Council,http://opendatacommunities.org/doc/district-council/wyre,30/08/2023,People and Places,Cultural and Related Services,132A,M J Wilkinson,18/08/2023,PE152183,26.41,Delivery charge for ZX27,Barrier Security
Wyre Council,http://opendatacommunities.org/doc/district-council/wyre,30/08/2023,People and Places,Cultural and Related Services,132A,M J Wilkinson,18/08/2023,PE152183,26.41,Delivery charge for 3T Dumper King Georges playing Fields,Barrier Security
Wyre Council,http://opendatacommunities.org/doc/district-council/wyre,30/08/2023,People and Places,Cultural and Related Services,132A,M J Wilkinson,18/08/2023,PE152186,937.95,Hitachi ZX85 Excavator 3/7/23 - 7/7/23Time sheet 11087,Barrier Security
Wyre Council,http://opendatacommunities.org/doc/district-council/wyre,30/08/2023,People and Places,Support Services,135B,M J Wilkinson,18/08/2023,PE152185,316.80,Labour 5/6/23 - 5/6/23Time sheet 11079,Agency Staff
Wyre Council,http://opendatacommunities.org/doc/district-council/wyre,30/08/2023,People and Places,Environmental Services,132B,M J Wilkinson,18/08/2023,PE152194,473.12,Hitachi ZX130LCN Excavator12/6/23 - 13/6/23Time sheet 11081,Vehicle Hire
Wyre Council,http://opendatacommunities.org/doc/district-council/wyre,30/08/2023,People and Places,Environmental Services,132B,M J Wilkinson,18/08/2023,PE152194,443.31,Hitachi ZX26 Excavator 14/6/23 - 16/6/23Time sheet 11081,Vehicle Hire
Wyre Council,http://opendatacommunities.org/doc/district-council/wyre,30/08/2023,People and Places,Environmental Services,132B,M J Wilkinson,18/08/2023,PE152194,26.41,Delivery charge,Vehicle Hire
Wyre Council,http://opendatacommunities.org/doc/district-council/wyre,30/08/2023,People and Places,Environmental Services,132B,M J Wilkinson,18/08/2023,PE152194,26.41,Collection charge,Vehicle Hire
Wyre Council,http://opendatacommunities.org/doc/district-council/wyre,30/08/2023,People and Places,Environmental Services,132B,M J Wilkinson,18/08/2023,PE152192,304.16,Hitachi ZX19 Excavator7/6/23 - 8/6/23Time sheet 11080,Vehicle Hire
Wyre Council,http://opendatacommunities.org/doc/district-council/wyre,30/08/2023,People and Places,Environmental Services,132B,M J Wilkinson,18/08/2023,PE152195,100.00,Charge for aborted journey looking for the boat,Private Contractors
Wyre Council,http://opendatacommunities.org/doc/district-council/wyre,30/08/2023,People and Places,Support Services,135B,M J Wilkinson,18/08/2023,PE152192,66.00,Labour 9/6/23 - 9/6/23Time sheet 11080,Agency Staff
Wyre Council,http://opendatacommunities.org/doc/district-council/wyre,30/08/2023,People and Places,Environmental Services,132B,M J Wilkinson,18/08/2023,PE152193,350.00,Collection of seal from Preesall on 7/7/23,Hazardous Waste Disposal
Wyre Council,http://opendatacommunities.org/doc/district-council/wyre,30/08/2023,People and Places,Environmental Services,132B,M J Wilkinson,18/08/2023,PE152191,300.00,Hire of Telehandler to collect horse from Fleetwood beach back to yard,Hazardous Waste Disposal
Wyre Council,http://opendatacommunities.org/doc/district-council/wyre,30/08/2023,People and Places,Cultural and Related Services,132A,M J Wilkinson,18/08/2023,PE152186,250.00,Tilting bucket to fit 8T Excavator3/7/23 - 9/7/23 Time sheet 11088,Barrier Security
Wyre Council,http://opendatacommunities.org/doc/district-council/wyre,30/08/2023,People and Places,Cultural and Related Services,132A,M J Wilkinson,18/08/2023,PE152186,200.00,Compactor Plate for 8T 3/7/23 - 7/7/23 Time sheet 11088,Barrier Security
Wyre Council,http://opendatacommunities.org/doc/district-council/wyre,30/08/2023,People and Places,Cultural and Related Services,132A,M J Wilkinson,18/08/2023,PE152186,781.07,Thwaites 3T dumper3/7/23 - 7/7/23Time sheet 11088,Barrier Security
Wyre Council,http://opendatacommunities.org/doc/district-council/wyre,30/08/2023,People and Places,Cultural and Related Services,132A,M J Wilkinson,18/08/2023,PE152186,264.05,Hitachi ZX27 Excavator 3/7/23 - 7/7/23King Georges Playing Field,Barrier Security
Wyre Council,http://opendatacommunities.org/doc/district-council/wyre,30/08/2023,People and Places,Cultural and Related Services,132A,M J Wilkinson,18/08/2023,PE152184,532.35,Hitachi ZX85 Excavator 26/7/23 - 28/7/23,Barrier Security
Wyre Council,http://opendatacommunities.org/doc/district-council/wyre,30/08/2023,People and Places,Cultural and Related Services,132A,M J Wilkinson,18/08/2023,PE152184,150.00,Tilting Bucket to fit 8T Excavator 26/7/23 - 28/7/23,Barrier Security
Wyre Council,http://opendatacommunities.org/doc/district-council/wyre,30/08/2023,People and Places,Support Services,135B,M J Wilkinson,25/08/2023,PE152431,52.82,Each way Transport for 3T machine & breaker,Private Contractors
Wyre Council,http://opendatacommunities.org/doc/district-council/wyre,30/08/2023,People and Places,Support Services,135B,M J Wilkinson,25/08/2023,PE152430,168.88,"BROADWAY, FLEETWOODHire of 3T dumper 17/5/23Time sheet no 9594",Private Contractors
Wyre Council,http://opendatacommunities.org/doc/district-council/wyre,30/08/2023,People and Places,Support Services,135B,M J Wilkinson,25/08/2023,PE152430,52.82,Each way transport for 3T dumper,Private Contractors
Wyre Council,http://opendatacommunities.org/doc/district-council/wyre,30/08/2023,People and Places,Support Services,135B,M J Wilkinson,25/08/2023,PE152429,277.20,"BROADWAY, FLEETWOOD Labour 15/5/23 - 21/5/23",Private Contractors
Wyre Council,http://opendatacommunities.org/doc/district-council/wyre,30/08/2023,People and Places,Support Services,135B,M J Wilkinson,25/08/2023,PE152429,211.20,Labour 15/5/23 - 21/5/23Time sheet 11076,Private Contractors
Wyre Council,http://opendatacommunities.org/doc/district-council/wyre,30/08/2023,People and Places,Support Services,135B,M J Wilkinson,25/08/2023,PE152431,443.31,"BROADWAY, FLEETWOODHire of Hitachi ZX27 17/5/23 - 19/5/23Time sheet no 11076",Private Contractors
Wyre Council,http://opendatacommunities.org/doc/district-council/wyre,30/08/2023,People and Places,Support Services,135B,M J Wilkinson,25/08/2023,PE152431,110.88,Hire of Breaker for 3T 17/5/23 - 19/5/23Time sheet no 11076,Private Contractors
Wyre Council,http://opendatacommunities.org/doc/district-council/wyre,30/08/2023,People and Places,Public Transport,133G,M J Wilkinson,25/08/2023,PE152426,3346.00,"KNOTT END Hire of 20T long reach & driver, JCB 714 & driver and banksman including transport",Dredging
Wyre Council,http://opendatacommunities.org/doc/district-council/wyre,30/08/2023,People and Places,Parking Services,133F,M J Wilkinson,25/08/2023,PE152427,236.56,"Car Park Beach Road, Fleetwood Hitachi ZX130 Excavator 24/5/23 - 31/5/23Time sheet 11078","Paths, Roads and Car Park Mtnce Annual"
Wyre Council,http://opendatacommunities.org/doc/district-council/wyre,30/08/2023,People and Places,Parking Services,133F,M J Wilkinson,25/08/2023,PE152427,382.80,Labour 22/5/23 - 26/5/23Time sheet no 11078,"Paths, Roads and Car Park Mtnce Annual"
Wyre Council,http://opendatacommunities.org/doc/district-council/wyre,30/08/2023,People and Places,Parking Services,133F,M J Wilkinson,25/08/2023,PE152427,105.60,Labour 24/5/23 - 24/5/23Time sheet no 11077,"Paths, Roads and Car Park Mtnce Annual"
Wyre Council,http://opendatacommunities.org/doc/district-council/wyre,30/08/2023,People and Places,Parking Services,133F,M J Wilkinson,25/08/2023,PE152428,152.08,"CAR PARK - BEACH ROAD, FLEETWOOD Hire of roller 24/5/23Time sheet no 9595","Paths, Roads and Car Park Mtnce Annual"
Wyre Council,http://opendatacommunities.org/doc/district-council/wyre,30/08/2023,People and Places,Parking Services,133F,M J Wilkinson,25/08/2023,PE152428,52.82,Each way transport for roller,"Paths, Roads and Car Park Mtnce Annual"
Wyre Council,http://opendatacommunities.org/doc/district-council/wyre,30/08/2023,People and Places,Environmental Services,132B,M J Wilkinson,25/08/2023,PE152432,300.00,Hire of 3T machine & driver to collect deal @ Knott End Friday 26/5/23,Hazardous Waste Disposal
Wyre Council,http://opendatacommunities.org/doc/district-council/wyre,30/08/2023,Resources,Support Services,135B,Preston City Council,24/08/2023,RS151746,13.00,order of 200 business cards  for Mandy seddon goods already received and quoted for under PEO0026180,Purchase of Publications
Wyre Council,http://opendatacommunities.org/doc/district-council/wyre,30/08/2023,Resources,Support Services,135B,Preston City Council,11/08/2023,RS151746,13.00,200 x business cards - Anita Fish 85x55mm 1pp,Stationery
Wyre Council,http://opendatacommunities.org/doc/district-council/wyre,30/08/2023,Resources,Cultural and Related Services,132A,Preston City Council,11/08/2023,RS151746,17.04,Fun Arts - 2 locations 200 x A5 1pp 5 x A4 1pp,Creative People and Places Contribution
Wyre Council,http://opendatacommunities.org/doc/district-council/wyre,30/08/2023,People and Places,Support Services,135B,Preston City Council,21/08/2023,PE152234,70.52,Poulton regeneration consultation materials,Promotions - General
Wyre Council,http://opendatacommunities.org/doc/district-council/wyre,30/08/2023,People and Places,Support Services,135B,Preston City Council,21/08/2023,PE152234,12.50,Poulton regeneration consultation materials- leaflets,Promotions - General
Wyre Council,http://opendatacommunities.org/doc/district-council/wyre,30/08/2023,People and Places,Planning and Development Servs,132C,Preston City Council,22/08/2023,PE152258,69.67,x3 Tram Sunday bus stop posters,Promotions - General
Wyre Council,http://opendatacommunities.org/doc/district-council/wyre,30/08/2023,People and Places,Cultural and Related Services,132A,Preston City Council,22/08/2023,PE152258,48.95,2 bus stop poster Real Deal,Advertising - General
Wyre Council,http://opendatacommunities.org/doc/district-council/wyre,30/08/2023,People and Places,Cultural and Related Services,132A,Preston City Council,22/08/2023,PE152258,48.95,Job 0349  2 bus stop poster 3 Degrees,Advertising - General
Wyre Council,http://opendatacommunities.org/doc/district-council/wyre,30/08/2023,People and Places,Planning and Development Servs,132C,Preston City Council,01/08/2023,PE151745,158.72,Printed materials for Markets,Promotions - General
Wyre Council,http://opendatacommunities.org/doc/district-council/wyre,30/08/2023,People and Places,Planning and Development Servs,132C,Preston City Council,01/08/2023,PE151745,100.00,Printed materials for Markets,Promotions - General
Wyre Council,http://opendatacommunities.org/doc/district-council/wyre,30/08/2023,People and Places,Cultural and Related Services,132A,Preston City Council,01/08/2023,PE151745,130.16,Print materials for Theatres food festival,Advertising - General
Wyre Council,http://opendatacommunities.org/doc/district-council/wyre,30/08/2023,People and Places,Environmental Services,132B,DANFO (UK) LTD,17/08/2023,PE151780,23387.86,Public Conveniences - Maintenance and Cleaning 2023/24,Other Establishments
Wyre Council,http://opendatacommunities.org/doc/district-council/wyre,30/08/2023,People and Places,Cultural and Related Services,132A,Catering Elite Ltd,21/08/2023,PE152229,57.23,Agency Staff 23/7/23,Agency Staff
Wyre Council,http://opendatacommunities.org/doc/district-council/wyre,30/08/2023,People and Places,Cultural and Related Services,132A,Catering Elite Ltd,21/08/2023,PE152228,216.64,Agency staff 16/7/23,Agency Staff
Wyre Council,http://opendatacommunities.org/doc/district-council/wyre,30/08/2023,People and Places,Cultural and Related Services,132A,Catering Elite Ltd,21/08/2023,PE152227,73.58,Agency staff 9/7/23,Agency Staff
Wyre Council,http://opendatacommunities.org/doc/district-council/wyre,30/08/2023,People and Places,Cultural and Related Services,132A,Catering Elite Ltd,21/08/2023,PE152226,171.68,Agency Staff 2/7/23,Agency Staff
Wyre Council,http://opendatacommunities.org/doc/district-council/wyre,30/08/2023,People and Places,Cultural and Related Services,132A,Catering Elite Ltd,21/08/2023,PE152225,261.60,Agency staff 25/6/23,Agency Staff
Wyre Council,http://opendatacommunities.org/doc/district-council/wyre,30/08/2023,People and Places,Cultural and Related Services,132A,Catering Elite Ltd,21/08/2023,PE152224,61.31,Agency staff 18/6/23,Agency Staff
Wyre Council,http://opendatacommunities.org/doc/district-council/wyre,30/08/2023,People and Places,Cultural and Related Services,132A,Catering Elite Ltd,21/08/2023,PE152216,200.29,Agency staff 11/6/23,Agency Staff
Wyre Council,http://opendatacommunities.org/doc/district-council/wyre,30/08/2023,People and Places,Cultural and Related Services,132A,Catering Elite Ltd,30/08/2023,PE152502,347.44,Agency Staff 30/7/23,Agency Staff
Wyre Council,http://opendatacommunities.org/doc/district-council/wyre,30/08/2023,People and Places,Cultural and Related Services,132A,Catering Elite Ltd,30/08/2023,PE152501,609.04,Agency staff 6/8/23,Agency Staff
Wyre Council,http://opendatacommunities.org/doc/district-council/wyre,30/08/2023,People and Places,Cultural and Related Services,132A,EDF Energy,18/08/2023,PE152155,11723.10,"1600000162884 YMCA Fleetwood, The Esplanade, FY7 6HF 01/047/23 to 30/04/23 REVISED (28885KWh)",Electricity
Wyre Council,http://opendatacommunities.org/doc/district-council/wyre,30/08/2023,People and Places,Cultural and Related Services,132A,EDF Energy,18/08/2023,PE152151,12197.49,"1600000162884 YMCA Fleetwood, The Esplanade, FY7 6HF, 01/05/23 to 31/05/23 REVISED (30115.8KWh)",Electricity
Wyre Council,http://opendatacommunities.org/doc/district-council/wyre,30/08/2023,People and Places,Cultural and Related Services,132A,EDF Energy,18/08/2023,PE152153,2378.53,"1600000162884 YMCA Fleetwood, The Esplanade, FY7 6HF 01/06/23 to 06/06/23 REVISED (5938.7KWh)",Electricity
Wyre Council,http://opendatacommunities.org/doc/district-council/wyre,30/08/2023,People and Places,Cultural and Related Services,132A,EDF Energy,18/08/2023,PE152153,74.49,"1600000162884 YMCA Fleetwood, The Esplanade, FY7 6HF 01/06/23 to 06/06/23 REVISED (5938.7KWh)",Electricity
Wyre Council,http://opendatacommunities.org/doc/district-council/wyre,30/08/2023,People and Places,Cultural and Related Services,132A,EDF Energy,18/08/2023,PE152158,1497.64,"2500000676813 YMCA Poulton, Breck Rd, FY6 7HJ 01/06/23 to 06/06/23  (3109KWh)",Electricity
Wyre Council,http://opendatacommunities.org/doc/district-council/wyre,30/08/2023,People and Places,Cultural and Related Services,132A,EDF Energy,18/08/2023,PE152157,7739.84,"2500000676813 YMCA Poulton, FY6 7HJ 01/05/23 to 31/05/23 (15888.4 KWh)",Electricity
Wyre Council,http://opendatacommunities.org/doc/district-council/wyre,30/08/2023,People and Places,Cultural and Related Services,132A,EDF Energy,18/08/2023,PE152156,7039.15,"2500000676813 YMCA Poulton, Breck Road, FY6 7HJ 01/08/23 to 30/04/23 (14236.5 KWh)",Electricity
Wyre Council,http://opendatacommunities.org/doc/district-council/wyre,30/08/2023,People and Places,Cultural and Related Services,132A,EDF Energy,31/08/2023,PE152483,16.88,"1610023220857 YMCA Garstang Leisure Centre, Windsor Road, Garstang, PR3 1ED, 02/06/23 to 06/06/23",Electricity
Wyre Council,http://opendatacommunities.org/doc/district-council/wyre,30/08/2023,People and Places,Cultural and Related Services,132A,EDF Energy,31/08/2023,PE152482,1129.83,"1610023220857 YMCA Garstang Leisure Centre, Windsor Rd, Garstang, PR3 1ED, 02/05/23 to 01/06/23  2886.40 kWh",Electricity
Wyre Council,http://opendatacommunities.org/doc/district-council/wyre,30/08/2023,People and Places,Cultural and Related Services,132A,EDF Energy,31/08/2023,PE152481,1075.19,"1610023220857 YMCA Garstang Leisure Centre, Windsor Rd, Garstang, PR3 1ED, 01/04/23 to 01/05/23  2728.20 kWh",Electricity
Wyre Council,http://opendatacommunities.org/doc/district-council/wyre,30/08/2023,People and Places,Cultural and Related Services,132A,EDF Energy,31/08/2023,PE152481,38.74,"1610023220857 YMCA Garstang Leisure Centre, Windsor Rd, Garstang, PR3 1ED, 01/04/23 to 01/05/23  2728.20 kWh",Electricity
Wyre Council,http://opendatacommunities.org/doc/district-council/wyre,30/08/2023,People and Places,Cultural and Related Services,132A,EDF Energy,17/08/2023,PE151954,11875.96,"2500000793090 YMCA Thornton, Victoria Rd East, FY5 3SX 01/04/23 to 30/04/23 Revised",Electricity
Wyre Council,http://opendatacommunities.org/doc/district-council/wyre,30/08/2023,People and Places,Cultural and Related Services,132A,EDF Energy,17/08/2023,PE151954,29.78,"2500000793090 YMCA Thornton, Victoria Rd East, FY5 3SX 01/04/23 to 30/04/23 Revised",Electricity
Wyre Council,http://opendatacommunities.org/doc/district-council/wyre,30/08/2023,People and Places,Cultural and Related Services,132A,EDF Energy,17/08/2023,PE151936,2485.05,"2500000793090 YMCA Thornton, Victoria Rd East, FY5 3SX 01/06/23 to 06/06/23 REVISED",Electricity
Wyre Council,http://opendatacommunities.org/doc/district-council/wyre,30/08/2023,People and Places,Cultural and Related Services,132A,EDF Energy,17/08/2023,PE151935,12669.99,"2500000793090 YMCA Thornton, Victoria Rd East, FY5 3SX 01/05/23 to 31/05/23 REVISED",Electricity
Wyre Council,http://opendatacommunities.org/doc/district-council/wyre,30/08/2023,People and Places,Cultural and Related Services,132A,EDF Energy,17/08/2023,PE151953,-2485.60,"2500000793090 YMCA Thornton, Victoria Rd East, FY5 3SX Cancels PE150187",Electricity
Wyre Council,http://opendatacommunities.org/doc/district-council/wyre,30/08/2023,People and Places,Cultural and Related Services,132A,EDF Energy,17/08/2023,PE151934,-12671.02,"2500000793090 YMCA Thornton, Victoria Rd East, FY5 3SX Cancels PE150187",Electricity
Wyre Council,http://opendatacommunities.org/doc/district-council/wyre,30/08/2023,People and Places,Cultural and Related Services,132A,EDF Energy,17/08/2023,PE151952,-19057.30,"2500000793090 YMCA Thornton, Victoria Rd East, FY5 3SX cancels PE149452",Electricity
Wyre Council,http://opendatacommunities.org/doc/district-council/wyre,30/08/2023,People and Places,Cultural and Related Services,132A,EDF Energy,30/08/2023,PE150185,1129.83,credited on PE152479 as wrong supply address,Electricity
Wyre Council,http://opendatacommunities.org/doc/district-council/wyre,30/08/2023,People and Places,Cultural and Related Services,132A,EDF Energy,30/08/2023,PE149811,1075.19,Credited on PE152478 as wrong supply address,Electricity
Wyre Council,http://opendatacommunities.org/doc/district-council/wyre,30/08/2023,People and Places,Cultural and Related Services,132A,EDF Energy,30/08/2023,PE152477,16.88,Invoice credited PE152480 as wrong supply address,Electricity
Wyre Council,http://opendatacommunities.org/doc/district-council/wyre,30/08/2023,People and Places,Cultural and Related Services,132A,EDF Energy,30/08/2023,PE152477,72.95,Invoice credited PE152480 as wrong supply address,Electricity
Wyre Council,http://opendatacommunities.org/doc/district-council/wyre,30/08/2023,People and Places,Cultural and Related Services,132A,EDF Energy,30/08/2023,PE152478,-1075.19,Against invoice PE149811 as wrong supply address,Electricity
Wyre Council,http://opendatacommunities.org/doc/district-council/wyre,30/08/2023,People and Places,Cultural and Related Services,132A,EDF Energy,30/08/2023,PE152479,-1129.83,Against invoice PE150185 as wrong supply address,Electricity
Wyre Council,http://opendatacommunities.org/doc/district-council/wyre,30/08/2023,People and Places,Cultural and Related Services,132A,EDF Energy,18/08/2023,PE152150,-12215.56,Cancels PE150188,Electricity
Wyre Council,http://opendatacommunities.org/doc/district-council/wyre,30/08/2023,People and Places,Cultural and Related Services,132A,EDF Energy,18/08/2023,PE152152,-2382.79,Cancels PE151014,Electricity
Wyre Council,http://opendatacommunities.org/doc/district-council/wyre,30/08/2023,People and Places,Cultural and Related Services,132A,EDF Energy,18/08/2023,PE152154,-11724.06,cancels PE149657,Electricity
Wyre Council,http://opendatacommunities.org/doc/district-council/wyre,30/08/2023,People and Places,Environmental Services,132B,Institute Of Licensing (Events) LTD,31/08/2023,PE152541,330.00,2 x delegate places for Animal Enforcement Training delivered by Institute of Licensing in Birmingham on 19th October 2023. 2 x 165,Technical Training
Wyre Council,http://opendatacommunities.org/doc/district-council/wyre,30/08/2023,People and Places,Environmental Services,132B,Institute Of Licensing (Events) LTD,09/08/2023,PE151904,852.55,To pay invoice EVE39718 from Institute of Licensing. Invoice for Wayne Clarke to attend their annual conference in November 2023.,Training - Non HR Controlled
Wyre Council,http://opendatacommunities.org/doc/district-council/wyre,30/08/2023,Resources,Central Services to the Public,131C,Print Image Network LTD,18/08/2023,RS152170,13678.50,2023 Canvass Stationery - Envelopes/Leaflet/Artwork,Stationery
Wyre Council,http://opendatacommunities.org/doc/district-council/wyre,30/08/2023,People and Places,Planning and Development Servs,132C,Pipescan LTD,02/08/2023,PE151614,1634.00,Attendance to clean all site gullies and catch pits and jet out the main foul water sewers on site to a point in the main sewer off site,Planned Building Maintenance
Wyre Council,http://opendatacommunities.org/doc/district-council/wyre,30/08/2023,People and Places,Cultural and Related Services,132A,Pipescan LTD,17/08/2023,PE151660,8200.00,Carry out agreed works as per quotation to connect kiosk 6 waste pipes to foul drain approx 30 metres from the kiosk (Marine Hall Wyre Lounge wcs) to include excavate in the kiosk to turn the gully around and then lay new drainage approx.30m to the existi,Responsive Building Maintenance
Wyre Council,http://opendatacommunities.org/doc/district-council/wyre,30/08/2023,People and Places,Environmental Services,132B,Pipescan LTD,17/08/2023,PE152118,360.00,"*** Confirmation Order *** Undertake CCTV inspection of culvert off Calder Ave., Thornton.  Meet Paul Long on site 1 August to undertake works.",Private Contractors
Wyre Council,http://opendatacommunities.org/doc/district-council/wyre,30/08/2023,Resources,Housing General Fund,134A,Solon Security LTD,10/08/2023,RS151945,405.53,payment of invoice NO - SI23008218,Security Fittings (C&R)
Wyre Council,http://opendatacommunities.org/doc/district-council/wyre,30/08/2023,Resources,Housing General Fund,134A,Solon Security LTD,16/08/2023,RS152109,107.80,payment of invoice SI23006597,Security Fittings (C&R)
Wyre Council,http://opendatacommunities.org/doc/district-council/wyre,30/08/2023,Resources,Support Services,135B,People Asset Management LTD,22/08/2023,RS151863,655.25,July 2023 PAYG,Occupational Health Fees
Wyre Council,http://opendatacommunities.org/doc/district-council/wyre,30/08/2023,Resources,Support Services,135B,People Asset Management LTD,22/08/2023,RS151863,315.00,July 2023 PAYG,Occupational Health Fees
Wyre Council,http://opendatacommunities.org/doc/district-council/wyre,30/08/2023,Resources,Support Services,135B,Forbes Solicitors,02/08/2023,RS151771,70.00,Client/Matter Ref: 6CE11/122 Invoice Reference: 623180 Costs 30/05/23 to 28/06/23,Legal Fees
Wyre Council,http://opendatacommunities.org/doc/district-council/wyre,30/08/2023,Resources,Support Services,135B,Forbes Solicitors,03/08/2023,RS151766,547.00,Cost from 31.1.23 to 28.3.23,Legal Fees
Wyre Council,http://opendatacommunities.org/doc/district-council/wyre,30/08/2023,People and Places,Central Services to the Public,131C,MSG Media Limited,01/08/2023,PE151759,550.00,Household Support Fund advert full page,Advertising - General
Wyre Council,http://opendatacommunities.org/doc/district-council/wyre,30/08/2023,Resources,Housing General Fund,134A,Mapleleaf Letting Centre LTD,16/08/2023,RS152110,1146.86,"Rent for 3 Hapton Street, 21st June to 20th September",Private Contractors
Wyre Council,http://opendatacommunities.org/doc/district-council/wyre,30/08/2023,Resources,Support Services,135B,MBL (Seminars) LTD,10/08/2023,RS151076,1250.00,Annual Webinar Subscription (Start: 08/07/2023 Expiry: 07/07/2024),Technical Training
Wyre Council,http://opendatacommunities.org/doc/district-council/wyre,30/08/2023,People and Places,Cultural and Related Services,132A,Daisy Communications LTD,17/08/2023,PE150920,13.87,Calls and Service Charges to 30/06/23,Internet and Telephone Charges
Wyre Council,http://opendatacommunities.org/doc/district-council/wyre,30/08/2023,People and Places,Cultural and Related Services,132A,Daisy Communications LTD,17/08/2023,PE150920,33.25,Calls and Service Charges to 30/06/23,Internet and Telephone Charges
Wyre Council,http://opendatacommunities.org/doc/district-council/wyre,30/08/2023,People and Places,Corporate and Democratic Core,131A,Daisy Communications LTD,17/08/2023,PE150920,13.87,Calls and Service Charges to 30/06/23,Internet and Telephone Charges
Wyre Council,http://opendatacommunities.org/doc/district-council/wyre,30/08/2023,People and Places,Support Services,135B,Daisy Communications LTD,17/08/2023,PE150920,2.52,Calls and Service Charges to 30/06/23,Telephone - Buildings and Offices
Wyre Council,http://opendatacommunities.org/doc/district-council/wyre,30/08/2023,People and Places,Planning and Development Servs,132C,Daisy Communications LTD,17/08/2023,PE150920,2.52,Calls and Service Charges to 30/06/23,Telephone - Buildings and Offices
Wyre Council,http://opendatacommunities.org/doc/district-council/wyre,30/08/2023,People and Places,Support Services,135B,Daisy Communications LTD,17/08/2023,PE150920,19.39,Calls and Service Charges to 30/06/23,Internet and Telephone Charges
Wyre Council,http://opendatacommunities.org/doc/district-council/wyre,30/08/2023,People and Places,Planning and Development Servs,132C,Daisy Communications LTD,17/08/2023,PE150920,13.87,Calls and Service Charges to 30/06/23,Telephone - Buildings and Offices
Wyre Council,http://opendatacommunities.org/doc/district-council/wyre,30/08/2023,People and Places,Cultural and Related Services,132A,Daisy Communications LTD,17/08/2023,PE150920,72.96,Calls and Service Charges to 30/06/23,Telephone - Buildings and Offices
Wyre Council,http://opendatacommunities.org/doc/district-council/wyre,30/08/2023,People and Places,Support Services,135B,Daisy Communications LTD,17/08/2023,PE150920,80.86,Calls and Service Charges to 30/06/23,Internet and Telephone Charges
Wyre Council,http://opendatacommunities.org/doc/district-council/wyre,30/08/2023,People and Places,Support Services,135B,Daisy Communications LTD,17/08/2023,PE150920,13.87,Calls and Service Charges to 30/06/23,Alarm Systems and Security - Annual
Wyre Council,http://opendatacommunities.org/doc/district-council/wyre,30/08/2023,People and Places,Planning and Development Servs,132C,Daisy Communications LTD,17/08/2023,PE150920,50.70,Calls and Service Charges to 30/06/23,Advertising - General
Wyre Council,http://opendatacommunities.org/doc/district-council/wyre,30/08/2023,People and Places,Cultural and Related Services,132A,Daisy Communications LTD,17/08/2023,PE150920,13.87,Calls and Service Charges to 30/06/23,Telephone - Buildings and Offices
Wyre Council,http://opendatacommunities.org/doc/district-council/wyre,30/08/2023,People and Places,Cultural and Related Services,132A,Daisy Communications LTD,17/08/2023,PE150920,13.87,Calls and Service Charges to 30/06/23,Telephone - Buildings and Offices
Wyre Council,http://opendatacommunities.org/doc/district-council/wyre,30/08/2023,People and Places,Cultural and Related Services,132A,Daisy Communications LTD,17/08/2023,PE150920,14.09,Calls and Service Charges to 30/06/23,Telephone - Buildings and Offices
Wyre Council,http://opendatacommunities.org/doc/district-council/wyre,30/08/2023,People and Places,Cultural and Related Services,132A,Daisy Communications LTD,17/08/2023,PE150920,39.86,Calls and Service Charges to 30/06/23,Telephone - Buildings and Offices
Wyre Council,http://opendatacommunities.org/doc/district-council/wyre,30/08/2023,People and Places,Environmental Services,132B,Daisy Communications LTD,17/08/2023,PE150920,13.87,Calls and Service Charges to 30/06/23,Telephone - Buildings and Offices
Wyre Council,http://opendatacommunities.org/doc/district-council/wyre,30/08/2023,People and Places,Environmental Services,132B,Daisy Communications LTD,17/08/2023,PE150920,41.61,Calls and Service Charges to 30/06/23,Telephone - Buildings and Offices
Wyre Council,http://opendatacommunities.org/doc/district-council/wyre,30/08/2023,People and Places,Planning and Development Servs,132C,Daisy Communications LTD,17/08/2023,PE150920,0.59,Calls and Service Charges to 30/06/23,Telephone - Buildings and Offices
Wyre Council,http://opendatacommunities.org/doc/district-council/wyre,30/08/2023,People and Places,Support Services,135B,Daisy Communications LTD,17/08/2023,PE150920,39.72,Calls and Service Charges to 30/06/23,Telephone - Buildings and Offices
Wyre Council,http://opendatacommunities.org/doc/district-council/wyre,30/08/2023,People and Places,Support Services,135B,Daisy Communications LTD,17/08/2023,PE150920,13.87,Calls and Service Charges to 30/06/23,Telephone - Buildings and Offices
Wyre Council,http://opendatacommunities.org/doc/district-council/wyre,30/08/2023,People and Places,Support Services,135B,Daisy Communications LTD,17/08/2023,PE150920,3872.04,Calls and Service Charges to 30/06/23,Telephone - Buildings and Offices
Wyre Council,http://opendatacommunities.org/doc/district-council/wyre,30/08/2023,People and Places,Cultural and Related Services,132A,Daisy Communications LTD,17/08/2023,PE150920,27.74,Calls and Service Charges to 30/06/23,Telephone - Buildings and Offices
Wyre Council,http://opendatacommunities.org/doc/district-council/wyre,30/08/2023,People and Places,Cultural and Related Services,132A,Daisy Communications LTD,17/08/2023,PE150920,13.87,Calls and Service Charges to 30/06/23,Telephone - Buildings and Offices
Wyre Council,http://opendatacommunities.org/doc/district-council/wyre,30/08/2023,People and Places,Cultural and Related Services,132A,Daisy Communications LTD,17/08/2023,PE150920,79.43,Calls and Service Charges to 30/06/23,Telephone - Buildings and Offices
Wyre Council,http://opendatacommunities.org/doc/district-council/wyre,30/08/2023,People and Places,Environmental Services,132B,UK Health Security Agency,31/08/2023,PE152074,740.19,Shellfish Testing  23/24,Food and Drug Etc Samples
Wyre Council,http://opendatacommunities.org/doc/district-council/wyre,30/08/2023,People and Places,Parking Services,133F,NSL Services Group,08/08/2023,PE151864,4793.20,Provide enforcement officer for Wyre Council car parks - 1 April 2023 - 31 March 2024,Private Contractors
Wyre Council,http://opendatacommunities.org/doc/district-council/wyre,30/08/2023,People and Places,Cultural and Related Services,132A,Play Inclusion Project,04/08/2023,PE151802,939.66,Saturday SEND club delivery at YMCA Fleetwood (twice monthly).,External Coaching
Wyre Council,http://opendatacommunities.org/doc/district-council/wyre,30/08/2023,People and Places,Cultural and Related Services,132A,Play Inclusion Project,07/08/2023,PE151824,6882.50,"160 places on HAF SEND clubs in Summer 2023, 15 per place. 140 staff at 5.5 hours x 10.50 - 8,085.00, 5 given to parents for food x 160 = 800 Coordinator Salary = 90 hours x 12 - 1,080.00 Venue Hire = 320 Bouncy Castle Hire 400 Entrance Fees for",Project Costs
Wyre Council,http://opendatacommunities.org/doc/district-council/wyre,30/08/2023,People and Places,Environmental Services,132B,D Hollowell & Sons LTD,30/08/2023,PE152467,932.00,REDACT,Other Rechargeable Services
Wyre Council,http://opendatacommunities.org/doc/district-council/wyre,30/08/2023,People and Places,Support Services,135B,Dr Tree Surgeons,22/08/2023,PE152281,960.00,Quote Number: 813Quote Ref: Side of 127 Breck Road1 3 x Mature beech trees &#8208; Reduce lateral branches back from propertyby aprox 2 Meters . Remove any deadwood 2.5cm700.00 700.001 Reduce two conifers back from property. 60.00 60.001 C,Special Maintenance - Trees
Wyre Council,http://opendatacommunities.org/doc/district-council/wyre,30/08/2023,People and Places,Support Services,135B,Dr Tree Surgeons,22/08/2023,PE152282,400.00,Quote Number: 814 Quote Ref: Rear of 25 Derby Road1 Remove any large damaged branches squirrel damage / deadwoodoverhanging proper es.200.00 200.001 Op on one :  Reduce height of conifer hedge by 2 meters forboundary length .200.00 200,Special Maintenance - Trees
Wyre Council,http://opendatacommunities.org/doc/district-council/wyre,30/08/2023,People and Places,Support Services,135B,MAXIGIENE ENVIRONMENTAL SERVICES LTD,30/08/2023,PE152352,625.00,"Full online chlorination of the domestic hot and cold water systems at Annexe Building. Completed 31st July 2023, Legionella Samples taken 03rd August 2023",Planned Building Maintenance
Wyre Council,http://opendatacommunities.org/doc/district-council/wyre,30/08/2023,People and Places,Planning and Development Servs,132C,Martin Scott Price,30/08/2023,PE152517,805.00,SUMMER FUN DAY  Saturday 19th August 2023 -Fleetwood MarketFor the provision of 3 x Magic/ Punch and Judy ShowsThe driving of a vintage bus for passengersThe supplying of the fairground organAssistant on the day.Total fee 805,Promotions - General
Wyre Council,http://opendatacommunities.org/doc/district-council/wyre,30/08/2023,People and Places,Support Services,135B,GB  Sport & Leisure UK LTD,11/08/2023,PE151905,300.00,SP-14-008E Sure Shot Gladiator Polycarbonate Backboard Insert,Playground Equipment
Wyre Council,http://opendatacommunities.org/doc/district-council/wyre,30/08/2023,People and Places,Support Services,135B,GB  Sport & Leisure UK LTD,11/08/2023,PE151905,660.00,SP-01-061 Curve Cradle Seat � Coloured � Flat Packed,Playground Equipment
Wyre Council,http://opendatacommunities.org/doc/district-council/wyre,30/08/2023,People and Places,Support Services,135B,GB  Sport & Leisure UK LTD,11/08/2023,PE151905,96.00,Delivery,Playground Equipment
Wyre Council,http://opendatacommunities.org/doc/district-council/wyre,30/08/2023,People and Places,Environmental Services,132B,Newauto Limited T/A Mogo,23/08/2023,PE152141,50.00,SSP-SSC-C-3 Internal pouch single sided clear 152 x 119,Materials and Consumables
Wyre Council,http://opendatacommunities.org/doc/district-council/wyre,30/08/2023,People and Places,Environmental Services,132B,Newauto Limited T/A Mogo,23/08/2023,PE152141,74.00,WP-1 Windscreen Pouch 160 x 130,Materials and Consumables
Wyre Council,http://opendatacommunities.org/doc/district-council/wyre,30/08/2023,People and Places,Environmental Services,132B,Newauto Limited T/A Mogo,23/08/2023,PE152141,143.40,MDSV-2 Mogo Door Sign- Vinyl DSC - Private Hire,Materials and Consumables
Wyre Council,http://opendatacommunities.org/doc/district-council/wyre,30/08/2023,People and Places,Environmental Services,132B,Newauto Limited T/A Mogo,23/08/2023,PE152141,196.00,CP-STX Clear Plate 240 x 125mm,Materials and Consumables
Wyre Council,http://opendatacommunities.org/doc/district-council/wyre,30/08/2023,People and Places,Environmental Services,132B,Newauto Limited T/A Mogo,23/08/2023,PE152141,196.00,CP-TX  Clear Plate 240 x 176,Materials and Consumables
Wyre Council,http://opendatacommunities.org/doc/district-council/wyre,30/08/2023,People and Places,Environmental Services,132B,Newauto Limited T/A Mogo,23/08/2023,PE152141,19.90,Post & Packaging,Materials and Consumables
Wyre Council,http://opendatacommunities.org/doc/district-council/wyre,30/08/2023,People and Places,Environmental Services,132B,Newauto Limited T/A Mogo,23/08/2023,PE152141,37.50,NSS-1 No smoking sign,Materials and Consumables
Wyre Council,http://opendatacommunities.org/doc/district-council/wyre,30/08/2023,People and Places,Environmental Services,132B,Newauto Limited T/A Mogo,23/08/2023,PE152141,29.00,IP-3-D  Internal plate to fit self seal pouch-A4 Hackney Carriage,Materials and Consumables
Wyre Council,http://opendatacommunities.org/doc/district-council/wyre,30/08/2023,People and Places,Environmental Services,132B,Newauto Limited T/A Mogo,23/08/2023,PE152141,189.00,MP-2-STX Printed Plate 240 x 125 Hackney Carriage Front,Materials and Consumables
Wyre Council,http://opendatacommunities.org/doc/district-council/wyre,30/08/2023,People and Places,Environmental Services,132B,Newauto Limited T/A Mogo,23/08/2023,PE152141,189.00,MP-2-TX Printed plate  240 x 176  Hackney Carriage  Rear,Materials and Consumables
Wyre Council,http://opendatacommunities.org/doc/district-council/wyre,30/08/2023,People and Places,Environmental Services,132B,Veolia ES (UK) LTD,16/08/2023,PE152126,4977.81,Bin Provision,"Provision of Bins, Boxes and Sacks"
Wyre Council,http://opendatacommunities.org/doc/district-council/wyre,30/08/2023,People and Places,Environmental Services,132B,Veolia ES (UK) LTD,16/08/2023,PE152126,193845.40,Domestic Waste Management Collection Contract 2023/24,Refuse Collection Contract
Wyre Council,http://opendatacommunities.org/doc/district-council/wyre,30/08/2023,People and Places,Environmental Services,132B,Veolia ES (UK) LTD,16/08/2023,PE152126,958.27,Pension Pass Through,Refuse Collection Contract
Wyre Council,http://opendatacommunities.org/doc/district-council/wyre,30/08/2023,People and Places,Support Services,135B,Allstar Business Solutions LTD,14/08/2023,PE151777,296.41,AF20CXW Fuel to 31/07/23,Fuel
Wyre Council,http://opendatacommunities.org/doc/district-council/wyre,30/08/2023,People and Places,Support Services,135B,Allstar Business Solutions LTD,14/08/2023,PE151777,247.26,AF20CXX Fuel to 31/07/23,Fuel
Wyre Council,http://opendatacommunities.org/doc/district-council/wyre,30/08/2023,People and Places,Support Services,135B,Allstar Business Solutions LTD,14/08/2023,PE151777,95.55,PF10NUM Fuel to 31/07/23,Petrol
Wyre Council,http://opendatacommunities.org/doc/district-council/wyre,30/08/2023,People and Places,Cultural and Related Services,132A,Allstar Business Solutions LTD,14/08/2023,PE151777,133.72,PE65DDO Fuel to 31/07/23,Petrol
Wyre Council,http://opendatacommunities.org/doc/district-council/wyre,30/08/2023,People and Places,Support Services,135B,Allstar Business Solutions LTD,15/08/2023,PE151777,54.99,PJ67PHA Fuel to 31/07/23,Petrol
Wyre Council,http://opendatacommunities.org/doc/district-council/wyre,30/08/2023,People and Places,Support Services,135B,Allstar Business Solutions LTD,15/08/2023,PE151777,65.81,PK14TTX Fuel to 31/07/23,Petrol
Wyre Council,http://opendatacommunities.org/doc/district-council/wyre,30/08/2023,People and Places,Support Services,135B,Allstar Business Solutions LTD,15/08/2023,PE151777,196.02,PF14FKY Fuel to 31/07/23,Petrol
Wyre Council,http://opendatacommunities.org/doc/district-council/wyre,30/08/2023,People and Places,Support Services,135B,Allstar Business Solutions LTD,15/08/2023,PE151777,109.31,PK14TMZ Fuel to 31/07/23,Petrol
Wyre Council,http://opendatacommunities.org/doc/district-council/wyre,30/08/2023,People and Places,Support Services,135B,Allstar Business Solutions LTD,30/08/2023,PE152398,493.04,Fuel to 14/08/23,Petrol
Wyre Council,http://opendatacommunities.org/doc/district-council/wyre,30/08/2023,People and Places,Support Services,135B,Allstar Business Solutions LTD,30/08/2023,PE152398,242.59,Fuel to 14/08/23,Fuel
Wyre Council,http://opendatacommunities.org/doc/district-council/wyre,30/08/2023,People and Places,Support Services,135B,Allstar Business Solutions LTD,30/08/2023,PE152398,237.18,Fuel to 14/08/23,Fuel
Wyre Council,http://opendatacommunities.org/doc/district-council/wyre,30/08/2023,People and Places,Support Services,135B,Critiqom LTD,30/08/2023,PE152449,10.00,Data Quality Interactions,Postage
Wyre Council,http://opendatacommunities.org/doc/district-council/wyre,30/08/2023,Resources,Central Services to the Public,131C,Critiqom LTD,21/08/2023,RS152203,111.83,Services Jul 23 IQ post - Electoral,Postage
Wyre Council,http://opendatacommunities.org/doc/district-council/wyre,30/08/2023,Resources,Central Services to the Public,131C,Critiqom LTD,21/08/2023,RS152204,1438.10,Postage July 23 daily bills,Postage
Wyre Council,http://opendatacommunities.org/doc/district-council/wyre,30/08/2023,Resources,Central Services to the Public,131C,Critiqom LTD,21/08/2023,RS152203,348.17,Services Jul 23 Daily Bills,Postage
Wyre Council,http://opendatacommunities.org/doc/district-council/wyre,30/08/2023,Resources,Central Services to the Public,131C,Critiqom LTD,21/08/2023,RS152203,7.08,Services Jul 23 Daily Bills - Energy Surcharge,Postage
Wyre Council,http://opendatacommunities.org/doc/district-council/wyre,30/08/2023,Resources,Housing General Fund,134A,Critiqom LTD,21/08/2023,RS152203,41.20,Services Jul 23 Benefit Notifications,Postage
Wyre Council,http://opendatacommunities.org/doc/district-council/wyre,30/08/2023,Resources,Housing General Fund,134A,Critiqom LTD,21/08/2023,RS152203,0.84,Services Jul 23 Benefit Notifications - Energy Surcharge,Postage
Wyre Council,http://opendatacommunities.org/doc/district-council/wyre,30/08/2023,Resources,Housing General Fund,134A,Critiqom LTD,21/08/2023,RS152204,161.15,Postage July 23 benefit notifications,Postage
Wyre Council,http://opendatacommunities.org/doc/district-council/wyre,30/08/2023,Resources,Central Services to the Public,131C,Critiqom LTD,21/08/2023,RS152203,2.28,Services Jul 23 IQ post - Electoral - Energy Surcharge,Postage
Wyre Council,http://opendatacommunities.org/doc/district-council/wyre,30/08/2023,Resources,Support Services,135B,Critiqom LTD,21/08/2023,RS152203,627.04,Services Jul 23 IQ post - Off Serv Admin,Postage
Wyre Council,http://opendatacommunities.org/doc/district-council/wyre,30/08/2023,Resources,Support Services,135B,Critiqom LTD,21/08/2023,RS152203,12.76,Services Jul 23 IQ post - Off Serv Admin - Energy Surchge,Postage
Wyre Council,http://opendatacommunities.org/doc/district-council/wyre,30/08/2023,Resources,Support Services,135B,Critiqom LTD,21/08/2023,RS152203,722.22,Services Jul 23 IQ post - CC,Postage
Wyre Council,http://opendatacommunities.org/doc/district-council/wyre,30/08/2023,Resources,Support Services,135B,Critiqom LTD,21/08/2023,RS152203,14.70,Services Jul 23 IQ post - CC - Energy Surcharge,Postage
Wyre Council,http://opendatacommunities.org/doc/district-council/wyre,30/08/2023,Resources,Support Services,135B,Critiqom LTD,21/08/2023,RS152203,250.82,Services Jul 23 IQ Post - Planning,Postage
Wyre Council,http://opendatacommunities.org/doc/district-council/wyre,30/08/2023,Resources,Support Services,135B,Critiqom LTD,21/08/2023,RS152203,5.10,Services Jul 23 IQ Post - Planning - Energy Surcharge,Postage
Wyre Council,http://opendatacommunities.org/doc/district-council/wyre,30/08/2023,People and Places,Cultural and Related Services,132A,Fools Paradise LTD,25/08/2023,PE152443,1085.00,For the booking of the Ski Band for Fleetwood Market on Sunday 16th July 20233 x performances as agreed.,Creative People and Places Contribution
Wyre Council,http://opendatacommunities.org/doc/district-council/wyre,30/08/2023,People and Places,Cultural and Related Services,132A,Fools Paradise LTD,01/08/2023,PE151474,2191.00,"For the hire of the Whale installation with the pirate show. 3 x shows Sunday 16th July 2023 -Fleetwood Market, Victoria Street.  Fee including stays 2,191  Artist information to follow from Chris Wyatt 07954 692505 chris.wyatt@wyre.gov.uk",Exhibitions and Events
Wyre Council,http://opendatacommunities.org/doc/district-council/wyre,30/08/2023,People and Places,Cultural and Related Services,132A,Carlsberg UK LTD,22/08/2023,PE152312,1242.52,Marine Hall bar,Drinks
Wyre Council,http://opendatacommunities.org/doc/district-council/wyre,30/08/2023,People and Places,Cultural and Related Services,132A,Carlsberg UK LTD,10/08/2023,PE151737,122.36,CO2 & mixed gas rental,Drinks
Wyre Council,http://opendatacommunities.org/doc/district-council/wyre,30/08/2023,People and Places,Cultural and Related Services,132A,Northern Citrus Products LTD,30/08/2023,PE152515,270.80,Kiosk stock Marine Hall,Kiosk stock
Wyre Council,http://opendatacommunities.org/doc/district-council/wyre,30/08/2023,People and Places,Cultural and Related Services,132A,Northern Citrus Products LTD,31/08/2023,PE152529,1101.82,MH kiosk stock,Kiosk stock
Wyre Council,http://opendatacommunities.org/doc/district-council/wyre,30/08/2023,People and Places,Cultural and Related Services,132A,Tina Warren,31/08/2023,PE152528,2523.36,"Fee for summer HAF sessions 2023 - 
Tina`s sessions = 2,440
Roxanne (support assistant) = 83.36
Total - 2523.36",Special Events
Wyre Council,http://opendatacommunities.org/doc/district-council/wyre,30/08/2023,Resources,Central Services to the Public,131C,Print Image Facilities LLP,01/08/2023,RS151742,25560.36,2023 Canvass mailings postage:  55687  CCA & CF Mailsort                     10 CCA & CF standard tariff,Postage
Wyre Council,http://opendatacommunities.org/doc/district-council/wyre,30/08/2023,People and Places,Support Services,135B,Agrovista UK LTD,24/08/2023,PE152361,750.00,"Supply and deliver Acelepryn Insecticide | Professional Insecticides | Pitchcare  Supplied in 0.6L bottles, which covers 1Ha.  Cost - 750.00 plus Vat  As requested by Roger Brocklebank   Delivery to: Wyre Council Copse Road Depot Copse Road Fleetwood FY7",Materials and Consumables
Wyre Council,http://opendatacommunities.org/doc/district-council/wyre,30/08/2023,People and Places,Environmental Services,132B,Floating Pontoon Solutions,02/08/2023,PE151789,375.00,"Please carry out the following works:Emergency call out clearance of the Royles Brook Watercourse screen including all branches, and scaffolding boards.Remove all non-biodegradable waste from site.TOTAL:375.00",Private Contractors
Wyre Council,http://opendatacommunities.org/doc/district-council/wyre,30/08/2023,People and Places,Environmental Services,132B,Floating Pontoon Solutions,31/08/2023,PE152536,1975.00,"Please carry out the following works:  Full de-silt of Royles Brook watercourse screen concrete base area as discussed at site meeting.  All silt to remain on site on the banking where possible.  Remove all non-biodegradable waste from site.	 		TOTAL:	19",Private Contractors
Wyre Council,http://opendatacommunities.org/doc/district-council/wyre,30/08/2023,People and Places,Planning and Development Servs,132C,M D Security,02/08/2023,PE151785,96.00,"Copse Rd Depot: replaced joiners shop double door contacts, tested and left working",Alarm Systems and Security - Annual
Wyre Council,http://opendatacommunities.org/doc/district-council/wyre,30/08/2023,People and Places,Support Services,135B,M D Security,30/08/2023,PE152263,2068.00,Install of acess control on door adj room 134. + labour,Alarm Systems and Security - Annual
Wyre Council,http://opendatacommunities.org/doc/district-council/wyre,30/08/2023,People and Places,Cultural and Related Services,132A,M D Security,07/08/2023,PE151801,65.00,"Mount Pavilion: call out to alarm not setting, replaced 2 x CR2 batteries",Alarm Systems and Security - Responsive
Wyre Council,http://opendatacommunities.org/doc/district-council/wyre,30/08/2023,People and Places,Support Services,135B,M D Security,22/08/2023,PE152275,60.00,"Civic centre, carried out emergency light test for month 08/23",Alarm Systems and Security - Annual
Wyre Council,http://opendatacommunities.org/doc/district-council/wyre,30/08/2023,People and Places,Parking Services,133F,Aitch Tools & Fasteners LTD,01/08/2023,PE151750,12.31,PAYMENT OF doC070627 30/06/23,"Paths, Roads and Car Park Mtnce Annual"
Wyre Council,http://opendatacommunities.org/doc/district-council/wyre,30/08/2023,People and Places,Support Services,135B,Aitch Tools & Fasteners LTD,01/08/2023,PE151750,115.15,PAYMENT OF doC070627 30/06/23,Purchase of Tools or Equipment
Wyre Council,http://opendatacommunities.org/doc/district-council/wyre,30/08/2023,People and Places,Support Services,135B,Aitch Tools & Fasteners LTD,01/08/2023,PE151750,145.68,PAYMENT OF doC070627 30/06/23,Materials and Consumables
Wyre Council,http://opendatacommunities.org/doc/district-council/wyre,30/08/2023,People and Places,Support Services,135B,Aitch Tools & Fasteners LTD,01/08/2023,PE151750,100.00,PAYMENT OF doC070627 30/06/23,Protective Clothing
Wyre Council,http://opendatacommunities.org/doc/district-council/wyre,30/08/2023,People and Places,Environmental Services,132B,Aitch Tools & Fasteners LTD,01/08/2023,PE151750,184.26,PAYMENT OF doC070627 30/06/23,Materials and Consumables
Wyre Council,http://opendatacommunities.org/doc/district-council/wyre,30/08/2023,People and Places,Cultural and Related Services,132A,Stardrivemusic,22/08/2023,PE152269,-1967.50,Offset against invoice PE152268re: Jubilee Event 2022,Special Events
Wyre Council,http://opendatacommunities.org/doc/district-council/wyre,30/08/2023,People and Places,Cultural and Related Services,132A,British Gas,31/08/2023,PE152351,181.87,"603764149 - Victoria Road East, Thornton Little Theatre 29/03/23 to 06/04/23 rebilled",Gas
Wyre Council,http://opendatacommunities.org/doc/district-council/wyre,30/08/2023,People and Places,Cultural and Related Services,132A,British Gas,31/08/2023,PE152351,528.73,"603764149 - Victoria Road East, Thornton Little Theatre 07/04/23 to 06/05/23 rebilled",Gas
Wyre Council,http://opendatacommunities.org/doc/district-council/wyre,30/08/2023,People and Places,Cultural and Related Services,132A,British Gas,31/08/2023,PE152351,382.90,"603764149 - Victoria Road East, Thornton Little Theatre 07/05/23 to 07/06/23 rebilled",Gas
Wyre Council,http://opendatacommunities.org/doc/district-council/wyre,30/08/2023,People and Places,Cultural and Related Services,132A,British Gas,31/08/2023,PE152351,249.94,"603764149 - Victoria Road East, Thornton Little Theatre 08/06/23 to 07/06/23 rebilled",Gas
Wyre Council,http://opendatacommunities.org/doc/district-council/wyre,30/08/2023,People and Places,Cultural and Related Services,132A,British Gas,31/08/2023,PE152351,234.30,"603764149 - Victoria Road East, Thornton Little Theatre 08/07/23 to 03/08/23",Gas
Wyre Council,http://opendatacommunities.org/doc/district-council/wyre,30/08/2023,People and Places,Planning and Development Servs,132C,British Gas,31/08/2023,PE152351,551.16,"603764162 - Adelaide Street, Wyre  Borough Council 01/07/23 to 02/08/23",Gas
Wyre Council,http://opendatacommunities.org/doc/district-council/wyre,30/08/2023,People and Places,Support Services,135B,British Gas,31/08/2023,PE152351,1264.25,"603764151 - Wyre Borough Council,  Wyre Civic Centre 01/07/23 to 31/07/23",Gas
Wyre Council,http://opendatacommunities.org/doc/district-council/wyre,30/08/2023,People and Places,Cultural and Related Services,132A,British Gas,31/08/2023,PE152351,-2160.16,"603764149 - Victoria Road East, Thornton  Little Theatre credits",Gas
Wyre Council,http://opendatacommunities.org/doc/district-council/wyre,30/08/2023,People and Places,Cultural and Related Services,132A,British Gas,31/08/2023,PE152351,-304.00,"603764149 - Victoria Road East, Thornton Little Theatre credits",Gas
Wyre Council,http://opendatacommunities.org/doc/district-council/wyre,30/08/2023,People and Places,Cultural and Related Services,132A,British Gas,31/08/2023,PE152351,199.15,"603764149 - Victoria Road East, Thornton Little Theatre 01/03/23 to 28/03/23 rebilled",Gas
Wyre Council,http://opendatacommunities.org/doc/district-council/wyre,30/08/2023,People and Places,Planning and Development Servs,132C,British Gas,31/08/2023,PE152351,58.94,"603764150 - Copse Road, Copse Road  Depot 01/07/23 to 31/07/23",Gas
Wyre Council,http://opendatacommunities.org/doc/district-council/wyre,30/08/2023,People and Places,Cultural and Related Services,132A,N Power LTD,31/08/2023,PE152465,610.50,"16100023220857 YMCA Garstang Leisure Centre, Windsor Rd, Garstang, PR3 1ED 07/06/23 to 30/06/23, 1900.7kWh",Electricity
Wyre Council,http://opendatacommunities.org/doc/district-council/wyre,30/08/2023,People and Places,Cultural and Related Services,132A,N Power LTD,30/08/2023,PE151752,-610.50,"1610023220857 YMCA Garstang Leisure Centre, Windwor Rd, Garstang, PR3 1ED, 07/06/23 to 30/06/23 (1900.7KWh)",Electricity
Wyre Council,http://opendatacommunities.org/doc/district-council/wyre,30/08/2023,People and Places,Cultural and Related Services,132A,N Power LTD,30/08/2023,PE151752,610.50,"1610023220857 YMCA Garstang Leisure Centre, Windwor Rd, Garstang, PR3 1ED, 07/06/23 to 30/06/23 (1900.7KWh)",Electricity
Wyre Council,http://opendatacommunities.org/doc/district-council/wyre,30/08/2023,People and Places,Parking Services,133F,N Power LTD,16/08/2023,PE151849,2.83,16100036002855 Unmetered Supply Civic Centre 01/07/23 to 31/07/23 (9.9Kwh),Electricity
Wyre Council,http://opendatacommunities.org/doc/district-council/wyre,30/08/2023,People and Places,Environmental Services,132B,N Power LTD,16/08/2023,PE151849,0.52,16100036002855 Unmetered Supply Civic Centre 01/07/23 to 31/07/23 (9.9Kwh),Electricity
Wyre Council,http://opendatacommunities.org/doc/district-council/wyre,30/08/2023,People and Places,Environmental Services,132B,N Power LTD,16/08/2023,PE151848,267.47,1610036002846 Unmetered supply lighting Civic Centre 01/07/23 to 31/07/23 (5112.0 Kwh),Electricity
Wyre Council,http://opendatacommunities.org/doc/district-council/wyre,30/08/2023,People and Places,Parking Services,133F,N Power LTD,16/08/2023,PE151849,0.08,16100036002855 Unmetered Supply Civic Centre 01/07/23 to 31/07/23 (9.9Kwh),Electricity
Wyre Council,http://opendatacommunities.org/doc/district-council/wyre,30/08/2023,People and Places,Parking Services,133F,N Power LTD,16/08/2023,PE151850,459.92,1620000821031Unmetered Supply lighting Civic Centre 01/07/23 to 31/07/23 (1330.2Kwh),Electricity
Wyre Council,http://opendatacommunities.org/doc/district-council/wyre,30/08/2023,People and Places,Parking Services,133F,N Power LTD,16/08/2023,PE151848,1500.01,1610036002846 Unmetered supply lighting Civic Centre 01/07/23 to 31/07/23 (5112.0 Kwh),Electricity
Wyre Council,http://opendatacommunities.org/doc/district-council/wyre,30/08/2023,People and Places,Cultural and Related Services,132A,N Power LTD,15/08/2023,PE151942,4444.57,Electricity consumption 16293.2 for the period 01/07/23-31/07/23,Electricity
Wyre Council,http://opendatacommunities.org/doc/district-council/wyre,30/08/2023,People and Places,Cultural and Related Services,132A,N Power LTD,15/08/2023,PE151943,1187.46,Electricity charges for the period 01/07/23-31/07/23 Electricity consumption 4376.8,Electricity
Wyre Council,http://opendatacommunities.org/doc/district-council/wyre,30/08/2023,People and Places,Cultural and Related Services,132A,N Power LTD,15/08/2023,PE151940,7476.28,Electricity consumption 30345.6 for the period 01/07/23-31/07/23,Electricity
Wyre Council,http://opendatacommunities.org/doc/district-council/wyre,30/08/2023,People and Places,Cultural and Related Services,132A,N Power LTD,15/08/2023,PE151941,7991.97,Electricity consumption 30419.4 for the period 01/07/23-31/07/23,Electricity
Wyre Council,http://opendatacommunities.org/doc/district-council/wyre,30/08/2023,People and Places,Cultural and Related Services,132A,N Power LTD,15/08/2023,PE151944,771.34,Electricity charges for the period 01/07/23-31/07/23 quantity KWH used 2392.3,Electricity
Wyre Council,http://opendatacommunities.org/doc/district-council/wyre,30/08/2023,People and Places,Environmental Services,132B,N Power LTD,09/08/2023,PE151847,13.69,163000862336 Unmetered electricity supply for town centre CCTV cameras - July 23,CCTV Running Costs
Wyre Council,http://opendatacommunities.org/doc/district-council/wyre,30/08/2023,People and Places,Environmental Services,132B,N Power LTD,09/08/2023,PE151847,4.91,163000862336 Unmetered electricity supply for town centre CCTV cameras - July 23,CCTV Running Costs
Wyre Council,http://opendatacommunities.org/doc/district-council/wyre,30/08/2023,People and Places,Environmental Services,132B,N Power LTD,09/08/2023,PE151847,118.29,163000862336 Unmetered electricity supply for town centre CCTV cameras - July 23,CCTV Running Costs
Wyre Council,http://opendatacommunities.org/doc/district-council/wyre,30/08/2023,People and Places,Environmental Services,132B,N Power LTD,09/08/2023,PE151847,82.14,163000862336 Unmetered electricity supply for town centre CCTV cameras - July 23,CCTV Running Costs
Wyre Council,http://opendatacommunities.org/doc/district-council/wyre,30/08/2023,Resources,Support Services,135B,Crown Computing LTD,30/08/2023,RS152456,2925.00,Crown WFM Software G-Cloud,Software Maintenance
Wyre Council,http://opendatacommunities.org/doc/district-council/wyre,30/08/2023,Resources,Support Services,135B,Steve Wear Blinds,09/08/2023,RS151900,800.00,"Vertical blinds for the Members Lounge as discussed.  Unishade chocolate, blackout and fire retardant",Purchase Furniture
Wyre Council,http://opendatacommunities.org/doc/district-council/wyre,30/08/2023,People and Places,Cultural and Related Services,132A,Salina Somalya,25/08/2023,PE152440,910.00,Fee for Summer HAF sessions 2023,Special Events
Wyre Council,http://opendatacommunities.org/doc/district-council/wyre,30/08/2023,People and Places,Environmental Services,132B,COWLEY FIRE,17/08/2023,PE151871,49.33,preesall Cemetery: Service fire equipment,Planned Building Maintenance
Wyre Council,http://opendatacommunities.org/doc/district-council/wyre,30/08/2023,People and Places,Cultural and Related Services,132A,COWLEY FIRE,21/08/2023,PE152117,223.59,Cowley Fire Certificate,Planned Building Maintenance
Wyre Council,http://opendatacommunities.org/doc/district-council/wyre,30/08/2023,People and Places,Cultural and Related Services,132A,COWLEY FIRE,21/08/2023,PE152062,471.45,"Service the equipment, service spares fitted, supply new extinguishers, signs, fire and safety related products",Planned Building Maintenance
Wyre Council,http://opendatacommunities.org/doc/district-council/wyre,30/08/2023,People and Places,Cultural and Related Services,132A,Lancashire Clockmakers LTD,02/08/2023,PE151616,1092.00,"R16920: rotary clock, new cover glasses",Clock Maintenance - Responsive
Wyre Council,http://opendatacommunities.org/doc/district-council/wyre,30/08/2023,People and Places,Cultural and Related Services,132A,Lancashire Clockmakers LTD,02/08/2023,PE151616,370.00,"R16899: Fishermans walk clock, new motor fitted to the dial looking down Warrenhurst Rd",Clock Maintenance - Responsive
Wyre Council,http://opendatacommunities.org/doc/district-council/wyre,30/08/2023,People and Places,Cultural and Related Services,132A,Lancashire Clockmakers LTD,02/08/2023,PE151616,52.50,"R16848: Clock at Albert Square, Fleetwood recommissioned",Clock Maintenance - Responsive
Wyre Council,http://opendatacommunities.org/doc/district-council/wyre,30/08/2023,Resources,Housing General Fund,134A,Mobility Care Services,23/08/2023,RS152335,441.00,REDACT,Minor Adaptations
Wyre Council,http://opendatacommunities.org/doc/district-council/wyre,30/08/2023,Resources,Housing General Fund,134A,Mobility Care Services,23/08/2023,RS152334,133.00,REDACT,Minor Adaptations
Wyre Council,http://opendatacommunities.org/doc/district-council/wyre,30/08/2023,Resources,Housing General Fund,134A,Mobility Care Services,23/08/2023,RS152333,154.00,REDACT,Minor Adaptations
Wyre Council,http://opendatacommunities.org/doc/district-council/wyre,30/08/2023,Resources,Housing General Fund,134A,Mobility Care Services,23/08/2023,RS152332,185.00,REDACT,Minor Adaptations
Wyre Council,http://opendatacommunities.org/doc/district-council/wyre,30/08/2023,Resources,Housing General Fund,134A,Mobility Care Services,23/08/2023,RS152331,441.00,REDACT,Minor Adaptations
Wyre Council,http://opendatacommunities.org/doc/district-council/wyre,30/08/2023,Resources,Housing General Fund,134A,Mobility Care Services,23/08/2023,RS152330,441.00,REDACT,Minor Adaptations
Wyre Council,http://opendatacommunities.org/doc/district-council/wyre,30/08/2023,Resources,Housing General Fund,134A,Mobility Care Services,23/08/2023,RS152329,441.00,REDACT,Minor Adaptations
Wyre Council,http://opendatacommunities.org/doc/district-council/wyre,30/08/2023,Resources,Housing General Fund,134A,Mobility Care Services,23/08/2023,RS152319,574.00,REDACT,Minor Adaptations
Wyre Council,http://opendatacommunities.org/doc/district-council/wyre,30/08/2023,Resources,Housing General Fund,134A,Mobility Care Services,23/08/2023,RS152336,133.00,REDACT,Minor Adaptations
Wyre Council,http://opendatacommunities.org/doc/district-council/wyre,30/08/2023,Resources,Housing General Fund,134A,Mobility Care Services,31/08/2023,RS152535,434.00,REDACT,Minor Adaptations
Wyre Council,http://opendatacommunities.org/doc/district-council/wyre,30/08/2023,Resources,Housing General Fund,134A,Mobility Care Services,31/08/2023,RS152534,595.00,REDACT,Minor Adaptations
Wyre Council,http://opendatacommunities.org/doc/district-council/wyre,30/08/2023,Resources,Housing General Fund,134A,Mobility Care Services,31/08/2023,RS152533,320.00,REDACT,Minor Adaptations
Wyre Council,http://opendatacommunities.org/doc/district-council/wyre,30/08/2023,Resources,Housing General Fund,134A,Mobility Care Services,31/08/2023,RS152532,520.00,REDACT,Minor Adaptations
Wyre Council,http://opendatacommunities.org/doc/district-council/wyre,30/08/2023,Resources,Housing General Fund,134A,Mobility Care Services,31/08/2023,RS152531,154.00,REDACT,Minor Adaptations
Wyre Council,http://opendatacommunities.org/doc/district-council/wyre,30/08/2023,Resources,Housing General Fund,134A,Mobility Care Services,31/08/2023,RS152530,308.00,REDACT,Minor Adaptations
Wyre Council,http://opendatacommunities.org/doc/district-council/wyre,30/08/2023,Resources,Support Services,135B,Greenhalgh Kerr,22/08/2023,RS152254,2893.50,Matter No L0002829 Debtor Name Teshuvoh Tefilloh Tzedokoh,Consultants Fees
Wyre Council,http://opendatacommunities.org/doc/district-council/wyre,30/08/2023,People and Places,Environmental Services,132B,Calico Enterprise,17/08/2023,PE151894,-1460.00,offsets PE136641 duplicate bulky matters contract 21/22,Refuse Collection Contract
Wyre Council,http://opendatacommunities.org/doc/district-council/wyre,30/08/2023,People and Places,Environmental Services,132B,Poulton Pets LTD,24/08/2023,PE152371,1621.50,Provision of stray dog kennelling service 2023/24,Impounded Dogs Costs
Wyre Council,http://opendatacommunities.org/doc/district-council/wyre,30/08/2023,Resources,Support Services,135B,Coolspirit LTD,25/08/2023,RS152447,2892.00,"Commvault Metallic Recovery Reserve Renewal 2023 - 8 Month Co-Termed to O365 Subscription.Commvault Metallic Cloud Storage Service for Commvault, EMEA, Cool Tier, Subscription, Per TB, Per MonthStart Date: 17-Aug-2023 End Date: 29-Apr-2024",Software Maintenance
Wyre Council,http://opendatacommunities.org/doc/district-council/wyre,30/08/2023,People and Places,Support Services,135B,The County Tyre (Holdings) LTD,24/08/2023,PE152393,342.00,Tyres,Tyres
Wyre Council,http://opendatacommunities.org/doc/district-council/wyre,30/08/2023,People and Places,Support Services,135B,The County Tyre (Holdings) LTD,22/08/2023,PE152323,291.90,Tyres,Tyres
Wyre Council,http://opendatacommunities.org/doc/district-council/wyre,30/08/2023,Resources,Support Services,135B,PSTAX Consulting Limited,07/08/2023,RS151822,500.00,Partial Exemption - extend calculation deadline with HMRC,Consultants Fees
Wyre Council,http://opendatacommunities.org/doc/district-council/wyre,30/08/2023,People and Places,"Cultural, Environ and Planning",137B,Vivid Resourcing Ltd,09/08/2023,RS151816,10440.00,Fleetwood Market - Steve Solsby time,Contract (New CCR)
Wyre Council,http://opendatacommunities.org/doc/district-council/wyre,30/08/2023,People and Places,Cultural and Related Services,132A,Lords Deli,02/08/2023,PE151781,-587.50,Marine Hall wedding 19/05,Private Contractors
Wyre Council,http://opendatacommunities.org/doc/district-council/wyre,30/08/2023,People and Places,Environmental Services,132B,PermiServ Ltd,16/08/2023,PE152130,2504.61,"27,000 Production, Postage and Management of Green Waste Subscription Stickers/Portal, as per Lancashire Agreement(Unit cost 1.02 per sticker)Please leave PO open as it will be drawn-off each monthe-mail address:Rebecca Padgham rebecca@perm",Postage
Wyre Council,http://opendatacommunities.org/doc/district-council/wyre,30/08/2023,People and Places,Environmental Services,132B,PermiServ Ltd,16/08/2023,PE152130,2504.61,"27,000 Production, Postage and Management of Green Waste Subscription Stickers/Portal, as per Lancashire Agreement(Unit cost 1.02 per sticker)Please leave PO open as it will be drawn-off each monthe-mail address:Rebecca Padgham rebecca@perm",Promotions - General
Wyre Council,http://opendatacommunities.org/doc/district-council/wyre,30/08/2023,People and Places,Support Services,135B,JADU CREATIVE LTD,16/08/2023,PE152120,4200.00,PayBridge support  24/09/2023 to 23/09/2024,Software Maintenance
Wyre Council,http://opendatacommunities.org/doc/district-council/wyre,30/08/2023,Resources,Support Services,135B,JADU CREATIVE LTD,08/08/2023,RS151165,6500.00,CMS Basic Support - Jadu Hosted 23/08/2023 to 22/08/2024,Software Maintenance
Wyre Council,http://opendatacommunities.org/doc/district-council/wyre,30/08/2023,Resources,Support Services,135B,JADU CREATIVE LTD,08/08/2023,RS151165,6500.00,XFP Basic Support - Jadu Hosted 23/08/2023 to 22/08/2024,Software Maintenance
Wyre Council,http://opendatacommunities.org/doc/district-council/wyre,30/08/2023,People and Places,Support Services,135B,WATER PLUS LTD,30/08/2023,PE152325,-85371.68,"3002029939 Wyre Civic Centre, Breck Road, POULTON-LE-FYLDE, FY6 7PU burst allowance sewerage adjustment  20/01/22 to 24/04/23",Sewerage
Wyre Council,http://opendatacommunities.org/doc/district-council/wyre,30/08/2023,People and Places,Support Services,135B,WATER PLUS LTD,30/08/2023,PE149538,-7155.49,Sewerage Charge Credits,Sewerage
Wyre Council,http://opendatacommunities.org/doc/district-council/wyre,30/08/2023,People and Places,Support Services,135B,WATER PLUS LTD,30/08/2023,PE149538,-10822.63,Water Charge Credits,Water Charges-Metered
Wyre Council,http://opendatacommunities.org/doc/district-council/wyre,30/08/2023,People and Places,Support Services,135B,WATER PLUS LTD,30/08/2023,PE152326,-126249.84,"3002029939 Wyre Civic Centre, Breck Road, POULTON-LE-FYLDE, FY6 7PU burst allowance water adjustment 20/01/22 to 24/04/23",Water Charges-Metered
Wyre Council,http://opendatacommunities.org/doc/district-council/wyre,30/08/2023,People and Places,Cultural and Related Services,132A,WATER PLUS LTD,30/08/2023,PE149538,-656.56,Water Charge Credits,Water Charges-Metered
Wyre Council,http://opendatacommunities.org/doc/district-council/wyre,30/08/2023,People and Places,"Cultural, Environ and Planning",137B,MARLAN MARITIME TECHNOLOGIES LTD,25/08/2023,PE152433,5250.00,Works to provide synoptic radar monitoring at sites across NW for Eco-CoBS project. Deployment at first site Fleetwood 16 Dec 2021. Contract until 31 March 2027.,Consultants Fees (New CCR)
Wyre Council,http://opendatacommunities.org/doc/district-council/wyre,30/08/2023,People and Places,Cultural and Related Services,132A,DENISE KEEN-JUNK,30/08/2023,PE152488,2060.00,Fee for Summer HAF sessions 2023,Special Events
Wyre Council,http://opendatacommunities.org/doc/district-council/wyre,30/08/2023,Resources,Housing General Fund,134A,MOVE HOLMES,10/08/2023,RS151930,708.33,REDACT,Rough Sleeper Project/NSNO
Wyre Council,http://opendatacommunities.org/doc/district-council/wyre,30/08/2023,Resources,Housing General Fund,134A,RHEA PROJECTS LTD,16/08/2023,RS152111,2350.00,Payment of invoice RP-1905,Affordable Warmth 2017/18
Wyre Council,http://opendatacommunities.org/doc/district-council/wyre,30/08/2023,Resources,Housing General Fund,134A,RHEA PROJECTS LTD,11/08/2023,RS151951,4370.00,payment of invoice RP - 1899,Affordable Warmth 2017/18
Wyre Council,http://opendatacommunities.org/doc/district-council/wyre,30/08/2023,Resources,Housing General Fund,134A,RHEA PROJECTS LTD,25/08/2023,RS152436,2275.00,"boiler replacement, 1 Beachcomber road Thornton Cleveleys FY5 1ED - Invoice RP-1922",Affordable Warmth 2017/18
Wyre Council,http://opendatacommunities.org/doc/district-council/wyre,30/08/2023,Resources,Housing General Fund,134A,RHEA PROJECTS LTD,25/08/2023,RS152435,1500.00,"Replacement pipework + radiators at 73A Mount Street, Fleetwood FY7 6QZ - Invoice NO - RP-1920",Affordable Warmth 2017/18
Wyre Council,http://opendatacommunities.org/doc/district-council/wyre,30/08/2023,Resources,Housing General Fund,134A,RHEA PROJECTS LTD,25/08/2023,RS152437,1970.00,"Boiler replacement at 14 Hamers wood drive, Catterall PR3 1ZN Invoice NO - RP-1321",Affordable Warmth 2017/18
Wyre Council,http://opendatacommunities.org/doc/district-council/wyre,30/08/2023,Resources,Support Services,135B,THE NETWORKING PEOPLE (TNP) LTD,21/08/2023,RS152265,436.42,"FTTC connection to Sea Defence Depot, FY7 8EJ - Annual rental 26/08/23 -25/08/24",Internet and Telephone Charges
Wyre Council,http://opendatacommunities.org/doc/district-council/wyre,30/08/2023,Resources,Support Services,135B,THE NETWORKING PEOPLE (TNP) LTD,21/08/2023,RS152240,436.42,"Wholesale FTTC connection to Ymca Garstang Leisure Centre, Windsor Road, 1 436.42 20.0 436.42Garstang, Preston, PR3 1ED - Annual Rental 02/08/2023 - 01/08/2024",Internet and Telephone Charges
Wyre Council,http://opendatacommunities.org/doc/district-council/wyre,30/08/2023,People and Places,Cultural and Related Services,132A,MELTING POT/VISAGE,16/08/2023,PE152064,850.00,Visage Melting Pot - Musical Mayhem 15/07/23 ticket sales,Refund of Ticket Sales to Ext Promoters
Wyre Council,http://opendatacommunities.org/doc/district-council/wyre,30/08/2023,People and Places,Planning and Development Servs,132C,STANTEC UK LTD,02/08/2023,PE151773,5586.00,Project: Garstang Town Centre Car Parking Study (E01: Improvements to town centres & high streets),Project Costs
Wyre Council,http://opendatacommunities.org/doc/district-council/wyre,30/08/2023,People and Places,Planning and Development Servs,132C,STANTEC UK LTD,10/08/2023,PE151958,19889.00,Garstang Town Centre Public Realm Improvements: Design & Public Consultation - First Payment(UKSPF E01: Improvements To Town Centres & High Streets),Project Costs
Wyre Council,http://opendatacommunities.org/doc/district-council/wyre,30/08/2023,Resources,Housing General Fund,134A,DESTIN SOLUTIONS LTD,14/08/2023,RS151979,9000.00,DESTIN - Renewal 1st August 2023 to 31st July 2024,Purchase of Tools or Equipment
Wyre Council,http://opendatacommunities.org/doc/district-council/wyre,30/08/2023,People and Places,Support Services,135B,ENDURA GROUP LTD T/A LANDSCAPE SUPPLY COMPANY,17/08/2023,PE152121,179.50,Please supply the following items:-  Stihl Autocut 25-2 head                 2525                       17.95                     10 of,Daywork Materials (Excl.Tyres)
Wyre Council,http://opendatacommunities.org/doc/district-council/wyre,30/08/2023,People and Places,Support Services,135B,ENDURA GROUP LTD T/A LANDSCAPE SUPPLY COMPANY,17/08/2023,PE152121,50.20,Autocut spool 25-2                          2526                       2.51                        20 of,Daywork Materials (Excl.Tyres)
Wyre Council,http://opendatacommunities.org/doc/district-council/wyre,30/08/2023,People and Places,Support Services,135B,ENDURA GROUP LTD T/A LANDSCAPE SUPPLY COMPANY,17/08/2023,PE152121,117.20,Autocut base 25-2                            2771                       11.72                     10 of,Daywork Materials (Excl.Tyres)
Wyre Council,http://opendatacommunities.org/doc/district-council/wyre,30/08/2023,People and Places,Support Services,135B,ENDURA GROUP LTD T/A LANDSCAPE SUPPLY COMPANY,17/08/2023,PE152121,11.20,Autocut 25-2 spring                         2782                       1.12                        10 of,Daywork Materials (Excl.Tyres)
Wyre Council,http://opendatacommunities.org/doc/district-council/wyre,30/08/2023,People and Places,Support Services,135B,ENDURA GROUP LTD T/A LANDSCAPE SUPPLY COMPANY,17/08/2023,PE152121,159.80,Stihl autocut 46-2 spool                 2343                       7.99                        20 of,Daywork Materials (Excl.Tyres)
Wyre Council,http://opendatacommunities.org/doc/district-council/wyre,30/08/2023,People and Places,Support Services,135B,ENDURA GROUP LTD T/A LANDSCAPE SUPPLY COMPANY,17/08/2023,PE152121,46.16,Sarta edging shears                                                         2898                       23.08                     2 of,Materials and Consumables
Wyre Council,http://opendatacommunities.org/doc/district-council/wyre,30/08/2023,People and Places,Support Services,135B,ENDURA GROUP LTD T/A LANDSCAPE SUPPLY COMPANY,17/08/2023,PE152121,27.66,Edging iron                                                                         2942                       13.83                     2 of,Materials and Consumables
Wyre Council,http://opendatacommunities.org/doc/district-council/wyre,30/08/2023,People and Places,Support Services,135B,ENDURA GROUP LTD T/A LANDSCAPE SUPPLY COMPANY,17/08/2023,PE152121,19.40,Evenspray fantip nozzle 80 yellow                             2435                       9.70                        2 of,Materials and Consumables
Wyre Council,http://opendatacommunities.org/doc/district-council/wyre,30/08/2023,People and Places,Support Services,135B,ENDURA GROUP LTD T/A LANDSCAPE SUPPLY COMPANY,17/08/2023,PE152121,19.40,Evenspray fantip nozzle 80 red                                   2437                       9.70                        2 of,Materials and Consumables
Wyre Council,http://opendatacommunities.org/doc/district-council/wyre,30/08/2023,People and Places,Support Services,135B,ENDURA GROUP LTD T/A LANDSCAPE SUPPLY COMPANY,17/08/2023,PE152121,19.40,Evenspray fantip nozzle 80 blue                                 2436                       9.70                        2 of,Materials and Consumables
Wyre Council,http://opendatacommunities.org/doc/district-council/wyre,30/08/2023,People and Places,Support Services,135B,ENDURA GROUP LTD T/A LANDSCAPE SUPPLY COMPANY,17/08/2023,PE152121,19.40,Fantip nozzle 110                                                              2439                       9.70                        2 of,Materials and Consumables
Wyre Council,http://opendatacommunities.org/doc/district-council/wyre,30/08/2023,People and Places,Support Services,135B,ENDURA GROUP LTD T/A LANDSCAPE SUPPLY COMPANY,17/08/2023,PE152121,82.10,"Sartra leather work glove large                                   0921                       8.21                        10 of                  Delivery to Wyre Council, Cospe Road Depot, Copse Road, Fleetwood, Lancashire, FY7 6RP",Materials and Consumables
Wyre Council,http://opendatacommunities.org/doc/district-council/wyre,30/08/2023,People and Places,Support Services,135B,CORNTHWAITE GROUP,17/08/2023,PE152137,1334.50,Tractor Repair and parts PF67 HCO,Daywork Materials (Excl.Tyres)
Wyre Council,http://opendatacommunities.org/doc/district-council/wyre,30/08/2023,People and Places,Cultural and Related Services,132A,Corona Energy Retail 4 Limited,24/08/2023,PE152005,2204.12,1630000670291 Promendae Cafe North  Promenade Thornton-Cleveleys FY51DB 01/07/2023 to 31/07/2023 (6182Kwh),Electricity
Wyre Council,http://opendatacommunities.org/doc/district-council/wyre,30/08/2023,People and Places,Environmental Services,132B,Corona Energy Retail 4 Limited,24/08/2023,PE152006,98.99,1600000023675 Royles Brook Pumping Station  Off Victoria Road East Thornton FY55OX 01/07/2023 to 31/07/2023 (228Kwh),Electricity
Wyre Council,http://opendatacommunities.org/doc/district-council/wyre,30/08/2023,People and Places,Planning and Development Servs,132C,Corona Energy Retail 4 Limited,24/08/2023,PE152011,804.01,1620000784666 Main Hall Adelaide Street  Fleetwood FY76AB 01/07/2023 to 31/07/2023 (0Kwh),Electricity
Wyre Council,http://opendatacommunities.org/doc/district-council/wyre,30/08/2023,People and Places,Support Services,135B,Corona Energy Retail 4 Limited,24/08/2023,PE152007,10663.87,1600000162857 Civic Centre Breck Road  Blackpool FY39DT 01/07/2023 to 31/07/2023 (27933Kwh),Electricity
Wyre Council,http://opendatacommunities.org/doc/district-council/wyre,30/08/2023,People and Places,Cultural and Related Services,132A,Corona Energy Retail 4 Limited,24/08/2023,PE152008,5175.89,1600000162875 Marine Hall The Esplanade  Fleetwood FY76HF 01/07/2023 to 31/07/2023 (11100Kwh),Electricity
Wyre Council,http://opendatacommunities.org/doc/district-council/wyre,30/08/2023,People and Places,Planning and Development Servs,132C,Corona Energy Retail 4 Limited,24/08/2023,PE152009,1829.19,1640000184606 Council Depot Copse Road  Fleetwood FY76RP 01/07/2023 to 31/07/2023 (4890Kwh),Electricity
Wyre Council,http://opendatacommunities.org/doc/district-council/wyre,30/08/2023,People and Places,Cultural and Related Services,132A,Corona Energy Retail 4 Limited,24/08/2023,PE152010,208.81,1640000233705 Coastal Observation Point  Rossal Point Fleetwood FY78AF 01/07/2023 to 31/07/2023 (536Kwh),Electricity
Wyre Council,http://opendatacommunities.org/doc/district-council/wyre,30/08/2023,People and Places,Environmental Services,132B,Corona Energy Retail 4 Limited,24/08/2023,PE152096,383.69,1610004742413 Stanah Pumphouse 11 River  Road Stanah Pumphouse 11 FY55LR 01/07/23 to 01/08/23 E (474Kwh),Electricity
Wyre Council,http://opendatacommunities.org/doc/district-council/wyre,30/08/2023,People and Places,Cultural and Related Services,132A,Corona Energy Retail 4 Limited,24/08/2023,PE152107,1503.34,1610004773866 Wyre Borough Council Lecture  Hall Lecture Hall FY54AD 01/07/23 to 01/08/23 E (629Kwh),Electricity
Wyre Council,http://opendatacommunities.org/doc/district-council/wyre,30/08/2023,People and Places,Cultural and Related Services,132A,Corona Energy Retail 4 Limited,24/08/2023,PE152098,33.86,1610004305443 Sports Pavilion Sports  Pavilion Cottam Hall FY67RH 01/07/23 to 01/08/23 E (43Kwh),Electricity
Wyre Council,http://opendatacommunities.org/doc/district-council/wyre,30/08/2023,People and Places,Cultural and Related Services,132A,Corona Energy Retail 4 Limited,24/08/2023,PE152105,57.86,1610004305434 Sports Pavilion Sports  Pavilion Cottam Hall FY67RH 01/07/23 to 01/08/23 E (24Kwh),Electricity
Wyre Council,http://opendatacommunities.org/doc/district-council/wyre,30/08/2023,People and Places,Cultural and Related Services,132A,Corona Energy Retail 4 Limited,24/08/2023,PE152101,72.55,1610004318841 Jean Stansfield Bowling Green  Vicarage Road Jean Stansfield Bowling Green FY67BE 01/07/23 to 01/08/23 R  (18Kwh),Electricity
Wyre Council,http://opendatacommunities.org/doc/district-council/wyre,30/08/2023,People and Places,Cultural and Related Services,132A,Corona Energy Retail 4 Limited,24/08/2023,PE152095,113.85,1610004724089 Pavilion North Drive Pavilion  FY52QD 01/07/23 to 01/08/23 R (135Kwh),Electricity
Wyre Council,http://opendatacommunities.org/doc/district-council/wyre,30/08/2023,People and Places,Environmental Services,132B,Corona Energy Retail 4 Limited,24/08/2023,PE152090,1364.76,1610004347328 East Cemetry Garstang Road  East East Cemetry FY67SN 01/07/23 to 01/08/23 E (1801Kwh),Electricity
Wyre Council,http://opendatacommunities.org/doc/district-council/wyre,30/08/2023,People and Places,Environmental Services,132B,Corona Energy Retail 4 Limited,24/08/2023,PE152097,719.46,1610004313728 Public Convenience Off  Queensway Teanlowe Centre FY67DF 01/07/23 to 01/08/23 E (913Kwh),Electricity
Wyre Council,http://opendatacommunities.org/doc/district-council/wyre,30/08/2023,People and Places,Environmental Services,132B,Corona Energy Retail 4 Limited,24/08/2023,PE152100,148.06,1610023232505 Public Conveniences Public  Conveniences Car Park PR31EA 01/07/23 to 01/08/23 R (171Kwh),Electricity
Wyre Council,http://opendatacommunities.org/doc/district-council/wyre,30/08/2023,People and Places,Environmental Services,132B,Corona Energy Retail 4 Limited,24/08/2023,PE152103,647.56,1610004665168 Public Conven Public Conven  Bus Station FY51BW 01/07/23 to 01/08/23 R (819Kwh),Electricity
Wyre Council,http://opendatacommunities.org/doc/district-council/wyre,30/08/2023,People and Places,Central Services to the Public,131C,Corona Energy Retail 4 Limited,24/08/2023,PE152099,3156.71,1610004322012 Womens Royal Voluntary  Service Teanlowe Day Centre Teanlowe Day Centre FY67ST 01/07/23 to 01/08/23 R  (4027Kwh),Electricity
Wyre Council,http://opendatacommunities.org/doc/district-council/wyre,30/08/2023,People and Places,Environmental Services,132B,Corona Energy Retail 4 Limited,24/08/2023,PE152094,26.66,1610004421200 Pumping Station 2 New Lane  Pumping Station 2 FY55NH 01/07/23 to 01/08/23 E (14Kwh),Electricity
Wyre Council,http://opendatacommunities.org/doc/district-council/wyre,30/08/2023,People and Places,Environmental Services,132B,Corona Energy Retail 4 Limited,24/08/2023,PE152104,25.74,1610004421042 Pumping Station;1 New Lane  Pumping Station;1 FY55NS 01/07/23 to 01/08/23 E (2Kwh),Electricity
Wyre Council,http://opendatacommunities.org/doc/district-council/wyre,30/08/2023,People and Places,Cultural and Related Services,132A,Corona Energy Retail 4 Limited,24/08/2023,PE152108,236.00,1610004863632 Beach Bungalows The Esplanade  Beach Bungalows FY76QD 01/07/23 to 01/08/23 E (154Kwh),Electricity
Wyre Council,http://opendatacommunities.org/doc/district-council/wyre,30/08/2023,People and Places,Cultural and Related Services,132A,Corona Energy Retail 4 Limited,24/08/2023,PE152102,223.34,1650000008330 The Mount Pavilion Mount Road  Fleetwood FY76EZ 01/07/23 to 01/08/23 R (293Kwh),Electricity
Wyre Council,http://opendatacommunities.org/doc/district-council/wyre,30/08/2023,People and Places,Cultural and Related Services,132A,Corona Energy Retail 4 Limited,24/08/2023,PE152106,347.13,1640000960322 The Mount Lodge The Esplanade  The Mount Lodge FY76EZ 01/07/23 to 01/08/23 R (440Kwh),Electricity
Wyre Council,http://opendatacommunities.org/doc/district-council/wyre,30/08/2023,People and Places,Cultural and Related Services,132A,Corona Energy Retail 4 Limited,24/08/2023,PE152093,191.91,1610004742431 Visitors Centre River Road  Visitors Centre FY55LR 01/07/23 to 01/08/23 E (334Kwh),Electricity
Wyre Council,http://opendatacommunities.org/doc/district-council/wyre,30/08/2023,People and Places,Cultural and Related Services,132A,Corona Energy Retail 4 Limited,24/08/2023,PE152092,316.38,1610004742399 River Road Thornton Cleveleys  River Road FY55LR 01/07/23 to 01/08/23 R (386Kwh),Electricity
Wyre Council,http://opendatacommunities.org/doc/district-council/wyre,30/08/2023,People and Places,Cultural and Related Services,132A,Corona Energy Retail 4 Limited,24/08/2023,PE152091,8.14,1610004742404 River Road Thornton Cleveleys  River Road FY55LR 01/07/23 to 01/08/23 R (0Kwh),Electricity
Wyre Council,http://opendatacommunities.org/doc/district-council/wyre,30/08/2023,Resources,Housing General Fund,134A,Carter Property Ltd,14/08/2023,RS151998,7800.00,REDACT,Rough Sleeper Project/NSNO
Wyre Council,http://opendatacommunities.org/doc/district-council/wyre,30/08/2023,Resources,Cultural and Related Services,132A,Visual Print and Design Ltd,23/08/2023,RS152337,280.00,50 Discover Wyre Tote Bags,Advertising - General
Wyre Council,http://opendatacommunities.org/doc/district-council/wyre,30/08/2023,People and Places,Planning and Development Servs,132C,Visual Print and Design Ltd,21/08/2023,PE152264,1325.00,FM DL leaflet,Promotions - General
Wyre Council,http://opendatacommunities.org/doc/district-council/wyre,30/08/2023,Resources,Support Services,135B,Karen Openshaw Consultancy,02/08/2023,RS151783,520.00,Listening Services until March 22024,Occupational Health Fees
Wyre Council,http://opendatacommunities.org/doc/district-council/wyre,30/08/2023,Resources,Support Services,135B,Karen Openshaw Consultancy,31/08/2023,RS152527,350.00,Listening Services until March 22024,Occupational Health Fees
Wyre Council,http://opendatacommunities.org/doc/district-council/wyre,30/08/2023,People and Places,"Cultural, Environ and Planning",137B,Purcell Architecture Limited,31/08/2023,PE152546,10045.62,Fleetwood Market.  Additional Fees for Architect (MEP/Struct.Eng/QS +12.5% Admin Markup),Consultants Fees (New CCR)
Wyre Council,http://opendatacommunities.org/doc/district-council/wyre,30/08/2023,People and Places,"Cultural, Environ and Planning",137B,Purcell Architecture Limited,01/08/2023,PE151744,928.12,"Fleetwood Market Consultants Fees 2023/24.  This Order replaces the following outstanding Orders: PEO0025404, PEO0025405, PEO0025427 and PEO0025528",Consultants Fees (New CCR)
Wyre Council,http://opendatacommunities.org/doc/district-council/wyre,30/08/2023,People and Places,"Cultural, Environ and Planning",137B,Purcell Architecture Limited,01/08/2023,PE151738,3012.50,"Fleetwood Market Consultants Fees 2023/24.  This Order replaces the following outstanding Orders: PEO0025404, PEO0025405, PEO0025427 and PEO0025528",Consultants Fees (New CCR)
Wyre Council,http://opendatacommunities.org/doc/district-council/wyre,30/08/2023,People and Places,Cultural and Related Services,132A,Fylde Coast Holiday Club,01/08/2023,PE151615,6078.00,Week One � Summer HAF 2023: 24.07.23  28.07.23 Holiday club at Fleetwood High  School from 08:30  16:00.  4 sessions per week per child.  296 children 12.00 per day  per child 3552.00 Packed breakfast/lunch/snack   296 breakfast/lunch/ snack for the,Project Costs
Wyre Council,http://opendatacommunities.org/doc/district-council/wyre,30/08/2023,People and Places,Cultural and Related Services,132A,Fylde Coast Holiday Club,24/08/2023,PE152396,6150.00,Fylde Coast Holiday Club Summer HAF invoice,Project Costs
Wyre Council,http://opendatacommunities.org/doc/district-council/wyre,30/08/2023,People and Places,Cultural and Related Services,132A,Fylde Coast Holiday Club,24/08/2023,PE152397,6042.00,Fylde Coast Holiday Club Summer HAF delivery Week 4,Project Costs
Wyre Council,http://opendatacommunities.org/doc/district-council/wyre,30/08/2023,People and Places,Cultural and Related Services,132A,Fylde Coast Holiday Club,09/08/2023,PE151906,6114.00,"2023 - week 2 HAF, 298 children @12 per place, 4 days per week plus food, snacks, admin and extra staff/room costs",Project Costs
Wyre Council,http://opendatacommunities.org/doc/district-council/wyre,30/08/2023,People and Places,Cultural and Related Services,132A,Acorns,08/08/2023,PE151884,4243.00,"142Full day Summer Club HAF club attendance 25.00= 3,550142Lunch4.00 = 5685Admin hours25.00 = 125Summer HAF 2023 provision",Project Costs
Wyre Council,http://opendatacommunities.org/doc/district-council/wyre,30/08/2023,People and Places,Parking Services,133F,CHIPSIDE LTD,21/08/2023,PE152239,830.13,provision of notice processing services 1 April 2023 - 31 March 2024; including postage,Private Contractors
Wyre Council,http://opendatacommunities.org/doc/district-council/wyre,30/08/2023,People and Places,Parking Services,133F,CHIPSIDE LTD,14/08/2023,PE151993,53.25,Wyre Council bank transaction fees 1 April 2023 - 31 March 2024,Private Contractors
Wyre Council,http://opendatacommunities.org/doc/district-council/wyre,30/08/2023,People and Places,Parking Services,133F,CHIPSIDE LTD,14/08/2023,PE151994,15.00,Provide 2 no. 500 Mb SIMS for Wyre handheld units - 1 April 2023 - 31 March 2024,Maintenance of Tools or Equipment
Wyre Council,http://opendatacommunities.org/doc/district-council/wyre,30/08/2023,Resources,Support Services,135B,CCS MEDIA LTD,23/08/2023,RS152355,5832.07,C11CH82301A1 - Epson-C11CH82301A1 Epson SC-T5700DM Dual Roll SSD Adobe PS,Purchase of Tools or Equipment
Wyre Council,http://opendatacommunities.org/doc/district-council/wyre,30/08/2023,Resources,Support Services,135B,CCS MEDIA LTD,23/08/2023,RS152355,1054.74,Singlepack UltraChrome XD3 SET OF 6 T50UF (700ml),Purchase of Tools or Equipment
Wyre Council,http://opendatacommunities.org/doc/district-council/wyre,30/08/2023,Resources,Support Services,135B,CCS MEDIA LTD,23/08/2023,RS152355,1709.47,5 YEAR WARRANTY INC PRINTHEAD,Purchase of Tools or Equipment
Wyre Council,http://opendatacommunities.org/doc/district-council/wyre,30/08/2023,Resources,Support Services,135B,CCS MEDIA LTD,23/08/2023,RS152355,395.00,Epson T5700DM Installtion - Ground floor easy access.UN-BRANDED NTI INSTALLATION,Purchase of Tools or Equipment
Wyre Council,http://opendatacommunities.org/doc/district-council/wyre,30/08/2023,People and Places,"Cultural, Environ and Planning",137B,Susannah Bleakley Consulting,15/08/2023,PE151999,5465.30,ECO-CoBS Project,Consultants Fees (New CCR)
Wyre Council,http://opendatacommunities.org/doc/district-council/wyre,30/08/2023,People and Places,Cultural and Related Services,132A,George Hewitt Fabrications,23/08/2023,PE152321,1400.00,Works at Church Road Thornton,Barrier Security
Wyre Council,http://opendatacommunities.org/doc/district-council/wyre,30/08/2023,People and Places,Cultural and Related Services,132A,George Hewitt Fabrications,23/08/2023,PE152321,1400.00,"Fabrication of 7.5m complete barrier set at Roundway, Fleetwood",Barrier Security
Wyre Council,http://opendatacommunities.org/doc/district-council/wyre,30/08/2023,People and Places,Cultural and Related Services,132A,George Hewitt Fabrications,23/08/2023,PE152321,45.00,"Welding on barrier on site at King Georges, Thornton",Barrier Security
Wyre Council,http://opendatacommunities.org/doc/district-council/wyre,30/08/2023,People and Places,Cultural and Related Services,132A,George Hewitt Fabrications,23/08/2023,PE152321,3700.00,"Works to King Georges, Thornton",Barrier Security
Wyre Council,http://opendatacommunities.org/doc/district-council/wyre,30/08/2023,People and Places,Environmental Services,132B,George Hewitt Fabrications,22/08/2023,PE152320,1300.00,Round M20 U Bolts,Materials and Consumables
Wyre Council,http://opendatacommunities.org/doc/district-council/wyre,30/08/2023,People and Places,Environmental Services,132B,George Hewitt Fabrications,22/08/2023,PE152320,1400.00,Square M20 U Bolts,Materials and Consumables
Wyre Council,http://opendatacommunities.org/doc/district-council/wyre,30/08/2023,People and Places,Environmental Services,132B,George Hewitt Fabrications,22/08/2023,PE152320,50.00,M20 nuts,Materials and Consumables
Wyre Council,http://opendatacommunities.org/doc/district-council/wyre,30/08/2023,People and Places,Parking Services,133F,Park Now Limited,17/08/2023,PE152135,669.86,RingGo Fees for 1 April 2023 - 31 March 2024- service charges- text summary charges- text reminder charges- card processing fess,Other Parking Fees and Commission
Wyre Council,http://opendatacommunities.org/doc/district-council/wyre,30/08/2023,People and Places,Cultural and Related Services,132A,John Carney,09/08/2023,PE151892,240.00,Mount Cottages: Carry out slate repairs to different areas of roof.  Supply and fix cap ridge where missing,Responsive Building Maintenance
Wyre Council,http://opendatacommunities.org/doc/district-council/wyre,30/08/2023,People and Places,Cultural and Related Services,132A,John Carney,09/08/2023,PE151893,950.00,"Cottam Hall Pavillion, YMCA: major tile repairs to all areas of roof due to vandals. supply and fix tiles, bagged up rubbish and removed",Responsive Building Maintenance
Wyre Council,http://opendatacommunities.org/doc/district-council/wyre,30/08/2023,People and Places,Support Services,135B,John Carney,08/08/2023,PE151860,290.00,Civic Centre Gents toilets: Supply and fix small tiles to inner roof to stop water ingress,Responsive Building Maintenance
Wyre Council,http://opendatacommunities.org/doc/district-council/wyre,30/08/2023,People and Places,Cultural and Related Services,132A,John Carney,08/08/2023,PE151861,850.00,"Garstang Leisure Centre: Unblocking down pipe to main roof, cleaning out all debris.  Clear away stones and debris to flat roof area at corner of building. Dry off roof, prepare and appl Crompol solution to stop water ingress. Secure man hole cover at rea",Responsive Building Maintenance
Wyre Council,http://opendatacommunities.org/doc/district-council/wyre,30/08/2023,Resources,Support Services,135B,NDL Software Ltd,24/08/2023,RS152395,3600.00,Quotation No: 11776/2922 3 x Professional Services Days @ 1200 each,Consultants Fees
Wyre Council,http://opendatacommunities.org/doc/district-council/wyre,30/08/2023,Resources,Support Services,135B,Amazon Business,22/08/2023,RS152283,264.33,Logitech iPad (10th generation) Keyboard Case | Slim Folio with integrated wireless keyboard - Graphite.,Comp Hardware Purchases
Wyre Council,http://opendatacommunities.org/doc/district-council/wyre,30/08/2023,Resources,Cultural and Related Services,132A,Amazon Business,22/08/2023,RS151186,2.49,Stationery items - Marine Hall,Stationery
Wyre Council,http://opendatacommunities.org/doc/district-council/wyre,30/08/2023,Resources,Cultural and Related Services,132A,Amazon Business,22/08/2023,RS151191,16.24,Stationery items - Marine Hall,Stationery
Wyre Council,http://opendatacommunities.org/doc/district-council/wyre,30/08/2023,Resources,Support Services,135B,Amazon Business,22/08/2023,RS152242,16.66,"AKOLAFE Floor Cable Cover, 3M/10FT PVC Wire Protector Wire Covers for Cables, Cable Protector Floor Cable Tidy 3 Cord Channels Cable Covers for Wires, Cavity 17mm (H) x 83mm (W).",Materials and Consumables
Wyre Council,http://opendatacommunities.org/doc/district-council/wyre,30/08/2023,Resources,Support Services,135B,Amazon Business,22/08/2023,RS152298,16.66,"Floor Cord Covers, Floor Cable Protector 2m 3 Channels Contains Cords, Cables and Wires, Perfect for Office, Home, Workshop, Warehouse, Concert, or Other Outdoor Surroundings (Black).",Materials and Consumables
Wyre Council,http://opendatacommunities.org/doc/district-council/wyre,30/08/2023,Resources,Support Services,135B,Amazon Business,22/08/2023,RS152288,19.07,"AKOLAFE Floor Cable Cover, 3M/10FT PVC Wire Protector Wire Covers for Cables, Cable Protector Floor Cable Tidy 3 Cord Channels Cable Covers for Wires, Cavity 17mm (H) x 83mm (W).",Materials and Consumables
Wyre Council,http://opendatacommunities.org/doc/district-council/wyre,30/08/2023,Resources,Support Services,135B,Amazon Business,22/08/2023,RS152285,16.66,"Floor Cord Covers, Floor Cable Protector 2m 3 Channels Contains Cords, Cables and Wires, Perfect for Office, Home, Workshop, Warehouse, Concert, or Other Outdoor Surroundings (Black).",Materials and Consumables
Wyre Council,http://opendatacommunities.org/doc/district-council/wyre,30/08/2023,Resources,Support Services,135B,Amazon Business,07/08/2023,RS151790,83.32,Logitech iPad (10th generation) Keyboard Case | Slim Folio with integrated wireless keyboard - Graphite.,Comp Hardware Purchases
Wyre Council,http://opendatacommunities.org/doc/district-council/wyre,30/08/2023,People and Places,Cultural and Related Services,132A,Amazon Business,10/08/2023,PE151903,45.00,Health and Safety events manual,Creative People and Places Contribution
Wyre Council,http://opendatacommunities.org/doc/district-council/wyre,30/08/2023,People and Places,Planning and Development Servs,132C,Amazon Business,08/08/2023,PE151846,29.16,FM props for summer event,Promotions - General
Wyre Council,http://opendatacommunities.org/doc/district-council/wyre,30/08/2023,People and Places,Cultural and Related Services,132A,Amazon Business,10/08/2023,PE151969,43.33, for countryside -  swim safety information  - Pack of 10 A3 SNAPFRAMES - 25mm Profile Silver Anodised Snap Frame - Poster Display Qty 10. Code APF3 x 10 plus express delivery,Amenity and Information Signs
Wyre Council,http://opendatacommunities.org/doc/district-council/wyre,30/08/2023,People and Places,Planning and Development Servs,132C,Amazon Business,07/08/2023,PE151826,4.96,FM props for summer event,Promotions - General
Wyre Council,http://opendatacommunities.org/doc/district-council/wyre,30/08/2023,People and Places,Planning and Development Servs,132C,Amazon Business,07/08/2023,PE151810,9.96,FM props for summer event,Promotions - General
Wyre Council,http://opendatacommunities.org/doc/district-council/wyre,30/08/2023,People and Places,Support Services,135B,Amazon Business,07/08/2023,PE151691,85.20,Parts,Materials and Consumables
Wyre Council,http://opendatacommunities.org/doc/district-council/wyre,30/08/2023,Resources,Support Services,135B,Amazon Business,22/08/2023,RS152242,-16.66,"AKOLAFE Floor Cable Cover, 3M/10FT PVC Wire Protector Wire Covers for Cables, Cable Protector Floor Cable Tidy 3 Cord Channels Cable Covers for Wires, Cavity 17mm (H) x 83mm (W).",Materials and Consumables
Wyre Council,http://opendatacommunities.org/doc/district-council/wyre,30/08/2023,Resources,Support Services,135B,Amazon Business,30/08/2023,RS152496,76.60,"BauTangLe Laptop-Stand-Adjustable-Holder-Portable-Riser-for-Macbook-Desk, Upgraded Sturdy Laptop(10``-15.6``) Stand, for i(Mac) / Laptop/Notebook/Tablet/Smartphone.",Computer Stationery and Consumables
Wyre Council,http://opendatacommunities.org/doc/district-council/wyre,30/08/2023,Resources,Cultural and Related Services,132A,Amazon Business,30/08/2023,RS151189,8.32,Stationery items - Marine Hall,Stationery
Wyre Council,http://opendatacommunities.org/doc/district-council/wyre,30/08/2023,People and Places,Environmental Services,132B,Amazon Business,30/08/2023,PE152475,31.95,Safety wellies,Protective Clothing
Wyre Council,http://opendatacommunities.org/doc/district-council/wyre,30/08/2023,Resources,Support Services,135B,Amazon Business,30/08/2023,RS152495,289.20,"Logitech C270 HD Webcam, HD 720p/30fps, Widescreen HD Video Calling, HD Light Correction, Noise-Reducing Mic, Streaming, For Skype, FaceTime, Hangouts, WebEx, PC/Mac/Laptop/Macbook/Tablet - Black.",Comp Hardware Purchases
Wyre Council,http://opendatacommunities.org/doc/district-council/wyre,30/08/2023,Resources,Support Services,135B,Amazon Business,30/08/2023,RS152484,312.32,"Logitech H390 Wired Headset for PC/Laptop, Stereo Headphones with Noise Cancelling Microphone, USB-A, In-Line Controls, Works with Chromebook - Black.",Comp Hardware Purchases
Wyre Council,http://opendatacommunities.org/doc/district-council/wyre,30/08/2023,Resources,Support Services,135B,Amazon Business,30/08/2023,RS152474,78.08,"Logitech H390 Wired Headset for PC/Laptop, Stereo Headphones with Noise Cancelling Microphone, USB-A, In-Line Controls, Works with Chromebook - Black.",Comp Hardware Purchases
Wyre Council,http://opendatacommunities.org/doc/district-council/wyre,30/08/2023,People and Places,Environmental Services,132B,Amazon Business,07/08/2023,PE151664,20.82,Parts,Daywork Materials (Excl.Tyres)
Wyre Council,http://opendatacommunities.org/doc/district-council/wyre,30/08/2023,People and Places,Support Services,135B,Amazon Business,07/08/2023,PE151690,58.29,Parts,Daywork Materials (Excl.Tyres)
Wyre Council,http://opendatacommunities.org/doc/district-council/wyre,30/08/2023,People and Places,Environmental Services,132B,Amazon Business,07/08/2023,PE151690,58.29,Parts,Daywork Materials (Excl.Tyres)
Wyre Council,http://opendatacommunities.org/doc/district-council/wyre,30/08/2023,People and Places,Environmental Services,132B,Amazon Business,07/08/2023,PE151675,22.84,Parts,Daywork Materials (Excl.Tyres)
Wyre Council,http://opendatacommunities.org/doc/district-council/wyre,30/08/2023,People and Places,Support Services,135B,Amazon Business,07/08/2023,PE151690,58.29,Parts,Daywork Materials (Excl.Tyres)
Wyre Council,http://opendatacommunities.org/doc/district-council/wyre,30/08/2023,People and Places,Environmental Services,132B,Amazon Business,07/08/2023,PE151690,58.29,Parts,Daywork Materials (Excl.Tyres)
Wyre Council,http://opendatacommunities.org/doc/district-council/wyre,30/08/2023,People and Places,Planning and Development Servs,132C,Amazon Business,22/08/2023,PE152293,2.89,Crafts for Summer event at FM,Promotions - General
Wyre Council,http://opendatacommunities.org/doc/district-council/wyre,30/08/2023,People and Places,Planning and Development Servs,132C,Amazon Business,22/08/2023,PE152292,9.16,Crafts for Summer event at FM,Promotions - General
Wyre Council,http://opendatacommunities.org/doc/district-council/wyre,30/08/2023,People and Places,Planning and Development Servs,132C,Amazon Business,22/08/2023,PE152291,8.32,Crafts for Summer event at FM,Promotions - General
Wyre Council,http://opendatacommunities.org/doc/district-council/wyre,30/08/2023,People and Places,Planning and Development Servs,132C,Amazon Business,22/08/2023,PE152290,1.66,Crafts for Summer event at FM,Promotions - General
Wyre Council,http://opendatacommunities.org/doc/district-council/wyre,30/08/2023,People and Places,Support Services,135B,Amazon Business,31/08/2023,PE152523,1.67,"supply and delivery of 10 x desktop calenders , 4 slim pocket diaries and flip chart pads",Stationery
Wyre Council,http://opendatacommunities.org/doc/district-council/wyre,30/08/2023,People and Places,Support Services,135B,Amazon Business,31/08/2023,PE152494,6.75,"supply and delivery of 10 x desktop calenders , 4 slim pocket diaries and flip chart pads",Stationery
Wyre Council,http://opendatacommunities.org/doc/district-council/wyre,30/08/2023,People and Places,Support Services,135B,Amazon Business,31/08/2023,PE152454,23.76,"supply and delivery of 10 x desktop calenders , 4 slim pocket diaries and flip chart pads",Stationery
Wyre Council,http://opendatacommunities.org/doc/district-council/wyre,30/08/2023,People and Places,Cultural and Related Services,132A,Amazon Business,18/08/2023,PE152086,6.54,Stickers,Special Events
Wyre Council,http://opendatacommunities.org/doc/district-council/wyre,30/08/2023,People and Places,Cultural and Related Services,132A,Amazon Business,18/08/2023,PE152082,3.32,Stickers,Special Events
Wyre Council,http://opendatacommunities.org/doc/district-council/wyre,30/08/2023,People and Places,Cultural and Related Services,132A,Amazon Business,18/08/2023,PE152082,3.32,Stickers,Special Events
Wyre Council,http://opendatacommunities.org/doc/district-council/wyre,30/08/2023,People and Places,Cultural and Related Services,132A,Amazon Business,17/08/2023,PE152087,3.32,Stickers 3.32 and 6.54,Special Events
Wyre Council,http://opendatacommunities.org/doc/district-council/wyre,30/08/2023,People and Places,Cultural and Related Services,132A,Amazon Business,17/08/2023,PE152084,25.06,Paint sticks,Special Events
Wyre Council,http://opendatacommunities.org/doc/district-council/wyre,30/08/2023,People and Places,Planning and Development Servs,132C,Amazon Business,21/08/2023,PE152134,4.17,Crafts for Summer event at FM,Promotions - General
Wyre Council,http://opendatacommunities.org/doc/district-council/wyre,30/08/2023,People and Places,Planning and Development Servs,132C,Amazon Business,21/08/2023,PE152166,5.99,Crafts for Summer event at FM,Promotions - General
Wyre Council,http://opendatacommunities.org/doc/district-council/wyre,30/08/2023,People and Places,Planning and Development Servs,132C,Amazon Business,23/08/2023,PE152356,1.66,Crafts for Summer event at FM,Promotions - General
Wyre Council,http://opendatacommunities.org/doc/district-council/wyre,30/08/2023,People and Places,Planning and Development Servs,132C,Amazon Business,23/08/2023,PE152362,2.89,Crafts for Summer event at FM,Promotions - General
Wyre Council,http://opendatacommunities.org/doc/district-council/wyre,30/08/2023,People and Places,Planning and Development Servs,132C,Amazon Business,24/08/2023,PE152362,-2.89,Crafts for Summer event at FM,Promotions - General
Wyre Council,http://opendatacommunities.org/doc/district-council/wyre,30/08/2023,People and Places,Planning and Development Servs,132C,Amazon Business,24/08/2023,PE152356,-1.66,Crafts for Summer event at FM,Promotions - General
Wyre Council,http://opendatacommunities.org/doc/district-council/wyre,30/08/2023,People and Places,Environmental Services,132B,Amazon Business,16/08/2023,PE151902,20.75,Parts,Daywork Materials (Excl.Tyres)
Wyre Council,http://opendatacommunities.org/doc/district-council/wyre,30/08/2023,People and Places,Support Services,135B,Amazon Business,16/08/2023,PE151887,14.99,Various parts,Materials and Consumables
Wyre Council,http://opendatacommunities.org/doc/district-council/wyre,30/08/2023,People and Places,Support Services,135B,Amazon Business,16/08/2023,PE151886,14.99,Various parts,Materials and Consumables
Wyre Council,http://opendatacommunities.org/doc/district-council/wyre,30/08/2023,People and Places,Cultural and Related Services,132A,Amazon Business,16/08/2023,PE152081,2.70,Garden wire,Special Events
Wyre Council,http://opendatacommunities.org/doc/district-council/wyre,30/08/2023,People and Places,Cultural and Related Services,132A,Amazon Business,16/08/2023,PE152080,5.10,Tray,Special Events
Wyre Council,http://opendatacommunities.org/doc/district-council/wyre,30/08/2023,People and Places,Cultural and Related Services,132A,Amazon Business,16/08/2023,PE152083,12.49,Net,Special Events
Wyre Council,http://opendatacommunities.org/doc/district-council/wyre,30/08/2023,People and Places,Cultural and Related Services,132A,Amazon Business,24/08/2023,PE152350,21.62,sacks for activity Georgia Luckett,Special Events
Wyre Council,http://opendatacommunities.org/doc/district-council/wyre,30/08/2023,People and Places,Planning and Development Servs,132C,Amazon Business,24/08/2023,PE152367,9.92,Glue Gun for Fleetwood Market,Stationery
Wyre Council,http://opendatacommunities.org/doc/district-council/wyre,30/08/2023,Resources,Support Services,135B,Amazon Business,21/08/2023,RS151809,549.97,"Apple 2022 10.9-inch iPad (Wi-Fi + Cellular, 64GB) - Silver (10th generation) for CEO.",Comp Hardware Purchases
Wyre Council,http://opendatacommunities.org/doc/district-council/wyre,30/08/2023,Resources,Support Services,135B,Amazon Business,21/08/2023,RS152079,53.00,"Logitech M90 Wired USB Mouse, 1000 DPI Optical Tracking, Ambidextrous PC / Mac / Laptop - Black, One size, (910-001793).",Comp Hardware Purchases
Wyre Council,http://opendatacommunities.org/doc/district-council/wyre,30/08/2023,Resources,Support Services,135B,Amazon Business,21/08/2023,RS152077,80.83,Logitech P710e Mobile Speaker.,Comp Hardware Purchases
Wyre Council,http://opendatacommunities.org/doc/district-council/wyre,30/08/2023,Resources,Support Services,135B,Amazon Business,21/08/2023,RS152075,49.98,"Logitech R400 Wireless Presentation Remote, 2.4 GHz, USB-Receiver, Red Laser Pointer, 15-Meter Operating Range, 6 Buttons, Intuitive Slideshow Control, Battery Indicator, PC - Black.",Comp Hardware Purchases
Wyre Council,http://opendatacommunities.org/doc/district-council/wyre,30/08/2023,People and Places,Environmental Services,132B,Amazon Business,31/08/2023,PE152497,27.49,Safety wellies,Protective Clothing
Wyre Council,http://opendatacommunities.org/doc/district-council/wyre,30/08/2023,Resources,Support Services,135B,Amazon Business,21/08/2023,RS152076,64.80,AILRINNI Mouse Mat Mouse Mat Wrist Rest Ergonomic Gaming Mouse Pad Black Mouse Pads Non Slip Rubber Base Memory Foam Mousepad for Computer Laptop Office Typist Working Pain Relief.,Computer Stationery and Consumables
Wyre Council,http://opendatacommunities.org/doc/district-council/wyre,30/08/2023,Resources,Support Services,135B,Amazon Business,21/08/2023,RS152078,25.98,"co2CREA Hard Storage Case for Logitech R400 Wireless Presentation Remote, Case Only.",Computer Stationery and Consumables
Wyre Council,http://opendatacommunities.org/doc/district-council/wyre,30/08/2023,People and Places,"Cultural, Environ and Planning",137B,RH Property Management Ltd,21/08/2023,PE152202,31083.47,"HSHAZ Grant Former HSBC, Albert ST, Fleetwood, FY7 6AH",Grants and Advances
Wyre Council,http://opendatacommunities.org/doc/district-council/wyre,30/08/2023,People and Places,Cultural and Related Services,132A,Scream Theatre Schools LLP,16/08/2023,PE152065,6610.00,Scream 2nd & 8th July 23 Ticket Sales,Refund of Ticket Sales to Ext Promoters
Wyre Council,http://opendatacommunities.org/doc/district-council/wyre,30/08/2023,Resources,Support Services,135B,G2V Recruitment Group Ltd T/A G2 Recruitment Solu,22/08/2023,RS151996,1681.50,Payment of invoice NO - 126990 G Ivett Period End 06/08/2023,Agency Staff
Wyre Council,http://opendatacommunities.org/doc/district-council/wyre,30/08/2023,Resources,Support Services,135B,Park Avenue Recruitment Ltd,17/08/2023,RS152149,2081.75,Appointment of an interim Estates Surveyor,Agency Staff
Wyre Council,http://opendatacommunities.org/doc/district-council/wyre,30/08/2023,Resources,Support Services,135B,Park Avenue Recruitment Ltd,17/08/2023,RS152148,2028.80,Appointment of an interim Estates Surveyor,Agency Staff
Wyre Council,http://opendatacommunities.org/doc/district-council/wyre,30/08/2023,Resources,Support Services,135B,Park Avenue Recruitment Ltd,17/08/2023,RS152144,2319.80,Appointment of an interim Estates Surveyor,Agency Staff
Wyre Council,http://opendatacommunities.org/doc/district-council/wyre,30/08/2023,People and Places,Cultural and Related Services,132A,Griddle Girls,23/08/2023,PE152359,3000.00,Dates agreed to support HAF events at various venues to support the Summer Youth Fest 20231/08/23- 150ppl8/08/23- 150ppl15/08/23- 150ppl22/08/23- 150pplSandwich and bottled water @5.00 per headTotal 600 x 5 = 3000,Hospitality
Wyre Council,http://opendatacommunities.org/doc/district-council/wyre,30/08/2023,People and Places,Planning and Development Servs,132C,Capita Property and Infrastructure Ltd,01/08/2023,PE151762,8832.34,Planning application support provided by Capita (June 2023),Consultants Fees
Wyre Council,http://opendatacommunities.org/doc/district-council/wyre,30/08/2023,People and Places,Planning and Development Servs,132C,Capita Property and Infrastructure Ltd,25/08/2023,PE152418,2203.18,Planning application support provided by Capita July 2023),Consultants Fees
Wyre Council,http://opendatacommunities.org/doc/district-council/wyre,30/08/2023,People and Places,Cultural and Related Services,132A,FinearthHJ,31/08/2023,PE152545,1430.00,Fee for Summer HAF sessions 2023,Special Events
Wyre Council,http://opendatacommunities.org/doc/district-council/wyre,30/08/2023,People and Places,Cultural and Related Services,132A,Quantum Staffing Solutions Ltd,22/08/2023,PE152271,504.90,Agency staff 13/8/23,Agency Staff
Wyre Council,http://opendatacommunities.org/doc/district-council/wyre,30/08/2023,People and Places,Cultural and Related Services,132A,Quantum Staffing Solutions Ltd,22/08/2023,PE152125,326.70,Agency staff 6/8/23,Agency Staff
Wyre Council,http://opendatacommunities.org/doc/district-council/wyre,30/08/2023,Resources,Support Services,135B,Michael Page International Recruitment Limited,10/08/2023,RS151907,891.48,"Paul Cooper, Building Control Manager - staffing and expense cost",Agency Staff
Wyre Council,http://opendatacommunities.org/doc/district-council/wyre,30/08/2023,Resources,Support Services,135B,Michael Page International Recruitment Limited,10/08/2023,RS151776,217.39,"Paul Cooper, Building Control Manager - staffing and expense cost",Agency Staff
Wyre Council,http://opendatacommunities.org/doc/district-council/wyre,30/08/2023,Resources,Support Services,135B,Michael Page International Recruitment Limited,10/08/2023,RS151748,891.48,"Paul Cooper, Building Control Manager - staffing and expense cost",Agency Staff
Wyre Council,http://opendatacommunities.org/doc/district-council/wyre,30/08/2023,Resources,Support Services,135B,Michael Page International Recruitment Limited,10/08/2023,RS151665,213.96,"Paul Cooper, Building Control Manager - staffing and expense cost",Agency Staff
Wyre Council,http://opendatacommunities.org/doc/district-council/wyre,30/08/2023,Resources,Support Services,135B,Michael Page International Recruitment Limited,10/08/2023,RS151617,891.48,"Paul Cooper, Building Control Manager - staffing and expense cost",Agency Staff
Wyre Council,http://opendatacommunities.org/doc/district-council/wyre,30/08/2023,Resources,Support Services,135B,Michael Page International Recruitment Limited,10/08/2023,RS151171,204.55,"Paul Cooper, Building Control Manager - staffing and expense cost",Agency Staff
Wyre Council,http://opendatacommunities.org/doc/district-council/wyre,30/08/2023,Resources,Support Services,135B,Michael Page International Recruitment Limited,16/08/2023,RS151369,891.48,"Paul Cooper, Building Control Manager - staffing and expense cost",Agency Staff
Wyre Council,http://opendatacommunities.org/doc/district-council/wyre,30/08/2023,People and Places,Corporate and Democratic Core,131A,Oxford Consultants for Social Inclusion Ltd,18/08/2023,PE152164,5000.00,Renew annual subscription of Local Insight software for 12month period,Corporate and Professional Subscriptions
Wyre Council,http://opendatacommunities.org/doc/district-council/wyre,30/08/2023,People and Places,Planning and Development Servs,132C,Drax Energy Solutions Limited,31/08/2023,PE152448,1113.24,"3200000534694 1 Dock Ave, Fleetwood, FY7 6PS 01/07/23 to 31/07/23  57.5kWh",Electricity
Wyre Council,http://opendatacommunities.org/doc/district-council/wyre,30/08/2023,People and Places,Planning and Development Servs,132C,Drax Energy Solutions Limited,31/08/2023,PE152448,3.33,"3200000534694 1 Dock Ave, Fleetwood, FY7 6PS 01/07/23 to 31/07/23  57.5kWh",Electricity
Wyre Council,http://opendatacommunities.org/doc/district-council/wyre,30/08/2023,People and Places,Planning and Development Servs,132C,Drax Energy Solutions Limited,14/08/2023,PE151837,134.65,"Unit 4, Dock  Ave, Fleetwood, FY7 6PS 01/07/2023 to 31/07/2023 3200000534728 E 28Kwh",Electricity
Wyre Council,http://opendatacommunities.org/doc/district-council/wyre,30/08/2023,People and Places,Planning and Development Servs,132C,Drax Energy Solutions Limited,14/08/2023,PE151845,127.04,"LL Supply c/o  ABP Port Office, Dock Ave, Fleetwood, FY7 6PS 01/07/2023 to 31/07/2023  3200000534807 E 8Kwh",Electricity
Wyre Council,http://opendatacommunities.org/doc/district-council/wyre,30/08/2023,People and Places,Planning and Development Servs,132C,Drax Energy Solutions Limited,14/08/2023,PE151836,133.13,"Unit 3, Dock  Ave, Fleetwood, FY7 6PS 01/07/2023 to 31/07/2023 3200000534719 E 24Kwh",Electricity
Wyre Council,http://opendatacommunities.org/doc/district-council/wyre,30/08/2023,People and Places,Planning and Development Servs,132C,Drax Energy Solutions Limited,14/08/2023,PE151835,132.75,"Unit 2, Dock  Ave, Fleetwood, FY7 6PS 01/07/2023 to 31/07/2023 3200000534700 E 23Kwh",Electricity
Wyre Council,http://opendatacommunities.org/doc/district-council/wyre,30/08/2023,People and Places,Planning and Development Servs,132C,Drax Energy Solutions Limited,14/08/2023,PE151844,132.37,"Unit 10, Dock  Ave, Fleetwood, FY7 6PS 01/07/2023 to 31/07/2023 3200000534791 E 22Kwh",Electricity
Wyre Council,http://opendatacommunities.org/doc/district-council/wyre,30/08/2023,People and Places,Planning and Development Servs,132C,Drax Energy Solutions Limited,14/08/2023,PE151843,134.27,"Unit 9, Dock  Ave, Fleetwood, FY7 6PS 01/07/2023 to 31/07/2023 3200000534782 E 27Kwh",Electricity
Wyre Council,http://opendatacommunities.org/doc/district-council/wyre,30/08/2023,People and Places,Planning and Development Servs,132C,Drax Energy Solutions Limited,14/08/2023,PE151842,138.46,"Unit 8, Dock  Ave, Fleetwood, FY7 6PS 01/07/2023 to 31/07/2023 3200000534773 E 38Kwh",Electricity
Wyre Council,http://opendatacommunities.org/doc/district-council/wyre,30/08/2023,People and Places,Planning and Development Servs,132C,Drax Energy Solutions Limited,14/08/2023,PE151841,131.23,"Unit 7B, Dock  Ave, Fleetwood, FY7 6PS 01/07/2023 to 31/07/2023 3200000534764 E 19Kwh",Electricity
Wyre Council,http://opendatacommunities.org/doc/district-council/wyre,30/08/2023,People and Places,Planning and Development Servs,132C,Drax Energy Solutions Limited,14/08/2023,PE151840,134.27,"Unit 7A, Dock  Ave, Fleetwood, FY7 6PS 01/07/2023 to 31/07/2023 3200000534755 E 27Kwh",Electricity
Wyre Council,http://opendatacommunities.org/doc/district-council/wyre,30/08/2023,People and Places,Planning and Development Servs,132C,Drax Energy Solutions Limited,14/08/2023,PE151839,134.65,"Unit 6, Dock  Ave, Fleetwood, FY7 6PS 01/07/2023 to 31/07/2023 3200000534746 E 28Kwh",Electricity
Wyre Council,http://opendatacommunities.org/doc/district-council/wyre,30/08/2023,People and Places,Planning and Development Servs,132C,Drax Energy Solutions Limited,14/08/2023,PE151838,134.27,"Unit 5, Dock  Ave, Fleetwood, FY7 6PS 01/07/2023 to 31/07/2023 3200000534737 E 27Kwh",Electricity
Wyre Council,http://opendatacommunities.org/doc/district-council/wyre,30/08/2023,People and Places,Support Services,135B,HMA Tree Care,08/08/2023,PE151853,220.00,"Quote No: 479 Surveyor: Ben Waller Site Ref No: 382   Site Address Preesall Cemetery, cemetery lane , preesall, poulton le Fylde , Lancashire , FY6 0PH  T2 Poplar Roadside - removal of material limb extending over roadside due to potential threat of failu",Special Maintenance - Trees
Wyre Council,http://opendatacommunities.org/doc/district-council/wyre,30/08/2023,People and Places,Support Services,135B,HMA Tree Care,08/08/2023,PE151852,350.00,"Quote No: 432Surveyor: Ben WallerSite Ref No: 382Site Address Preesall Cemetery, cemetery lane , preesall, poulton le Fylde , Lancashire , FY6 0PHT1 SycamoreMake new Pollard @ 2.5 metres from ground level at top of the rotten stem over wall.",Special Maintenance - Trees
Wyre Council,http://opendatacommunities.org/doc/district-council/wyre,30/08/2023,People and Places,Support Services,135B,HMA Tree Care,10/08/2023,PE151938,810.00,"Quote No: 420 Site Ref: 394   Site Address st chads church , ball street , poulton le Fylde , Lancashire , FY6 7BGT1 Holly Reduce back selected branches to provide 2 metres clearance from 80.00T2 SycamoreReduce back selected branches to provi",Special Maintenance - Trees
Wyre Council,http://opendatacommunities.org/doc/district-council/wyre,30/08/2023,Resources,Central Services to the Public,131C,Huggg Limited,15/08/2023,RS152059,37500.00,HG-4e95c10eTop Up Huggg,Household Support Fund
Wyre Council,http://opendatacommunities.org/doc/district-council/wyre,30/08/2023,People and Places,Planning and Development Servs,132C,Engie Power Limited,30/08/2023,PE152022,64.35,"Electricity charges for Kiosk 8, Fleetwood Market, Adelaide St, Fleetwood, FY7 6AB for the period 01/07/23-31/07/23 KWH used 46.40",Electricity
Wyre Council,http://opendatacommunities.org/doc/district-council/wyre,30/08/2023,People and Places,Planning and Development Servs,132C,Engie Power Limited,30/08/2023,PE152021,256.00,"Electricity charges for Kiosk 7, Fleetwood Market, Adelaide St, Fleetwood, FY7 6AB for the period 01/07/23-31/07/23 KWH used 632.70",Electricity
Wyre Council,http://opendatacommunities.org/doc/district-council/wyre,30/08/2023,People and Places,Planning and Development Servs,132C,Engie Power Limited,30/08/2023,PE152015,61.27,"1640000947181 Kiosk 6, Fleetwood Market, Adelaide St, Fleetwood, FY7 6AB 01/07/23 to 31/07/23 (37Kwh)",Electricity
Wyre Council,http://opendatacommunities.org/doc/district-council/wyre,30/08/2023,People and Places,Planning and Development Servs,132C,Engie Power Limited,30/08/2023,PE152014,151.39,"Kiosk 5, Fleetwood Market, Adelaide St, Fleetwood, FY7 6AB for the period 01/07/23 to 31/07/23 KWH used 312.70",Electricity
Wyre Council,http://opendatacommunities.org/doc/district-council/wyre,30/08/2023,People and Places,Planning and Development Servs,132C,Engie Power Limited,30/08/2023,PE152013,74.09,"Kiosk 4, Fleetwood Market, Adelaide St, Fleetwood, FY7 6AB for the period    01/07/23 to 31/07/23  KWH used 76.20",Electricity
Wyre Council,http://opendatacommunities.org/doc/district-council/wyre,30/08/2023,People and Places,Environmental Services,132B,Engie Power Limited,25/08/2023,PE152181,150.16,"1610004846520 Boating Lake Toilets, Laidleys Walk, Fleetwood, FY7 7HU, 01/06/23 to 30/06/23  (274.6KWh)",Electricity
Wyre Council,http://opendatacommunities.org/doc/district-council/wyre,30/08/2023,People and Places,Environmental Services,132B,Engie Power Limited,30/08/2023,PE152043,192.09,"Electricity charges for Springfield Pumping Station 17, Fleeetwood Road, Fleetwood, Lancashire, FY7 8TW for the period 01/07/23-31/07/23 KWH used 347.60",Electricity
Wyre Council,http://opendatacommunities.org/doc/district-council/wyre,30/08/2023,People and Places,Environmental Services,132B,Engie Power Limited,30/08/2023,PE152028,128.94,"Electricity charges forPC, Beach Rd, Fleetwood, FY7 8PH for the period 01/07/23-31/07/23 KWH used 155.30",Electricity
Wyre Council,http://opendatacommunities.org/doc/district-council/wyre,30/08/2023,People and Places,Environmental Services,132B,Engie Power Limited,30/08/2023,PE152054,195.74,"Electricity charges for PC, rear of Tesco, Rough Lea Rd, Thornton Cleveleys, FY5 1BW for the period 01/07/23-31/07/23 KWH used 3442.50",Electricity
Wyre Council,http://opendatacommunities.org/doc/district-council/wyre,30/08/2023,People and Places,Environmental Services,132B,Engie Power Limited,30/08/2023,PE152053,108.61,"Electricity charges for PC, Thornton Centre, Victoria Rd East, FY5 5DZ for the period 01/07/23-31/07/23 KWH used98.30",Electricity
Wyre Council,http://opendatacommunities.org/doc/district-council/wyre,30/08/2023,People and Places,Environmental Services,132B,Engie Power Limited,30/08/2023,PE152045,368.12,"Electricity charges for PC, Preston St, Fleetwood, FY7 6JA for the period 01/07-31/07/23 KWH used 224.30",Electricity
Wyre Council,http://opendatacommunities.org/doc/district-council/wyre,30/08/2023,People and Places,Environmental Services,132B,Engie Power Limited,30/08/2023,PE152039,254.30,"Electricity charges forPC, Gubberford Lane, Scorton, PR3 1BL for the period 01/07/23-31/07/23 KWH used 506.60",Electricity
Wyre Council,http://opendatacommunities.org/doc/district-council/wyre,30/08/2023,People and Places,Environmental Services,132B,Engie Power Limited,30/08/2023,PE152056,129.62,"Electricity charges for Public Conveniences, Cherestanc Square, Garstang, Lancashire, PR3 1EF for the period 01/07/23-31/07/23 KWH used 157.20",Electricity
Wyre Council,http://opendatacommunities.org/doc/district-council/wyre,30/08/2023,People and Places,Planning and Development Servs,132C,Engie Power Limited,30/08/2023,PE152024,49.44,"1640000947215 Landlord Supply, Fleetwood Market, Adelaide St, Fleetwood, FY7 6AB 01/07/23 to 31/07/23 (0.8Kwh)",Electricity
Wyre Council,http://opendatacommunities.org/doc/district-council/wyre,30/08/2023,People and Places,Planning and Development Servs,132C,Engie Power Limited,30/08/2023,PE152012,56.14,"Electricity supplied for the period01/07/23 to 31/07/23 forKiosk 3, Fleetwood Market, Adelaide St, Fleetwood, FY7 6AB KWH  used 21.30",Electricity
Wyre Council,http://opendatacommunities.org/doc/district-council/wyre,30/08/2023,People and Places,Environmental Services,132B,Engie Power Limited,30/08/2023,PE152055,236.31,"Electricity charges for PC, Wyreside, Knott End on Sea, FY6 0AA for the period 01/07/23-31/07/23 KWH used 456.20",Electricity
Wyre Council,http://opendatacommunities.org/doc/district-council/wyre,30/08/2023,People and Places,Cultural and Related Services,132A,Engie Power Limited,30/08/2023,PE152052,122.42,"Electricity charges for Garstang Tourist Info Ctr, Unit 1, Cherestanc Sq, Preston, PR3 1EF for the period 01/07/23-31/07/23 KWH used 137.00",Electricity
Wyre Council,http://opendatacommunities.org/doc/district-council/wyre,30/08/2023,People and Places,Cultural and Related Services,132A,Engie Power Limited,30/08/2023,PE152042,88.69,"Electricity charges for King Georges Field, Boradwater, Fleetwood Road, Fleetwood, Lancashire, FY7 8BD for the period 01/07/23-31/07/23 KWH used 57.50",Electricity
Wyre Council,http://opendatacommunities.org/doc/district-council/wyre,30/08/2023,People and Places,Cultural and Related Services,132A,Engie Power Limited,30/08/2023,PE152046,399.74,"Electricity charges for Fishermans Walk, Lord St, Fleetwood, FY7 6DU for the period 01/07/23-31/07/23 KWH used 914.20",Electricity
Wyre Council,http://opendatacommunities.org/doc/district-council/wyre,30/08/2023,People and Places,Cultural and Related Services,132A,Engie Power Limited,30/08/2023,PE152035,102.25,"Electricity charges for The Windmill, Fleetwood Rd North, Thornton Cleveleys, FY5 4BP for the period 01/07/23-31/07/23 KWH used 80.50",Electricity
Wyre Council,http://opendatacommunities.org/doc/district-council/wyre,30/08/2023,People and Places,Cultural and Related Services,132A,Engie Power Limited,30/08/2023,PE152031,280.35,"Electricity charges for The Windmill, Fleetwood Road North, Thornton Cleveleys, FY5 4BP for the period 01/07/23-31/07/23 KWH used 784.60",Electricity
Wyre Council,http://opendatacommunities.org/doc/district-council/wyre,30/08/2023,People and Places,Cultural and Related Services,132A,Engie Power Limited,30/08/2023,PE152030,73.71,"Electricity charges for Valve House, Marine Lake, Laidleys Walk, Fleetwood, FY7 7JL for the period 01/07/23-31/07/23 KWH used 0.50",Electricity
Wyre Council,http://opendatacommunities.org/doc/district-council/wyre,30/08/2023,People and Places,Cultural and Related Services,132A,Engie Power Limited,30/08/2023,PE152027,399.42,"Electricity charges forPitch & Putt Kiosk, Carr Rd, The Esplanade, Fleetwood, FY7 6QE for the peridod 01/07/23-31/07/23 KWH used 913.30",Electricity
Wyre Council,http://opendatacommunities.org/doc/district-council/wyre,30/08/2023,People and Places,Cultural and Related Services,132A,Engie Power Limited,30/08/2023,PE152026,211.23,"Electricity supplied forPump Station, The Esplanade, Fleetwood, FY7 6HF for the period 01/07/23-31/07/23 KWH used 385.90",Electricity
Wyre Council,http://opendatacommunities.org/doc/district-council/wyre,30/08/2023,People and Places,Cultural and Related Services,132A,Engie Power Limited,30/08/2023,PE152025,465.41,"Electricity supply for Central Toilets Kiosk, The Esplanade, Fleetwood, FY7 7BE for the period 01/07/23-31/07/23 KWH used1074.90",Electricity
Wyre Council,http://opendatacommunities.org/doc/district-council/wyre,30/08/2023,People and Places,Cultural and Related Services,132A,Engie Power Limited,30/08/2023,PE152029,310.32,"Electricity charges for Pump House, Model Yacht Pond, Laidleys Walk, Fleetwood, FY7 7JL for the period 01/07/23-31/07/23 KWH used 663.60",Electricity
Wyre Council,http://opendatacommunities.org/doc/district-council/wyre,30/08/2023,People and Places,Cultural and Related Services,132A,Engie Power Limited,30/08/2023,PE152051,104.77,"Electricity charges for Feeder Pillar, Hawthorne Park, Hawthorne Rd, Thornton Cleveleys, FY5 5DH for the period 01/07/23-31/07/23 KWH used 88.60",Electricity
Wyre Council,http://opendatacommunities.org/doc/district-council/wyre,30/08/2023,People and Places,Cultural and Related Services,132A,Engie Power Limited,30/08/2023,PE152048,73.53,"Electricity charges for Tourist Information Office, The Esplanade, Fleetwood, FY7 6DL for the period 01/07/23-31/07/23 KWH used 0.00",Electricity
Wyre Council,http://opendatacommunities.org/doc/district-council/wyre,30/08/2023,People and Places,Cultural and Related Services,132A,Engie Power Limited,30/08/2023,PE152041,399.45,"Electricity charges for Ladies Bowls Pavilion, Memorial Park, Fleetwood, FY7 7AE for the period 01/07/23-31/07/23 KWH used 913.40",Electricity
Wyre Council,http://opendatacommunities.org/doc/district-council/wyre,30/08/2023,People and Places,Cultural and Related Services,132A,Engie Power Limited,30/08/2023,PE152040,102.83,"Electricity charges for Bowls House, Memorial Park, Fleetwood, FY7 7AE for the period 01/07/23-31/07/23  KWH used 82.10",Electricity
Wyre Council,http://opendatacommunities.org/doc/district-council/wyre,30/08/2023,People and Places,Cultural and Related Services,132A,Engie Power Limited,30/08/2023,PE152047,222.29,"Electricity charges for Tennis Pavillion, Memorial Park, Fleetwood, FY7 7AE for the period 01/07/23-31/07/23 KWH used 447.70",Electricity
Wyre Council,http://opendatacommunities.org/doc/district-council/wyre,30/08/2023,People and Places,Cultural and Related Services,132A,Engie Power Limited,30/08/2023,PE152050,132.73,"Electricity charges for Mount Hotel, Mount Rd, Fleetwood, FY7 6RA for the period 01/07/23-31/07/23 KWH used 224.60",Electricity
Wyre Council,http://opendatacommunities.org/doc/district-council/wyre,30/08/2023,People and Places,Cultural and Related Services,132A,Engie Power Limited,30/08/2023,PE152049,337.94,"Electricity charges for Mount Hotel, Mount Rd, Fleetwood, FY7 6RA for the period 01/07/23-31/07/23 KWH used741.00",Electricity
Wyre Council,http://opendatacommunities.org/doc/district-council/wyre,30/08/2023,People and Places,Cultural and Related Services,132A,Engie Power Limited,30/08/2023,PE152044,132.66,"Electricity charges for Mount Pavilion, Mount Rd, Fleetwood, FY7 6EZ for the period 01/07/23-31/07/23 KWH used 224.30",Electricity
Wyre Council,http://opendatacommunities.org/doc/district-council/wyre,30/08/2023,People and Places,Environmental Services,132B,Engie Power Limited,30/08/2023,PE152032,427.32,"Electricity charges for Council Depot, Chatsworth Day Centre, Chatsworth Ave, Fleetwood, FY7 8AP for the period 01/07/23-31/07/23 KWH used 991.50",Electricity
Wyre Council,http://opendatacommunities.org/doc/district-council/wyre,30/08/2023,People and Places,Environmental Services,132B,Engie Power Limited,30/08/2023,PE152036,179.15,"Electricity charges for PC, The Weind, Great Eccleston, PR3 0ZU for the period 01/07/23-31/07/23 KWH used 296.00",Electricity
Wyre Council,http://opendatacommunities.org/doc/district-council/wyre,30/08/2023,People and Places,Environmental Services,132B,Engie Power Limited,30/08/2023,PE152038,201.31,"Electricity charges for PC, Smallwood Hey, Pilling, Preston, PR3 6HJ for the period 01/07/23-31/07/23",Electricity
Wyre Council,http://opendatacommunities.org/doc/district-council/wyre,30/08/2023,People and Places,Environmental Services,132B,Engie Power Limited,30/08/2023,PE152037,134.27,"Electricity charges for Public Conveniences, Barton Square, Knott End on Sea, Lancashire, FY6 0AG for the period 01/07/23-31/07/23 KWH used 175.20",Electricity
Wyre Council,http://opendatacommunities.org/doc/district-council/wyre,30/08/2023,People and Places,Environmental Services,132B,Engie Power Limited,30/08/2023,PE152034,225.28,"Electricity charges for Fleetwood Corp Cemetery, Beach Rd, Fleetwood, FY7 8PH for the period 01/07/23-31/07/23 KWH used 575.70",Electricity
Wyre Council,http://opendatacommunities.org/doc/district-council/wyre,30/08/2023,People and Places,Environmental Services,132B,Engie Power Limited,30/08/2023,PE152033,103.57,"Electricity charges for Fleetwood Corp Cemetery, Beach Rd, Fleetwood, FY7 8PH for the period 01/07/23-31/7/23 KWH used 84.20",Electricity
Wyre Council,http://opendatacommunities.org/doc/district-council/wyre,30/08/2023,People and Places,Planning and Development Servs,132C,Engie Power Limited,30/08/2023,PE152019,83.86,"Electricity charges for Kiosk 2, Fleetwood Market, Adelaie St, Fleetwood, FY7 6AB for the period 01/07/23-31/07/23 KWH used 106.10",Electricity
Wyre Council,http://opendatacommunities.org/doc/district-council/wyre,30/08/2023,People and Places,Planning and Development Servs,132C,Engie Power Limited,30/08/2023,PE152018,49.31,"1640000947136 Kiosk 1, Fleetwood Market, Adelaide St, Fleetwood, FY7 6AB 01/07/23 to 31/07/23 (0.4Kwh)",Electricity
Wyre Council,http://opendatacommunities.org/doc/district-council/wyre,30/08/2023,People and Places,Cultural and Related Services,132A,Engie Power Limited,30/08/2023,PE152020,287.08,"Electricity charges for Feeder Pillar, Vicarage Rd, Poulton le Fylde, FY6 7BE for the period 01/07/23-31/07/23 KWH consumed 317.20",Electricity
Wyre Council,http://opendatacommunities.org/doc/district-council/wyre,30/08/2023,People and Places,Environmental Services,132B,Engie Power Limited,30/08/2023,PE152016,118.74,"Electricity charges for PC, River Road, Thornton Cleveleys, FY5 5LR for the period 01/07/23-31/07/23 KWH consumption 212.80",Electricity
Wyre Council,http://opendatacommunities.org/doc/district-council/wyre,30/08/2023,People and Places,Environmental Services,132B,Engie Power Limited,30/08/2023,PE152023,152.87,"1640000218200 PC, Bold St, Fleetwood, FY7 6BW 01/07/23 to 31/07/23 (317.2Kwh)",Electricity
Wyre Council,http://opendatacommunities.org/doc/district-council/wyre,30/08/2023,People and Places,Cultural and Related Services,132A,Engie Power Limited,30/08/2023,PE152017,80.46,"1640000400837 PC, River Road, Thornton Cleveleys, FY5 5LR 01/07/23 to 31/07/23 (95.7Kwh)",Electricity
Wyre Council,http://opendatacommunities.org/doc/district-council/wyre,30/08/2023,People and Places,Cultural and Related Services,132A,Nathan Parker,24/08/2023,PE151681,1000.00,For the commission of new poetry and community engagement towards contributing to the Little Book of Hope Project -Inspired Minds arts and health project   4.1.2 - 500 to be invoiced between April and June 2023 on completion of the engagement work within,Healthier Fleetwood Events & Activities
Wyre Council,http://opendatacommunities.org/doc/district-council/wyre,30/08/2023,People and Places,Cultural and Related Services,132A,Nathan Parker,23/08/2023,PE152353,350.00,"Summer Workshops - TYS HAF programme, 2023, 2 x 175",Project Costs
Wyre Council,http://opendatacommunities.org/doc/district-council/wyre,30/08/2023,People and Places,Cultural and Related Services,132A,Inspired Minds Training CIC,24/08/2023,PE151756,500.00,"For the project management of the Little Book of Hope, Inspired Minds arts and health project   500 to be invoiced between April and June 2023 on completion of the engagement work. 500  to invoiced by September 2023 on completion of the publishing and p",Healthier Fleetwood Events & Activities
Wyre Council,http://opendatacommunities.org/doc/district-council/wyre,30/08/2023,Resources,Support Services,135B,Arthur J Gallagher Insurance Brokers Ltd,23/08/2023,RS152340,6448.52,Terrorism insurance,Terrorism Insurance
Wyre Council,http://opendatacommunities.org/doc/district-council/wyre,30/08/2023,Resources,Support Services,135B,Arthur J Gallagher Insurance Brokers Ltd,23/08/2023,RS152338,74578.03,Commercial Combined insurance - Building and contents insurance,Building Insurance Premiums General
Wyre Council,http://opendatacommunities.org/doc/district-council/wyre,30/08/2023,Resources,Support Services,135B,Arthur J Gallagher Insurance Brokers Ltd,23/08/2023,RS152339,218.40,Crisis Cover (insurance)Term 2023-2024,Crisis Response Cover
Wyre Council,http://opendatacommunities.org/doc/district-council/wyre,30/08/2023,People and Places,Cultural and Related Services,132A,Forge Leisure UK Limited,12/08/2023,PE151978,12320.00,"One swimming pool cover, as follows: as per  quote issued on 8th September 2022 to Fylde Coast YMCA:Garstang swimming pool, (1x 7m x 20.3m), 8mm blue maxi therm.To include delivery, fitting and removal and disposal of the existing cover.",Purchase of Tools or Equipment
Wyre Council,http://opendatacommunities.org/doc/district-council/wyre,30/08/2023,Resources,Support Services,135B,8x8 UK Limited,11/08/2023,RS151885,251.00,Additional Local Number x 502,Software Maintenance
Wyre Council,http://opendatacommunities.org/doc/district-council/wyre,30/08/2023,Resources,Support Services,135B,8x8 UK Limited,11/08/2023,RS151885,1117.20,SVC: X Series - X1 UK Gov,Software Maintenance
Wyre Council,http://opendatacommunities.org/doc/district-council/wyre,30/08/2023,Resources,Support Services,135B,8x8 UK Limited,11/08/2023,RS151885,218.40,X Series - X2,Software Maintenance
Wyre Council,http://opendatacommunities.org/doc/district-council/wyre,30/08/2023,Resources,Support Services,135B,8x8 UK Limited,11/08/2023,RS151885,580.00,X Series - X4,Software Maintenance
Wyre Council,http://opendatacommunities.org/doc/district-council/wyre,30/08/2023,People and Places,Cultural and Related Services,132A,Spencer Sutcliffe Security Ltd,30/08/2023,PE152514,305.25,Security Marine Hall - 29/8/23,Agency Staff
Wyre Council,http://opendatacommunities.org/doc/district-council/wyre,30/08/2023,People and Places,Cultural and Related Services,132A,Spencer Sutcliffe Security Ltd,21/08/2023,PE152221,455.10,Marine Hall security 8th - 13th August 2023,Agency Staff
Wyre Council,http://opendatacommunities.org/doc/district-council/wyre,30/08/2023,People and Places,Cultural and Related Services,132A,The Little Sandwich Shop,25/08/2023,PE152444,1115.00,Little Sandwich Shop Summer HAF Food - Week 2,Project Costs
Wyre Council,http://opendatacommunities.org/doc/district-council/wyre,30/08/2023,People and Places,Cultural and Related Services,132A,The Little Sandwich Shop,25/08/2023,PE152445,1125.00,Little Sandwich Shop  HAF Food Week 3,Project Costs
Wyre Council,http://opendatacommunities.org/doc/district-council/wyre,30/08/2023,People and Places,Cultural and Related Services,132A,The Little Sandwich Shop,10/08/2023,PE151959,948.25,"HAF 2023 - lunches provided for Fleetwood and Thornton YMCA @ 5 per head, 197 children.",Hospitality
Wyre Council,http://opendatacommunities.org/doc/district-council/wyre,30/08/2023,People and Places,Support Services,135B,T-Fer Tree Surgeons,25/08/2023,PE152415,180.00,"Quote 14 Chatsworth Ave/broadway, Fleetwood.Coppice damaged Hornbeam180                                                         Total net amount 180VAT @20% 0Quote 180",Special Maintenance - Trees
Wyre Council,http://opendatacommunities.org/doc/district-council/wyre,30/08/2023,People and Places,Support Services,135B,T-Fer Tree Surgeons,25/08/2023,PE152413,315.00,"Quotation 0015 17/08/2023 Derby road, PoultonX7 Lift Trees adjacent The Bushes, Shirley heights to 3 metres.45 perTotal net amount 315                                                      VAT @ 20% 0",Special Maintenance - Trees
Wyre Council,http://opendatacommunities.org/doc/district-council/wyre,30/08/2023,People and Places,Highways,133B,T-Fer Tree Surgeons,25/08/2023,PE152414,225.00,"011 070823 Stockdove way, Thornton            37asycamore � lift, clear wires, crown clean90            39X2 sycamore � lift, clear wires, crown clean90            39Ash � dead wood 45Total net value 225VAT @ 20% 0Quote tot",Maintenance of Trees and Shrubs
Wyre Council,http://opendatacommunities.org/doc/district-council/wyre,30/08/2023,People and Places,Highways,133B,T-Fer Tree Surgeons,25/08/2023,PE152414,60.00,"Quote 012 Firshill close, Thornton                  4Cherry � Lift, reduce from highway, crown clean30                 23Cherry � Lift, reduce from highway, crown clean          30Total net value 60VAT @20% 0Quote total 60",Maintenance of Trees and Shrubs
Wyre Council,http://opendatacommunities.org/doc/district-council/wyre,30/08/2023,People and Places,Highways,133B,T-Fer Tree Surgeons,15/08/2023,PE152000,120.00,"QUOTE-004 Wyre council Date:    21/07/2023   54 Rossall grange lane, Fleetwood120The recommended clearance / headroom for trees in relation to safe use of roads and pavements is 2.1m minimum for pavements and 5.5m minimum for over the road.>",Maintenance of Trees and Shrubs
Wyre Council,http://opendatacommunities.org/doc/district-council/wyre,30/08/2023,People and Places,Highways,133B,T-Fer Tree Surgeons,17/08/2023,PE152147,360.00,"013 Pinewood Avenue Pinewood ave, ThorntonX9 - Lift, reduce back from highway, crown clean.40 eachTotal net amount 360VAT @ 0Quote total 360",Maintenance of Trees and Shrubs
Wyre Council,http://opendatacommunities.org/doc/district-council/wyre,30/08/2023,People and Places,Highways,133B,T-Fer Tree Surgeons,09/08/2023,PE151913,60.00,"21/07/2023 005 quotation52 Woodland Drive,Poulton, Removal of dead tree and stumpPrice 60",Maintenance of Trees and Shrubs
Wyre Council,http://opendatacommunities.org/doc/district-council/wyre,30/08/2023,People and Places,Support Services,135B,T-Fer Tree Surgeons,09/08/2023,PE151914,450.00,Quote 008 31/07/23 Hampton CloseLocation/AddressJob DescriptionPriceTree pruning  G17xcherry/1xs-birch � tip back from property90T2s-birch/ crown clean/raise/tip back from property45T3Cherry / crown clean/raise/tip back from garage,Special Maintenance - Trees
Wyre Council,http://opendatacommunities.org/doc/district-council/wyre,30/08/2023,People and Places,Environmental Services,132B,Wireless CCTV Ltd,08/08/2023,PE151476,6000.00,WCCTV 160m IR Mini Dome - 360 PTZ Vista Camera -Full HD 1080 Recording -WCCTV GSM Samrt Switch -WCCTV 4TB HDD -Lamp Column Bracket -Power Cable WCCTV Analytics (Full Licence All NDAA Compliant,Community Development Initiatives
Wyre Council,http://opendatacommunities.org/doc/district-council/wyre,30/08/2023,People and Places,Environmental Services,132B,Wireless CCTV Ltd,08/08/2023,PE151476,10000.00,WCCTV SLA Support Level Agreement (5 yrs) -5yrs manu warranty all products -Fixed Static IP 4G SIMS -5ys 10GB Fixed Static Private IP SIM (FUP overage charges may apply) -Technical support line (Mon - Fri 8-6) -Monthly data support -Cell Site reports and,Community Development Initiatives
Wyre Council,http://opendatacommunities.org/doc/district-council/wyre,30/08/2023,Resources,Support Services,135B,TET Ltd,30/08/2023,RS152089,2310.00,Year 1 of 4 - subscriptions The Chest tendering platform,Software Maintenance
Wyre Council,http://opendatacommunities.org/doc/district-council/wyre,30/08/2023,Resources,Support Services,135B,Oxygen Finance Ltd,25/08/2023,RS152425,5000.00,Year 1 of 2 - subscription to Oxygen Finance Insights spend analytics system,Corporate and Professional Subscriptions
Wyre Council,http://opendatacommunities.org/doc/district-council/wyre,30/08/2023,Resources,Current Liabilities,130C,Men`s Shed Over Wyre,15/08/2023,RS152058,7000.00,Mayoral Charity Donation 2022-2023Mens Shed Over Wyre,Contributions
Wyre Council,http://opendatacommunities.org/doc/district-council/wyre,30/08/2023,Resources,Cultural and Related Services,132A,Rascalz Theatre Co,08/08/2023,RS151868,2344.00,Rascalz Theatre 29 & 30/06/23 ticket sales,Refund of Ticket Sales to Ext Promoters
Wyre Council,http://opendatacommunities.org/doc/district-council/wyre,30/08/2023,People and Places,Cultural and Related Services,132A,Starlight Stage School,14/08/2023,PE151991,4266.01,Ticket sales for Journey to the Stars,Refund of Ticket Sales to Ext Promoters
Wyre Council,http://opendatacommunities.org/doc/district-council/wyre,30/08/2023,People and Places,Cultural and Related Services,132A,Sylvia Conway Dance Academy,30/08/2023,PE152468,4487.50,Its Showtime 20/21/22 July 23 ticket sales,Refund of Ticket Sales to Ext Promoters
Wyre Council,http://opendatacommunities.org/doc/district-council/wyre,30/08/2023,People and Places,Cultural and Related Services,132A,Fylde coast youth theatre,16/08/2023,PE152124,5960.00,Ticket Sales for Bonnie & Clyde 3-6 August,Refund of Ticket Sales to Ext Promoters
Wyre Council,http://opendatacommunities.org/doc/district-council/wyre,30/08/2023,People and Places,Cultural and Related Services,132A,Divine Catering Events Ltd,22/08/2023,PE152314,1170.00,Catering for wedding 26/8/23,Catering
Wyre Council,http://opendatacommunities.org/doc/district-council/wyre,30/08/2023,People and Places,"Cultural, Environ and Planning",137B,F PARKINSON LTD,08/08/2023,PE151879,47095.91,Fleetwood Market.  PSDS Works Contribution,Contract (New CCR)
Wyre Council,http://opendatacommunities.org/doc/district-council/wyre,30/08/2023,People and Places,"Cultural, Environ and Planning",137B,F PARKINSON LTD,08/08/2023,PE151878,113651.69,Fleetwood Market Contract Works 2023/24,Contract (New CCR)
Wyre Council,http://opendatacommunities.org/doc/district-council/wyre,30/08/2023,People and Places,"Cultural, Environ and Planning",137B,Balfour Beatty Civil Engineering Ltd,11/08/2023,PE151975,614823.42,Wyre Management Scheme Phase 1 - Construction Works,Contract (New CCR)
Wyre Council,http://opendatacommunities.org/doc/district-council/wyre,30/08/2023,People and Places,"Cultural, Environ and Planning",137B,Balfour Beatty Civil Engineering Ltd,16/08/2023,PE152072,337878.32,"FAO Chloe Sumner Balfour Beatty Civil Engineering Ltd Chaddock Lane  Worsley Manchester M28 1XY  Wyre Beach Management Scheme Phase 2 � Construction Works.  Cost 35,601,957.69  Carl Green / Mike Wilkinson",Contract (New CCR)
Wyre Council,http://opendatacommunities.org/doc/district-council/wyre,30/08/2023,People and Places,Cultural and Related Services,132A,GARRY CARR BUILDING SERVICES LTD,02/08/2023,PE151635,260.00,"Marine Hall: Paint external wall to Waterfront Cafe, ready to receive new windows",Responsive Building Maintenance
Wyre Council,http://opendatacommunities.org/doc/district-council/wyre,30/08/2023,People and Places,Support Services,135B,GARRY CARR BUILDING SERVICES LTD,02/08/2023,PE151654,1450.00,Mayors Parlour: supply and fit new underlay and carpet.  Mayor`s kitchen and toilet: Supply and fit vinyl flooring with 6mm plywood base,Responsive Building Maintenance
Wyre Council,http://opendatacommunities.org/doc/district-council/wyre,30/08/2023,People and Places,Support Services,135B,GARRY CARR BUILDING SERVICES LTD,02/08/2023,PE151501,3460.00,"decoration and repairs to Mayor``s parlour, kitchen and wc",Responsive Building Maintenance
Wyre Council,http://opendatacommunities.org/doc/district-council/wyre,30/08/2023,People and Places,Support Services,135B,GARRY CARR BUILDING SERVICES LTD,02/08/2023,PE151500,998.00,Civic Centre: Economic development office damp works,Responsive Building Maintenance
Wyre Council,http://opendatacommunities.org/doc/district-council/wyre,30/08/2023,People and Places,Planning and Development Servs,132C,GARRY CARR BUILDING SERVICES LTD,30/08/2023,PE152262,870.00,"Veolia, copse road depot . replace carrier matting. Material price increasing as discussed with dan long",Responsive Building Maintenance
Wyre Council,http://opendatacommunities.org/doc/district-council/wyre,30/08/2023,People and Places,Cultural and Related Services,132A,GARRY CARR BUILDING SERVICES LTD,03/08/2023,PE151119,1940.00,Phase 2 beach chalets - carry out full clearance of site following fire and complete clean down of sire,Responsive Building Maintenance
Wyre Council,http://opendatacommunities.org/doc/district-council/wyre,30/08/2023,People and Places,"Cultural, Environ and Planning",137B,NP STRUCTURES LTDT/A NORTHERN POLYTUNNELS,10/08/2023,PE151932,1231.33,Supply easy build polytunnel and works to Cottam Hall Community garden UKSPF as your quotation QU20686 Any enquiries please go direct to Jane Ferguson,Contract (New CCR)
Wyre Council,http://opendatacommunities.org/doc/district-council/wyre,30/08/2023,Resources,Housing General Fund,134A,J A DICKENS LIMITED,31/08/2023,RS152552,140.00,REDACT,Minor Adaptations
Wyre Council,http://opendatacommunities.org/doc/district-council/wyre,30/08/2023,Resources,Housing General Fund,134A,J A DICKENS LIMITED,31/08/2023,RS152552,180.00,REDACT,Minor Adaptations
Wyre Council,http://opendatacommunities.org/doc/district-council/wyre,30/08/2023,Resources,Housing General Fund,134A,J A DICKENS LIMITED,31/08/2023,RS152553,200.00,REDACT,Minor Adaptations
Wyre Council,http://opendatacommunities.org/doc/district-council/wyre,30/08/2023,Resources,Housing General Fund,134A,J A DICKENS LIMITED,31/08/2023,RS152553,241.00,REDACT,Minor Adaptations
Wyre Council,http://opendatacommunities.org/doc/district-council/wyre,30/08/2023,Resources,Housing General Fund,134A,J A DICKENS LIMITED,31/08/2023,RS152554,320.00,REDACT,Minor Adaptations
Wyre Council,http://opendatacommunities.org/doc/district-council/wyre,30/08/2023,Resources,Housing General Fund,134A,J A DICKENS LIMITED,31/08/2023,RS152554,340.00,REDACT,Minor Adaptations
Wyre Council,http://opendatacommunities.org/doc/district-council/wyre,30/08/2023,Resources,Housing General Fund,134A,J A DICKENS LIMITED,31/08/2023,RS152555,280.00,REDACT,Minor Adaptations
Wyre Council,http://opendatacommunities.org/doc/district-council/wyre,30/08/2023,Resources,Housing General Fund,134A,J A DICKENS LIMITED,31/08/2023,RS152555,340.00,REDACT,Minor Adaptations
Wyre Council,http://opendatacommunities.org/doc/district-council/wyre,30/08/2023,Resources,Housing General Fund,134A,J A DICKENS LIMITED,31/08/2023,RS152565,150.00,REDACT,Minor Adaptations
Wyre Council,http://opendatacommunities.org/doc/district-council/wyre,30/08/2023,Resources,Housing General Fund,134A,J A DICKENS LIMITED,31/08/2023,RS152565,158.00,REDACT,Minor Adaptations
Wyre Council,http://opendatacommunities.org/doc/district-council/wyre,30/08/2023,Resources,Housing General Fund,134A,J A DICKENS LIMITED,31/08/2023,RS152548,90.00,REDACT,Minor Adaptations
Wyre Council,http://opendatacommunities.org/doc/district-council/wyre,30/08/2023,Resources,Housing General Fund,134A,J A DICKENS LIMITED,31/08/2023,RS152548,64.00,REDACT,Minor Adaptations
Wyre Council,http://opendatacommunities.org/doc/district-council/wyre,30/08/2023,Resources,Housing General Fund,134A,J A DICKENS LIMITED,31/08/2023,RS152549,64.00,REDACT,Minor Adaptations
Wyre Council,http://opendatacommunities.org/doc/district-council/wyre,30/08/2023,Resources,Housing General Fund,134A,J A DICKENS LIMITED,31/08/2023,RS152549,90.00,REDACT,Minor Adaptations
Wyre Council,http://opendatacommunities.org/doc/district-council/wyre,30/08/2023,Resources,Housing General Fund,134A,J A DICKENS LIMITED,31/08/2023,RS152550,64.00,REDACT,Minor Adaptations
Wyre Council,http://opendatacommunities.org/doc/district-council/wyre,30/08/2023,Resources,Housing General Fund,134A,J A DICKENS LIMITED,31/08/2023,RS152550,90.00,REDACT,Minor Adaptations
Wyre Council,http://opendatacommunities.org/doc/district-council/wyre,30/08/2023,Resources,Housing General Fund,134A,J A DICKENS LIMITED,31/08/2023,RS152551,150.00,REDACT,Minor Adaptations
Wyre Council,http://opendatacommunities.org/doc/district-council/wyre,30/08/2023,Resources,Housing General Fund,134A,J A DICKENS LIMITED,31/08/2023,RS152551,158.00,REDACT,Minor Adaptations
Wyre Council,http://opendatacommunities.org/doc/district-council/wyre,30/08/2023,Resources,Housing General Fund,134A,J A DICKENS LIMITED,23/08/2023,RS152347,460.00,REDACT,Minor Adaptations
Wyre Council,http://opendatacommunities.org/doc/district-council/wyre,30/08/2023,Resources,Housing General Fund,134A,J A DICKENS LIMITED,23/08/2023,RS152348,380.00,REDACT,Minor Adaptations
Wyre Council,http://opendatacommunities.org/doc/district-council/wyre,30/08/2023,Resources,Housing General Fund,134A,J A DICKENS LIMITED,23/08/2023,RS152348,380.00,REDACT,Minor Adaptations
Wyre Council,http://opendatacommunities.org/doc/district-council/wyre,30/08/2023,Resources,Housing General Fund,134A,J A DICKENS LIMITED,23/08/2023,RS152349,300.00,REDACT,Minor Adaptations
Wyre Council,http://opendatacommunities.org/doc/district-council/wyre,30/08/2023,Resources,Housing General Fund,134A,J A DICKENS LIMITED,23/08/2023,RS152349,540.00,REDACT,Minor Adaptations
Wyre Council,http://opendatacommunities.org/doc/district-council/wyre,30/08/2023,Resources,Housing General Fund,134A,J A DICKENS LIMITED,23/08/2023,RS152345,144.00,REDACT,Minor Adaptations
